Payment Date,Transaction Number,Net Amount,Supplier (Beneficiary) Name,Local Supplier Internal Reference,Directorate / Service Where Expenditure Incurred,Service Category Label,Service Category URI,SeRCOP Expenditure Category,SeRCOP Expenditure Code,Purpose of Spend,SeRCOP Detailed Expenditure Code,Capital/Revenue,Procurement Classification
31-Aug-2017,225,-139.17,AMZ PARRS,395148,"Health, Education, Care and Safeguarding",Children's & Education Services,103,Supplies and Services,504,Equipment,5023,Revenue,15.SOFTWARE
31-Aug-2017,226,-30.00,LIVERPOOL CITY COUNCIL,031219,"Health, Education, Care and Safeguarding",Children's & Education Services,103,Supplies and Services,504,Miscellaneous Expenses,5034,Revenue,00.PUBLIC SECTOR
31-Aug-2017,7003824,60.00,FLEUR-DE-LIS,395377,Commissioning & Investment,Unallocated,N/A,Supplies and Services,504,Miscellaneous Expenses,5034,Revenue,HORT SEEDS
31-Aug-2017,7003825,53.07,QUOTE ME HAPPY,395376,"Health, Education, Care and Safeguarding",Adult Social Care,101,Supplies and Services,504,Miscellaneous Expenses,5034,Revenue,FINANCE INSURANCE
31-Aug-2017,7003826,472.50,NINGBO,395375,"Environment, Housing & Leisure",Cultural & Related Services,104,Supplies and Services,504,Equipment,5023,Revenue,FURN COMM
31-Aug-2017,7003827,17.50,CRITICAL PUBLISHING,395374,"Health, Education, Care and Safeguarding",Children's & Education Services,103,Supplies and Services,504,Miscellaneous Expenses,5034,Revenue,18.BOOKS & PUBLICATIONS
31-Aug-2017,7003828,18.94,PIGGYPOWERB,395373,"Environment, Housing & Leisure",Cultural & Related Services,104,Supplies and Services,504,Equipment,5023,Revenue,11.CRIME & DISORDER
31-Aug-2017,7003829,45.83,GYP & GREEN FLORSIT,395372,Law & Governance,Central Services,102,Supplies and Services,504,Expenses,5030,Revenue,HORT SEEDS
31-Aug-2017,7003830,342.00,BURNETTS,395361,"Health, Education, Care and Safeguarding",Children's & Education Services,103,Third Party Payments,505,Private Contractors,5042,Revenue,LEGAL SUPP
31-Aug-2017,7003831,4.95,BETTINIS,395360,"Health, Education, Care and Safeguarding",Children's & Education Services,103,Third Party Payments,505,Other Establishments,5041,Revenue,18.TRAVEL
31-Aug-2017,7003832,79.99,ARGOFIELD LTD,395359,Housing Revenue Account,Adult Social Care,101,Supplies and Services,504,Equipment,5023,Revenue,10.HOUSEHOLD
31-Aug-2017,7003833,41.57,THE CLIMBERS SHOP,337857,"Health, Education, Care and Safeguarding",Children's & Education Services,103,Supplies and Services,504,Equipment,5023,Revenue,NULL
31-Aug-2017,7003834,66.41,DAVID S SALES,395170,"Environment, Housing & Leisure",Cultural & Related Services,104,Supplies and Services,504,Miscellaneous Expenses,5034,Revenue,06.ART & CRAFT
31-Aug-2017,7003835,337.49,PARKDEAN HOLIDAY PARK,395145,"Health, Education, Care and Safeguarding",Children's & Education Services,103,Supplies and Services,504,Expenses,5030,Revenue,HR ACCOMM
31-Aug-2017,7003836,20.83,JTW FLORISTS LTD,395050,Law & Governance,Central Services,102,Supplies and Services,504,Expenses,5030,Revenue,HORT SEEDS
31-Aug-2017,7003837,8.99,UNLIMITED WEBHOSTING,394828,"Health, Education, Care and Safeguarding",Children's & Education Services,103,Supplies and Services,504,Communications & Computing,5028,Revenue,ICT WEB
31-Aug-2017,7003838,4.94,UK HOSTING,394827,Corporate Strategy,Central Services,102,Supplies and Services,504,Expenses,5030,Revenue,ICT WEB
31-Aug-2017,7003839,45.85,TAYLOR FOODS,394743,Commissioning & Investment,Children's & Education Services,103,Supplies and Services,504,Equipment,5023,Revenue,03.GROCERIES & PROVISIONS
31-Aug-2017,7003839,58.50,TAYLOR FOODS,394743,Commissioning & Investment,Children's & Education Services,103,Supplies and Services,504,Equipment,5023,Revenue,03.GROCERIES & PROVISIONS
31-Aug-2017,7003839,54.00,TAYLOR FOODS,394743,Commissioning & Investment,Children's & Education Services,103,Supplies and Services,504,Equipment,5023,Revenue,03.GROCERIES & PROVISIONS
31-Aug-2017,7003839,48.75,TAYLOR FOODS,394743,Commissioning & Investment,Children's & Education Services,103,Supplies and Services,504,Equipment,5023,Revenue,03.GROCERIES & PROVISIONS
31-Aug-2017,7003839,215.40,TAYLOR FOODS,394743,Commissioning & Investment,Children's & Education Services,103,Supplies and Services,504,Equipment,5023,Revenue,03.GROCERIES & PROVISIONS
31-Aug-2017,7003839,44.85,TAYLOR FOODS,394743,Commissioning & Investment,Children's & Education Services,103,Supplies and Services,504,Equipment,5023,Revenue,03.GROCERIES & PROVISIONS
31-Aug-2017,7003839,86.58,TAYLOR FOODS,394743,Commissioning & Investment,Children's & Education Services,103,Supplies and Services,504,Equipment,5023,Revenue,03.GROCERIES & PROVISIONS
31-Aug-2017,7003839,77.13,TAYLOR FOODS,394743,Commissioning & Investment,Children's & Education Services,103,Supplies and Services,504,Equipment,5023,Revenue,03.GROCERIES & PROVISIONS
31-Aug-2017,7003839,32.54,TAYLOR FOODS,394743,Commissioning & Investment,Children's & Education Services,103,Supplies and Services,504,Equipment,5023,Revenue,03.GROCERIES & PROVISIONS
31-Aug-2017,7003839,101.95,TAYLOR FOODS,394743,Commissioning & Investment,Children's & Education Services,103,Supplies and Services,504,Equipment,5023,Revenue,03.GROCERIES & PROVISIONS
31-Aug-2017,7003839,46.66,TAYLOR FOODS,394743,Commissioning & Investment,Children's & Education Services,103,Supplies and Services,504,Equipment,5023,Revenue,03.GROCERIES & PROVISIONS
31-Aug-2017,7003839,29.49,TAYLOR FOODS,394743,Commissioning & Investment,Children's & Education Services,103,Supplies and Services,504,Equipment,5023,Revenue,03.GROCERIES & PROVISIONS
31-Aug-2017,7003839,156.85,TAYLOR FOODS,394743,Commissioning & Investment,Children's & Education Services,103,Supplies and Services,504,Equipment,5023,Revenue,03.GROCERIES & PROVISIONS
31-Aug-2017,7003839,48.75,TAYLOR FOODS,394743,Commissioning & Investment,Children's & Education Services,103,Supplies and Services,504,Equipment,5023,Revenue,03.GROCERIES & PROVISIONS
31-Aug-2017,7003839,48.75,TAYLOR FOODS,394743,Commissioning & Investment,Children's & Education Services,103,Supplies and Services,504,Equipment,5023,Revenue,03.GROCERIES & PROVISIONS
31-Aug-2017,7003839,152.53,TAYLOR FOODS,394743,Commissioning & Investment,Children's & Education Services,103,Supplies and Services,504,Equipment,5023,Revenue,03.GROCERIES & PROVISIONS
31-Aug-2017,7003839,180.23,TAYLOR FOODS,394743,"Environment, Housing & Leisure",Adult Social Care,101,Supplies and Services,504,Equipment,5023,Revenue,03.GROCERIES & PROVISIONS
31-Aug-2017,7003839,307.57,TAYLOR FOODS,394743,Commissioning & Investment,Children's & Education Services,103,Supplies and Services,504,Equipment,5023,Revenue,03.GROCERIES & PROVISIONS
31-Aug-2017,7003839,127.00,TAYLOR FOODS,394743,Commissioning & Investment,Children's & Education Services,103,Supplies and Services,504,Equipment,5023,Revenue,03.GROCERIES & PROVISIONS
31-Aug-2017,7003839,19.50,TAYLOR FOODS,394743,Commissioning & Investment,Children's & Education Services,103,Supplies and Services,504,Equipment,5023,Revenue,03.GROCERIES & PROVISIONS
31-Aug-2017,7003840,379.76,I G PROPERTY SERVI,394741,"Health, Education, Care and Safeguarding",Children's & Education Services,103,Third Party Payments,505,Other Establishments,5041,Revenue,FAC ESTATE
31-Aug-2017,7003841,281.94,AZTEC CHEMICALS LTD,327317,"Environment, Housing & Leisure",Cultural & Related Services,104,Supplies and Services,504,Equipment,5023,Revenue,05.CLEANING MATERIALS
31-Aug-2017,7003842,287.64,GRO-WELL DIRECT,394447,"Environment, Housing & Leisure",Environmental & Regulatory Services,105,Supplies and Services,504,Equipment,5023,Revenue,HORT SOILS
31-Aug-2017,7003843,318.71,TRAVEL.CLOUD,394406,"Health, Education, Care and Safeguarding",Children's & Education Services,103,Supplies and Services,504,Expenses,5030,Revenue,18.TRAVEL
31-Aug-2017,7003843,136.20,TRAVEL.CLOUD,394406,"Health, Education, Care and Safeguarding",Children's & Education Services,103,Supplies and Services,504,Expenses,5030,Revenue,18.TRAVEL
31-Aug-2017,7003843,318.71,TRAVEL.CLOUD,394406,"Health, Education, Care and Safeguarding",Children's & Education Services,103,Supplies and Services,504,Expenses,5030,Revenue,18.TRAVEL
31-Aug-2017,7003843,318.71,TRAVEL.CLOUD,394406,"Health, Education, Care and Safeguarding",Children's & Education Services,103,Supplies and Services,504,Expenses,5030,Revenue,18.TRAVEL
31-Aug-2017,7003844,329.17,AAIA,333888,"Health, Education, Care and Safeguarding",Children's & Education Services,103,Supplies and Services,504,Expenses,5030,Revenue,18.BOOKS & PUBLICATIONS
31-Aug-2017,7003845,91.30,MOJO HELPDESK,394317,"Health, Education, Care and Safeguarding",Children's & Education Services,103,Supplies and Services,504,Communications & Computing,5028,Revenue,15.SOFTWARE
31-Aug-2017,7003846,14.10,E H BOOTH & CO,394256,"Health, Education, Care and Safeguarding",Children's & Education Services,103,Supplies and Services,504,Equipment,5023,Revenue,HORT SEEDS
31-Aug-2017,7003846,2.50,E H BOOTH & CO,394256,"Health, Education, Care and Safeguarding",Children's & Education Services,103,Supplies and Services,504,Equipment,5023,Revenue,HORT SEEDS
31-Aug-2017,7003847,25.62,ARK WILDLIFE LTD,394036,"Environment, Housing & Leisure",Cultural & Related Services,104,Supplies and Services,504,Equipment,5023,Revenue,ENVIRO ANIMAL
31-Aug-2017,7003848,208.33,WPCHRG.COM,394035,Corporate Strategy,Central Services,102,Supplies and Services,504,"Printing, Stationery and General Office Expenses",5026,Revenue,15.SOFTWARE
31-Aug-2017,7003849,100.00,NURTURE GROUP NETWORK,394023,Commissioning & Investment,Children's & Education Services,103,Supplies and Services,504,Equipment,5023,Revenue,EDUC SUPP
31-Aug-2017,7003850,255.00,DELAVAL ICES,384755,Commissioning & Investment,Children's & Education Services,103,Supplies and Services,504,Equipment,5023,Revenue,00.GRANT
31-Aug-2017,7003850,255.00,DELAVAL ICES,384755,Commissioning & Investment,Children's & Education Services,103,Supplies and Services,504,Equipment,5023,Revenue,00.GRANT
31-Aug-2017,7003851,41.26,TOOLSTATION LTD,393689,"Environment, Housing & Leisure",Cultural & Related Services,104,Supplies and Services,504,Equipment,5023,Revenue,13.EQUIPMENT
31-Aug-2017,7003851,54.45,TOOLSTATION LTD,393689,"Environment, Housing & Leisure",Cultural & Related Services,104,Supplies and Services,504,Equipment,5023,Revenue,13.EQUIPMENT
31-Aug-2017,7003851,14.74,TOOLSTATION LTD,393689,"Environment, Housing & Leisure",Environmental & Regulatory Services,105,Supplies and Services,504,Equipment,5023,Revenue,13.EQUIPMENT
31-Aug-2017,7003852,69.00,SOLO PRESS,393572,"Health, Education, Care and Safeguarding",Children's & Education Services,103,Supplies and Services,504,"Printing, Stationery and General Office Expenses",5026,Revenue,PRINT PRINT
31-Aug-2017,7003853,8.69,FACEBOOK,393228,"Environment, Housing & Leisure",Cultural & Related Services,104,Supplies and Services,504,"Printing, Stationery and General Office Expenses",5026,Revenue,16.ADVERTISING
31-Aug-2017,7003854,261.32,TOWING AND TRAILERS LTD,392798,"Health, Education, Care and Safeguarding",Children's & Education Services,103,Premises-Related Expenditure,502,"Repairs, alterations and maintenance of buildings",5005,Revenue,VEHICLE RECOVERY
31-Aug-2017,7003855,61.58,SNAP WIDGET,392659,"Environment, Housing & Leisure",Cultural & Related Services,104,Third Party Payments,505,Private Contractors,5042,Revenue,16.EVENTS & PROMOTIONS
31-Aug-2017,7003856,30.84,TK MAXX,392657,"Health, Education, Care and Safeguarding",Children's & Education Services,103,Supplies and Services,504,Equipment,5023,Revenue,10.HOUSEHOLD
31-Aug-2017,7003857,71.43,JOHNSTONES DECORATING,392548,"Environment, Housing & Leisure",Environmental & Regulatory Services,105,Supplies and Services,504,Equipment,5023,Revenue,REPAIR PAINT
31-Aug-2017,7003858,10.83,ECML DURHAM PARKING,392129,"Health, Education, Care and Safeguarding",Children's & Education Services,103,Supplies and Services,504,Expenses,5030,Revenue,18.TRAVEL
31-Aug-2017,7003859,169.99,AO RETAIL LIMITED,392123,"Health, Education, Care and Safeguarding",Children's & Education Services,103,Supplies and Services,504,Equipment,5023,Revenue,03.CROCKERY
31-Aug-2017,7003860,81.59,ON A ROLL SANDWICH COMPANY,391893,Commissioning & Investment,Children's & Education Services,103,Supplies and Services,504,Equipment,5023,Revenue,03.GROCERIES & PROVISIONS
31-Aug-2017,7003860,334.24,ON A ROLL SANDWICH COMPANY,391893,Commissioning & Investment,Children's & Education Services,103,Supplies and Services,504,Equipment,5023,Revenue,03.GROCERIES & PROVISIONS
31-Aug-2017,7003860,95.53,ON A ROLL SANDWICH COMPANY,391893,Commissioning & Investment,Children's & Education Services,103,Supplies and Services,504,Equipment,5023,Revenue,03.GROCERIES & PROVISIONS
31-Aug-2017,7003860,199.60,ON A ROLL SANDWICH COMPANY,391893,Commissioning & Investment,Children's & Education Services,103,Supplies and Services,504,Equipment,5023,Revenue,03.GROCERIES & PROVISIONS
31-Aug-2017,7003860,119.69,ON A ROLL SANDWICH COMPANY,391893,Commissioning & Investment,Children's & Education Services,103,Supplies and Services,504,Equipment,5023,Revenue,03.GROCERIES & PROVISIONS
31-Aug-2017,7003860,673.14,ON A ROLL SANDWICH COMPANY,391893,Commissioning & Investment,Children's & Education Services,103,Supplies and Services,504,Equipment,5023,Revenue,03.GROCERIES & PROVISIONS
31-Aug-2017,7003860,477.54,ON A ROLL SANDWICH COMPANY,391893,Commissioning & Investment,Children's & Education Services,103,Supplies and Services,504,Equipment,5023,Revenue,03.GROCERIES & PROVISIONS
31-Aug-2017,7003860,95.53,ON A ROLL SANDWICH COMPANY,391893,Commissioning & Investment,Children's & Education Services,103,Supplies and Services,504,Equipment,5023,Revenue,03.GROCERIES & PROVISIONS
31-Aug-2017,7003860,439.00,ON A ROLL SANDWICH COMPANY,391893,Commissioning & Investment,Children's & Education Services,103,Supplies and Services,504,Equipment,5023,Revenue,03.GROCERIES & PROVISIONS
31-Aug-2017,7003860,278.38,ON A ROLL SANDWICH COMPANY,391893,Commissioning & Investment,Children's & Education Services,103,Supplies and Services,504,Equipment,5023,Revenue,03.GROCERIES & PROVISIONS
31-Aug-2017,7003860,211.20,ON A ROLL SANDWICH COMPANY,391893,Commissioning & Investment,Children's & Education Services,103,Supplies and Services,504,Equipment,5023,Revenue,03.GROCERIES & PROVISIONS
31-Aug-2017,7003860,276.53,ON A ROLL SANDWICH COMPANY,391893,Commissioning & Investment,Children's & Education Services,103,Supplies and Services,504,Equipment,5023,Revenue,03.GROCERIES & PROVISIONS
31-Aug-2017,7003860,276.53,ON A ROLL SANDWICH COMPANY,391893,Commissioning & Investment,Children's & Education Services,103,Supplies and Services,504,Equipment,5023,Revenue,03.GROCERIES & PROVISIONS
31-Aug-2017,7003860,454.12,ON A ROLL SANDWICH COMPANY,391893,Commissioning & Investment,Children's & Education Services,103,Supplies and Services,504,Equipment,5023,Revenue,03.GROCERIES & PROVISIONS
31-Aug-2017,7003860,353.31,ON A ROLL SANDWICH COMPANY,391893,Commissioning & Investment,Children's & Education Services,103,Supplies and Services,504,Equipment,5023,Revenue,03.GROCERIES & PROVISIONS
31-Aug-2017,7003860,67.05,ON A ROLL SANDWICH COMPANY,391893,Commissioning & Investment,Children's & Education Services,103,Supplies and Services,504,Equipment,5023,Revenue,03.GROCERIES & PROVISIONS
31-Aug-2017,7003860,418.75,ON A ROLL SANDWICH COMPANY,391893,Commissioning & Investment,Children's & Education Services,103,Supplies and Services,504,Equipment,5023,Revenue,03.GROCERIES & PROVISIONS
31-Aug-2017,7003860,269.68,ON A ROLL SANDWICH COMPANY,391893,Commissioning & Investment,Children's & Education Services,103,Supplies and Services,504,Equipment,5023,Revenue,03.GROCERIES & PROVISIONS
31-Aug-2017,7003860,272.36,ON A ROLL SANDWICH COMPANY,391893,Commissioning & Investment,Children's & Education Services,103,Supplies and Services,504,Equipment,5023,Revenue,03.GROCERIES & PROVISIONS
31-Aug-2017,7003860,645.88,ON A ROLL SANDWICH COMPANY,391893,Commissioning & Investment,Children's & Education Services,103,Supplies and Services,504,Equipment,5023,Revenue,03.GROCERIES & PROVISIONS
31-Aug-2017,7003860,418.86,ON A ROLL SANDWICH COMPANY,391893,Commissioning & Investment,Children's & Education Services,103,Supplies and Services,504,Equipment,5023,Revenue,03.GROCERIES & PROVISIONS
31-Aug-2017,7003860,399.79,ON A ROLL SANDWICH COMPANY,391893,Commissioning & Investment,Children's & Education Services,103,Supplies and Services,504,Equipment,5023,Revenue,03.GROCERIES & PROVISIONS
31-Aug-2017,7003860,836.78,ON A ROLL SANDWICH COMPANY,391893,Commissioning & Investment,Children's & Education Services,103,Supplies and Services,504,Equipment,5023,Revenue,03.GROCERIES & PROVISIONS
31-Aug-2017,7003860,81.06,ON A ROLL SANDWICH COMPANY,391893,Commissioning & Investment,Children's & Education Services,103,Supplies and Services,504,Equipment,5023,Revenue,03.GROCERIES & PROVISIONS
31-Aug-2017,7003860,211.20,ON A ROLL SANDWICH COMPANY,391893,Commissioning & Investment,Children's & Education Services,103,Supplies and Services,504,Equipment,5023,Revenue,03.GROCERIES & PROVISIONS
31-Aug-2017,7003860,418.75,ON A ROLL SANDWICH COMPANY,391893,Commissioning & Investment,Children's & Education Services,103,Supplies and Services,504,Equipment,5023,Revenue,03.GROCERIES & PROVISIONS
31-Aug-2017,7003860,606.09,ON A ROLL SANDWICH COMPANY,391893,Commissioning & Investment,Children's & Education Services,103,Supplies and Services,504,Equipment,5023,Revenue,03.GROCERIES & PROVISIONS
31-Aug-2017,7003861,6.50,PRODUCT SUPPORT AG,391921,"Health, Education, Care and Safeguarding",Children's & Education Services,103,Supplies and Services,504,Equipment,5023,Revenue,14.MAINT OF COMPUTER EQU
31-Aug-2017,7003862,29.17,BOURNE LEISURE LTD,346426,"Health, Education, Care and Safeguarding",Children's & Education Services,103,Supplies and Services,504,Equipment,5023,Revenue,HR ACCOMM
31-Aug-2017,7003863,10.21,M&S SIMPLY FOOD,391846,"Health, Education, Care and Safeguarding",Children's & Education Services,103,Supplies and Services,504,Equipment,5023,Revenue,03.GROCERIES & PROVISIONS
31-Aug-2017,7003864,99.50,DUNELM LTD,391723,"Health, Education, Care and Safeguarding",Children's & Education Services,103,Supplies and Services,504,Equipment,5023,Revenue,10.BLINDS CARPETS CURTAIN
31-Aug-2017,7003865,-0.96,ASDA HOME SHOPPING CAR,391718,"Health, Education, Care and Safeguarding",Children's & Education Services,103,Supplies and Services,504,Equipment,5023,Revenue,03.GROCERIES & PROVISIONS
31-Aug-2017,7003865,154.49,ASDA HOME SHOPPING CAR,391718,"Health, Education, Care and Safeguarding",Children's & Education Services,103,Supplies and Services,504,Equipment,5023,Revenue,03.GROCERIES & PROVISIONS
31-Aug-2017,7003866,3.72,ALDI,391717,"Environment, Housing & Leisure",Cultural & Related Services,104,Supplies and Services,504,Catering,5024,Revenue,03.GROCERIES & PROVISIONS
31-Aug-2017,7003866,8.32,ALDI,391717,"Health, Education, Care and Safeguarding",Children's & Education Services,103,Supplies and Services,504,Equipment,5023,Revenue,03.GROCERIES & PROVISIONS
31-Aug-2017,7003866,16.35,ALDI,391717,"Environment, Housing & Leisure",Cultural & Related Services,104,Third Party Payments,505,Private Contractors,5042,Revenue,03.GROCERIES & PROVISIONS
31-Aug-2017,7003866,11.25,ALDI,391717,"Environment, Housing & Leisure",Cultural & Related Services,104,Supplies and Services,504,Catering,5024,Revenue,03.GROCERIES & PROVISIONS
31-Aug-2017,7003866,9.37,ALDI,391717,"Health, Education, Care and Safeguarding",Children's & Education Services,103,Supplies and Services,504,Equipment,5023,Revenue,03.GROCERIES & PROVISIONS
31-Aug-2017,7003867,14.12,ANNE THOMAS WORKWEAR LID,391598,"Environment, Housing & Leisure",Environmental & Regulatory Services,105,Supplies and Services,504,Equipment,5023,Revenue,11.WORKWEAR
31-Aug-2017,7003867,16.62,ANNE THOMAS WORKWEAR LID,391598,"Environment, Housing & Leisure",Environmental & Regulatory Services,105,Supplies and Services,504,Equipment,5023,Revenue,11.WORKWEAR
31-Aug-2017,7003868,477.00,GLOBAL JOURNEY LTD,391470,"Environment, Housing & Leisure",Cultural & Related Services,104,Supplies and Services,504,Equipment,5023,Revenue,18.BOOKS & PUBLICATIONS
31-Aug-2017,7003869,173.40,BOOKERECOMM,391464,"Environment, Housing & Leisure",Cultural & Related Services,104,Supplies and Services,504,Catering,5024,Revenue,00.NON INFLUENCIBLE
31-Aug-2017,7003869,191.78,BOOKERECOMM,391464,"Environment, Housing & Leisure",Cultural & Related Services,104,Supplies and Services,504,Catering,5024,Revenue,00.NON INFLUENCIBLE
31-Aug-2017,7003869,130.96,BOOKERECOMM,391464,"Environment, Housing & Leisure",Cultural & Related Services,104,Supplies and Services,504,Catering,5024,Revenue,00.NON INFLUENCIBLE
31-Aug-2017,7003869,66.02,BOOKERECOMM,391464,"Environment, Housing & Leisure",Cultural & Related Services,104,Supplies and Services,504,Catering,5024,Revenue,00.NON INFLUENCIBLE
31-Aug-2017,7003870,15.03,H&M 816 SILVERLINK,391479,"Health, Education, Care and Safeguarding",Children's & Education Services,103,Supplies and Services,504,"Clothing, Uniforms and Laundry",5025,Revenue,00.NON INFLUENCIBLE
31-Aug-2017,7003871,20.83,CRADLEWELL CURTAIN COM,391251,"Health, Education, Care and Safeguarding",Children's & Education Services,103,Supplies and Services,504,Miscellaneous Expenses,5034,Revenue,10.BLINDS CARPETS CURTAIN
31-Aug-2017,7003871,46.33,CRADLEWELL CURTAIN COM,391251,"Health, Education, Care and Safeguarding",Children's & Education Services,103,Supplies and Services,504,Miscellaneous Expenses,5034,Revenue,10.BLINDS CARPETS CURTAIN
31-Aug-2017,7003872,182.33,OAKENCLOUGH BUILDING L,391160,"Environment, Housing & Leisure",Cultural & Related Services,104,Supplies and Services,504,Equipment,5023,Revenue,13.EQUIPMENT
31-Aug-2017,7003873,0.40,REDBRIDGE PRODUCE & FLOWERS LTD T/A TOTAL PRODUCE,390977,Commissioning & Investment,Children's & Education Services,103,Supplies and Services,504,Equipment,5023,Revenue,03.GROCERIES & PROVISIONS
31-Aug-2017,7003873,0.78,REDBRIDGE PRODUCE & FLOWERS LTD T/A TOTAL PRODUCE,390977,Commissioning & Investment,Children's & Education Services,103,Supplies and Services,504,Equipment,5023,Revenue,03.GROCERIES & PROVISIONS
31-Aug-2017,7003873,8.70,REDBRIDGE PRODUCE & FLOWERS LTD T/A TOTAL PRODUCE,390977,"Health, Education, Care and Safeguarding",Children's & Education Services,103,Supplies and Services,504,Equipment,5023,Revenue,03.GROCERIES & PROVISIONS
31-Aug-2017,7003873,6.12,REDBRIDGE PRODUCE & FLOWERS LTD T/A TOTAL PRODUCE,390977,Commissioning & Investment,Children's & Education Services,103,Supplies and Services,504,Equipment,5023,Revenue,03.GROCERIES & PROVISIONS
31-Aug-2017,7003873,11.00,REDBRIDGE PRODUCE & FLOWERS LTD T/A TOTAL PRODUCE,390977,Commissioning & Investment,Children's & Education Services,103,Supplies and Services,504,Equipment,5023,Revenue,03.GROCERIES & PROVISIONS
31-Aug-2017,7003873,4.20,REDBRIDGE PRODUCE & FLOWERS LTD T/A TOTAL PRODUCE,390977,Commissioning & Investment,Children's & Education Services,103,Supplies and Services,504,Equipment,5023,Revenue,03.GROCERIES & PROVISIONS
31-Aug-2017,7003873,11.60,REDBRIDGE PRODUCE & FLOWERS LTD T/A TOTAL PRODUCE,390977,Commissioning & Investment,Children's & Education Services,103,Supplies and Services,504,Equipment,5023,Revenue,03.GROCERIES & PROVISIONS
31-Aug-2017,7003873,24.31,REDBRIDGE PRODUCE & FLOWERS LTD T/A TOTAL PRODUCE,390977,Commissioning & Investment,Children's & Education Services,103,Supplies and Services,504,Equipment,5023,Revenue,03.GROCERIES & PROVISIONS
31-Aug-2017,7003873,2.04,REDBRIDGE PRODUCE & FLOWERS LTD T/A TOTAL PRODUCE,390977,Commissioning & Investment,Children's & Education Services,103,Supplies and Services,504,Equipment,5023,Revenue,03.GROCERIES & PROVISIONS
31-Aug-2017,7003873,54.44,REDBRIDGE PRODUCE & FLOWERS LTD T/A TOTAL PRODUCE,390977,Commissioning & Investment,Children's & Education Services,103,Supplies and Services,504,Equipment,5023,Revenue,03.GROCERIES & PROVISIONS
31-Aug-2017,7003873,5.94,REDBRIDGE PRODUCE & FLOWERS LTD T/A TOTAL PRODUCE,390977,Commissioning & Investment,Children's & Education Services,103,Supplies and Services,504,Equipment,5023,Revenue,03.GROCERIES & PROVISIONS
31-Aug-2017,7003873,6.60,REDBRIDGE PRODUCE & FLOWERS LTD T/A TOTAL PRODUCE,390977,Commissioning & Investment,Children's & Education Services,103,Supplies and Services,504,Equipment,5023,Revenue,03.GROCERIES & PROVISIONS
31-Aug-2017,7003873,66.73,REDBRIDGE PRODUCE & FLOWERS LTD T/A TOTAL PRODUCE,390977,Commissioning & Investment,Children's & Education Services,103,Supplies and Services,504,Equipment,5023,Revenue,03.GROCERIES & PROVISIONS
31-Aug-2017,7003873,50.05,REDBRIDGE PRODUCE & FLOWERS LTD T/A TOTAL PRODUCE,390977,"Environment, Housing & Leisure",Adult Social Care,101,Supplies and Services,504,Equipment,5023,Revenue,03.GROCERIES & PROVISIONS
31-Aug-2017,7003873,1.78,REDBRIDGE PRODUCE & FLOWERS LTD T/A TOTAL PRODUCE,390977,Commissioning & Investment,Children's & Education Services,103,Supplies and Services,504,Equipment,5023,Revenue,03.GROCERIES & PROVISIONS
31-Aug-2017,7003873,1.10,REDBRIDGE PRODUCE & FLOWERS LTD T/A TOTAL PRODUCE,390977,Commissioning & Investment,Children's & Education Services,103,Supplies and Services,504,Equipment,5023,Revenue,03.GROCERIES & PROVISIONS
31-Aug-2017,7003873,2.04,REDBRIDGE PRODUCE & FLOWERS LTD T/A TOTAL PRODUCE,390977,Commissioning & Investment,Children's & Education Services,103,Supplies and Services,504,Equipment,5023,Revenue,03.GROCERIES & PROVISIONS
31-Aug-2017,7003873,65.86,REDBRIDGE PRODUCE & FLOWERS LTD T/A TOTAL PRODUCE,390977,Commissioning & Investment,Children's & Education Services,103,Supplies and Services,504,Equipment,5023,Revenue,03.GROCERIES & PROVISIONS
31-Aug-2017,7003873,3.18,REDBRIDGE PRODUCE & FLOWERS LTD T/A TOTAL PRODUCE,390977,Commissioning & Investment,Children's & Education Services,103,Supplies and Services,504,Equipment,5023,Revenue,03.GROCERIES & PROVISIONS
31-Aug-2017,7003873,91.33,REDBRIDGE PRODUCE & FLOWERS LTD T/A TOTAL PRODUCE,390977,Commissioning & Investment,Children's & Education Services,103,Supplies and Services,504,Equipment,5023,Revenue,03.GROCERIES & PROVISIONS
31-Aug-2017,7003873,0.78,REDBRIDGE PRODUCE & FLOWERS LTD T/A TOTAL PRODUCE,390977,Commissioning & Investment,Children's & Education Services,103,Supplies and Services,504,Equipment,5023,Revenue,03.GROCERIES & PROVISIONS
31-Aug-2017,7003873,26.78,REDBRIDGE PRODUCE & FLOWERS LTD T/A TOTAL PRODUCE,390977,Commissioning & Investment,Children's & Education Services,103,Supplies and Services,504,Equipment,5023,Revenue,03.GROCERIES & PROVISIONS
31-Aug-2017,7003873,23.69,REDBRIDGE PRODUCE & FLOWERS LTD T/A TOTAL PRODUCE,390977,Commissioning & Investment,Children's & Education Services,103,Supplies and Services,504,Equipment,5023,Revenue,03.GROCERIES & PROVISIONS
31-Aug-2017,7003873,-2.40,REDBRIDGE PRODUCE & FLOWERS LTD T/A TOTAL PRODUCE,390977,Commissioning & Investment,Children's & Education Services,103,Supplies and Services,504,Equipment,5023,Revenue,03.GROCERIES & PROVISIONS
31-Aug-2017,7003873,1.47,REDBRIDGE PRODUCE & FLOWERS LTD T/A TOTAL PRODUCE,390977,Commissioning & Investment,Children's & Education Services,103,Supplies and Services,504,Equipment,5023,Revenue,03.GROCERIES & PROVISIONS
31-Aug-2017,7003873,16.20,REDBRIDGE PRODUCE & FLOWERS LTD T/A TOTAL PRODUCE,390977,Commissioning & Investment,Children's & Education Services,103,Supplies and Services,504,Equipment,5023,Revenue,03.GROCERIES & PROVISIONS
31-Aug-2017,7003873,58.93,REDBRIDGE PRODUCE & FLOWERS LTD T/A TOTAL PRODUCE,390977,"Environment, Housing & Leisure",Cultural & Related Services,104,Supplies and Services,504,Equipment,5023,Revenue,03.GROCERIES & PROVISIONS
31-Aug-2017,7003873,7.38,REDBRIDGE PRODUCE & FLOWERS LTD T/A TOTAL PRODUCE,390977,"Health, Education, Care and Safeguarding",Children's & Education Services,103,Supplies and Services,504,Equipment,5023,Revenue,03.GROCERIES & PROVISIONS
31-Aug-2017,7003873,70.26,REDBRIDGE PRODUCE & FLOWERS LTD T/A TOTAL PRODUCE,390977,Commissioning & Investment,Children's & Education Services,103,Supplies and Services,504,Equipment,5023,Revenue,03.GROCERIES & PROVISIONS
31-Aug-2017,7003873,45.37,REDBRIDGE PRODUCE & FLOWERS LTD T/A TOTAL PRODUCE,390977,Commissioning & Investment,Children's & Education Services,103,Supplies and Services,504,Equipment,5023,Revenue,03.GROCERIES & PROVISIONS
31-Aug-2017,7003873,1.56,REDBRIDGE PRODUCE & FLOWERS LTD T/A TOTAL PRODUCE,390977,Commissioning & Investment,Children's & Education Services,103,Supplies and Services,504,Equipment,5023,Revenue,03.GROCERIES & PROVISIONS
31-Aug-2017,7003873,8.80,REDBRIDGE PRODUCE & FLOWERS LTD T/A TOTAL PRODUCE,390977,Commissioning & Investment,Children's & Education Services,103,Supplies and Services,504,Equipment,5023,Revenue,03.GROCERIES & PROVISIONS
31-Aug-2017,7003873,6.07,REDBRIDGE PRODUCE & FLOWERS LTD T/A TOTAL PRODUCE,390977,"Environment, Housing & Leisure",Cultural & Related Services,104,Supplies and Services,504,Equipment,5023,Revenue,03.GROCERIES & PROVISIONS
31-Aug-2017,7003873,1.92,REDBRIDGE PRODUCE & FLOWERS LTD T/A TOTAL PRODUCE,390977,"Environment, Housing & Leisure",Cultural & Related Services,104,Supplies and Services,504,Equipment,5023,Revenue,03.GROCERIES & PROVISIONS
31-Aug-2017,7003873,36.05,REDBRIDGE PRODUCE & FLOWERS LTD T/A TOTAL PRODUCE,390977,Commissioning & Investment,Children's & Education Services,103,Supplies and Services,504,Equipment,5023,Revenue,03.GROCERIES & PROVISIONS
31-Aug-2017,7003873,9.18,REDBRIDGE PRODUCE & FLOWERS LTD T/A TOTAL PRODUCE,390977,Commissioning & Investment,Children's & Education Services,103,Supplies and Services,504,Equipment,5023,Revenue,03.GROCERIES & PROVISIONS
31-Aug-2017,7003873,37.00,REDBRIDGE PRODUCE & FLOWERS LTD T/A TOTAL PRODUCE,390977,Commissioning & Investment,Children's & Education Services,103,Supplies and Services,504,Equipment,5023,Revenue,03.GROCERIES & PROVISIONS
31-Aug-2017,7003873,2.75,REDBRIDGE PRODUCE & FLOWERS LTD T/A TOTAL PRODUCE,390977,Commissioning & Investment,Children's & Education Services,103,Supplies and Services,504,Equipment,5023,Revenue,03.GROCERIES & PROVISIONS
31-Aug-2017,7003873,1.46,REDBRIDGE PRODUCE & FLOWERS LTD T/A TOTAL PRODUCE,390977,Commissioning & Investment,Children's & Education Services,103,Supplies and Services,504,Equipment,5023,Revenue,03.GROCERIES & PROVISIONS
31-Aug-2017,7003873,40.75,REDBRIDGE PRODUCE & FLOWERS LTD T/A TOTAL PRODUCE,390977,Commissioning & Investment,Children's & Education Services,103,Supplies and Services,504,Equipment,5023,Revenue,03.GROCERIES & PROVISIONS
31-Aug-2017,7003873,6.60,REDBRIDGE PRODUCE & FLOWERS LTD T/A TOTAL PRODUCE,390977,Commissioning & Investment,Children's & Education Services,103,Supplies and Services,504,Equipment,5023,Revenue,03.GROCERIES & PROVISIONS
31-Aug-2017,7003873,0.78,REDBRIDGE PRODUCE & FLOWERS LTD T/A TOTAL PRODUCE,390977,Commissioning & Investment,Children's & Education Services,103,Supplies and Services,504,Equipment,5023,Revenue,03.GROCERIES & PROVISIONS
31-Aug-2017,7003873,93.57,REDBRIDGE PRODUCE & FLOWERS LTD T/A TOTAL PRODUCE,390977,"Environment, Housing & Leisure",Adult Social Care,101,Supplies and Services,504,Equipment,5023,Revenue,03.GROCERIES & PROVISIONS
31-Aug-2017,7003873,37.45,REDBRIDGE PRODUCE & FLOWERS LTD T/A TOTAL PRODUCE,390977,Commissioning & Investment,Children's & Education Services,103,Supplies and Services,504,Equipment,5023,Revenue,03.GROCERIES & PROVISIONS
31-Aug-2017,7003873,26.36,REDBRIDGE PRODUCE & FLOWERS LTD T/A TOTAL PRODUCE,390977,Commissioning & Investment,Children's & Education Services,103,Supplies and Services,504,Equipment,5023,Revenue,03.GROCERIES & PROVISIONS
31-Aug-2017,7003873,0.39,REDBRIDGE PRODUCE & FLOWERS LTD T/A TOTAL PRODUCE,390977,Commissioning & Investment,Children's & Education Services,103,Supplies and Services,504,Equipment,5023,Revenue,03.GROCERIES & PROVISIONS
31-Aug-2017,7003873,-2.20,REDBRIDGE PRODUCE & FLOWERS LTD T/A TOTAL PRODUCE,390977,Commissioning & Investment,Children's & Education Services,103,Supplies and Services,504,Equipment,5023,Revenue,03.GROCERIES & PROVISIONS
31-Aug-2017,7003873,14.21,REDBRIDGE PRODUCE & FLOWERS LTD T/A TOTAL PRODUCE,390977,Commissioning & Investment,Children's & Education Services,103,Supplies and Services,504,Equipment,5023,Revenue,03.GROCERIES & PROVISIONS
31-Aug-2017,7003873,0.96,REDBRIDGE PRODUCE & FLOWERS LTD T/A TOTAL PRODUCE,390977,Commissioning & Investment,Children's & Education Services,103,Supplies and Services,504,Equipment,5023,Revenue,03.GROCERIES & PROVISIONS
31-Aug-2017,7003873,24.98,REDBRIDGE PRODUCE & FLOWERS LTD T/A TOTAL PRODUCE,390977,Commissioning & Investment,Children's & Education Services,103,Supplies and Services,504,Equipment,5023,Revenue,03.GROCERIES & PROVISIONS
31-Aug-2017,7003873,4.88,REDBRIDGE PRODUCE & FLOWERS LTD T/A TOTAL PRODUCE,390977,Commissioning & Investment,Children's & Education Services,103,Supplies and Services,504,Equipment,5023,Revenue,03.GROCERIES & PROVISIONS
31-Aug-2017,7003873,0.78,REDBRIDGE PRODUCE & FLOWERS LTD T/A TOTAL PRODUCE,390977,Commissioning & Investment,Children's & Education Services,103,Supplies and Services,504,Equipment,5023,Revenue,03.GROCERIES & PROVISIONS
31-Aug-2017,7003873,2.04,REDBRIDGE PRODUCE & FLOWERS LTD T/A TOTAL PRODUCE,390977,Commissioning & Investment,Children's & Education Services,103,Supplies and Services,504,Equipment,5023,Revenue,03.GROCERIES & PROVISIONS
31-Aug-2017,7003873,6.60,REDBRIDGE PRODUCE & FLOWERS LTD T/A TOTAL PRODUCE,390977,Commissioning & Investment,Children's & Education Services,103,Supplies and Services,504,Equipment,5023,Revenue,03.GROCERIES & PROVISIONS
31-Aug-2017,7003873,13.20,REDBRIDGE PRODUCE & FLOWERS LTD T/A TOTAL PRODUCE,390977,Commissioning & Investment,Children's & Education Services,103,Supplies and Services,504,Equipment,5023,Revenue,03.GROCERIES & PROVISIONS
31-Aug-2017,7003873,14.23,REDBRIDGE PRODUCE & FLOWERS LTD T/A TOTAL PRODUCE,390977,Commissioning & Investment,Children's & Education Services,103,Supplies and Services,504,Equipment,5023,Revenue,03.GROCERIES & PROVISIONS
31-Aug-2017,7003873,22.00,REDBRIDGE PRODUCE & FLOWERS LTD T/A TOTAL PRODUCE,390977,Commissioning & Investment,Children's & Education Services,103,Supplies and Services,504,Equipment,5023,Revenue,03.GROCERIES & PROVISIONS
31-Aug-2017,7003873,0.78,REDBRIDGE PRODUCE & FLOWERS LTD T/A TOTAL PRODUCE,390977,Commissioning & Investment,Children's & Education Services,103,Supplies and Services,504,Equipment,5023,Revenue,03.GROCERIES & PROVISIONS
31-Aug-2017,7003873,2.04,REDBRIDGE PRODUCE & FLOWERS LTD T/A TOTAL PRODUCE,390977,Commissioning & Investment,Children's & Education Services,103,Supplies and Services,504,Equipment,5023,Revenue,03.GROCERIES & PROVISIONS
31-Aug-2017,7003873,2.20,REDBRIDGE PRODUCE & FLOWERS LTD T/A TOTAL PRODUCE,390977,Commissioning & Investment,Children's & Education Services,103,Supplies and Services,504,Equipment,5023,Revenue,03.GROCERIES & PROVISIONS
31-Aug-2017,7003873,1.17,REDBRIDGE PRODUCE & FLOWERS LTD T/A TOTAL PRODUCE,390977,Commissioning & Investment,Children's & Education Services,103,Supplies and Services,504,Equipment,5023,Revenue,03.GROCERIES & PROVISIONS
31-Aug-2017,7003873,1.56,REDBRIDGE PRODUCE & FLOWERS LTD T/A TOTAL PRODUCE,390977,Commissioning & Investment,Children's & Education Services,103,Supplies and Services,504,Equipment,5023,Revenue,03.GROCERIES & PROVISIONS
31-Aug-2017,7003873,12.24,REDBRIDGE PRODUCE & FLOWERS LTD T/A TOTAL PRODUCE,390977,Commissioning & Investment,Children's & Education Services,103,Supplies and Services,504,Equipment,5023,Revenue,03.GROCERIES & PROVISIONS
31-Aug-2017,7003873,1.78,REDBRIDGE PRODUCE & FLOWERS LTD T/A TOTAL PRODUCE,390977,Commissioning & Investment,Children's & Education Services,103,Supplies and Services,504,Equipment,5023,Revenue,03.GROCERIES & PROVISIONS
31-Aug-2017,7003873,4.98,REDBRIDGE PRODUCE & FLOWERS LTD T/A TOTAL PRODUCE,390977,Commissioning & Investment,Children's & Education Services,103,Supplies and Services,504,Equipment,5023,Revenue,03.GROCERIES & PROVISIONS
31-Aug-2017,7003873,30.34,REDBRIDGE PRODUCE & FLOWERS LTD T/A TOTAL PRODUCE,390977,Commissioning & Investment,Children's & Education Services,103,Supplies and Services,504,Equipment,5023,Revenue,03.GROCERIES & PROVISIONS
31-Aug-2017,7003873,-3.06,REDBRIDGE PRODUCE & FLOWERS LTD T/A TOTAL PRODUCE,390977,Commissioning & Investment,Children's & Education Services,103,Supplies and Services,504,Equipment,5023,Revenue,03.GROCERIES & PROVISIONS
31-Aug-2017,7003873,1.56,REDBRIDGE PRODUCE & FLOWERS LTD T/A TOTAL PRODUCE,390977,Commissioning & Investment,Children's & Education Services,103,Supplies and Services,504,Equipment,5023,Revenue,03.GROCERIES & PROVISIONS
31-Aug-2017,7003873,0.78,REDBRIDGE PRODUCE & FLOWERS LTD T/A TOTAL PRODUCE,390977,Commissioning & Investment,Children's & Education Services,103,Supplies and Services,504,Equipment,5023,Revenue,03.GROCERIES & PROVISIONS
31-Aug-2017,7003873,3.06,REDBRIDGE PRODUCE & FLOWERS LTD T/A TOTAL PRODUCE,390977,Commissioning & Investment,Children's & Education Services,103,Supplies and Services,504,Equipment,5023,Revenue,03.GROCERIES & PROVISIONS
31-Aug-2017,7003873,3.06,REDBRIDGE PRODUCE & FLOWERS LTD T/A TOTAL PRODUCE,390977,Commissioning & Investment,Children's & Education Services,103,Supplies and Services,504,Equipment,5023,Revenue,03.GROCERIES & PROVISIONS
31-Aug-2017,7003873,2.20,REDBRIDGE PRODUCE & FLOWERS LTD T/A TOTAL PRODUCE,390977,Commissioning & Investment,Children's & Education Services,103,Supplies and Services,504,Equipment,5023,Revenue,03.GROCERIES & PROVISIONS
31-Aug-2017,7003873,26.19,REDBRIDGE PRODUCE & FLOWERS LTD T/A TOTAL PRODUCE,390977,Commissioning & Investment,Children's & Education Services,103,Supplies and Services,504,Equipment,5023,Revenue,03.GROCERIES & PROVISIONS
31-Aug-2017,7003873,26.18,REDBRIDGE PRODUCE & FLOWERS LTD T/A TOTAL PRODUCE,390977,Commissioning & Investment,Children's & Education Services,103,Supplies and Services,504,Equipment,5023,Revenue,03.GROCERIES & PROVISIONS
31-Aug-2017,7003873,1.15,REDBRIDGE PRODUCE & FLOWERS LTD T/A TOTAL PRODUCE,390977,Commissioning & Investment,Children's & Education Services,103,Supplies and Services,504,Equipment,5023,Revenue,03.GROCERIES & PROVISIONS
31-Aug-2017,7003873,4.08,REDBRIDGE PRODUCE & FLOWERS LTD T/A TOTAL PRODUCE,390977,Commissioning & Investment,Children's & Education Services,103,Supplies and Services,504,Equipment,5023,Revenue,03.GROCERIES & PROVISIONS
31-Aug-2017,7003873,28.02,REDBRIDGE PRODUCE & FLOWERS LTD T/A TOTAL PRODUCE,390977,Commissioning & Investment,Children's & Education Services,103,Supplies and Services,504,Equipment,5023,Revenue,03.GROCERIES & PROVISIONS
31-Aug-2017,7003873,-9.71,REDBRIDGE PRODUCE & FLOWERS LTD T/A TOTAL PRODUCE,390977,Commissioning & Investment,Children's & Education Services,103,Supplies and Services,504,Equipment,5023,Revenue,03.GROCERIES & PROVISIONS
31-Aug-2017,7003873,3.48,REDBRIDGE PRODUCE & FLOWERS LTD T/A TOTAL PRODUCE,390977,Commissioning & Investment,Children's & Education Services,103,Supplies and Services,504,Equipment,5023,Revenue,03.GROCERIES & PROVISIONS
31-Aug-2017,7003873,11.00,REDBRIDGE PRODUCE & FLOWERS LTD T/A TOTAL PRODUCE,390977,Commissioning & Investment,Children's & Education Services,103,Supplies and Services,504,Equipment,5023,Revenue,03.GROCERIES & PROVISIONS
31-Aug-2017,7003873,31.12,REDBRIDGE PRODUCE & FLOWERS LTD T/A TOTAL PRODUCE,390977,Commissioning & Investment,Children's & Education Services,103,Supplies and Services,504,Equipment,5023,Revenue,03.GROCERIES & PROVISIONS
31-Aug-2017,7003873,1.48,REDBRIDGE PRODUCE & FLOWERS LTD T/A TOTAL PRODUCE,390977,Commissioning & Investment,Children's & Education Services,103,Supplies and Services,504,Equipment,5023,Revenue,03.GROCERIES & PROVISIONS
31-Aug-2017,7003873,-4.58,REDBRIDGE PRODUCE & FLOWERS LTD T/A TOTAL PRODUCE,390977,Commissioning & Investment,Children's & Education Services,103,Supplies and Services,504,Equipment,5023,Revenue,03.GROCERIES & PROVISIONS
31-Aug-2017,7003873,60.34,REDBRIDGE PRODUCE & FLOWERS LTD T/A TOTAL PRODUCE,390977,Commissioning & Investment,Children's & Education Services,103,Supplies and Services,504,Equipment,5023,Revenue,03.GROCERIES & PROVISIONS
31-Aug-2017,7003873,4.40,REDBRIDGE PRODUCE & FLOWERS LTD T/A TOTAL PRODUCE,390977,Commissioning & Investment,Children's & Education Services,103,Supplies and Services,504,Equipment,5023,Revenue,03.GROCERIES & PROVISIONS
31-Aug-2017,7003873,27.38,REDBRIDGE PRODUCE & FLOWERS LTD T/A TOTAL PRODUCE,390977,Commissioning & Investment,Children's & Education Services,103,Supplies and Services,504,Equipment,5023,Revenue,03.GROCERIES & PROVISIONS
31-Aug-2017,7003873,5.50,REDBRIDGE PRODUCE & FLOWERS LTD T/A TOTAL PRODUCE,390977,Commissioning & Investment,Children's & Education Services,103,Supplies and Services,504,Equipment,5023,Revenue,03.GROCERIES & PROVISIONS
31-Aug-2017,7003873,12.10,REDBRIDGE PRODUCE & FLOWERS LTD T/A TOTAL PRODUCE,390977,Commissioning & Investment,Children's & Education Services,103,Supplies and Services,504,Equipment,5023,Revenue,03.GROCERIES & PROVISIONS
31-Aug-2017,7003873,1.29,REDBRIDGE PRODUCE & FLOWERS LTD T/A TOTAL PRODUCE,390977,Commissioning & Investment,Children's & Education Services,103,Supplies and Services,504,Equipment,5023,Revenue,03.GROCERIES & PROVISIONS
31-Aug-2017,7003873,-15.25,REDBRIDGE PRODUCE & FLOWERS LTD T/A TOTAL PRODUCE,390977,Commissioning & Investment,Children's & Education Services,103,Supplies and Services,504,Equipment,5023,Revenue,03.GROCERIES & PROVISIONS
31-Aug-2017,7003873,4.08,REDBRIDGE PRODUCE & FLOWERS LTD T/A TOTAL PRODUCE,390977,Commissioning & Investment,Children's & Education Services,103,Supplies and Services,504,Equipment,5023,Revenue,03.GROCERIES & PROVISIONS
31-Aug-2017,7003873,3.30,REDBRIDGE PRODUCE & FLOWERS LTD T/A TOTAL PRODUCE,390977,Commissioning & Investment,Children's & Education Services,103,Supplies and Services,504,Equipment,5023,Revenue,03.GROCERIES & PROVISIONS
31-Aug-2017,7003873,79.14,REDBRIDGE PRODUCE & FLOWERS LTD T/A TOTAL PRODUCE,390977,Commissioning & Investment,Children's & Education Services,103,Supplies and Services,504,Equipment,5023,Revenue,03.GROCERIES & PROVISIONS
31-Aug-2017,7003873,18.16,REDBRIDGE PRODUCE & FLOWERS LTD T/A TOTAL PRODUCE,390977,Commissioning & Investment,Children's & Education Services,103,Supplies and Services,504,Equipment,5023,Revenue,03.GROCERIES & PROVISIONS
31-Aug-2017,7003873,17.11,REDBRIDGE PRODUCE & FLOWERS LTD T/A TOTAL PRODUCE,390977,"Environment, Housing & Leisure",Cultural & Related Services,104,Supplies and Services,504,Equipment,5023,Revenue,03.GROCERIES & PROVISIONS
31-Aug-2017,7003873,101.46,REDBRIDGE PRODUCE & FLOWERS LTD T/A TOTAL PRODUCE,390977,Commissioning & Investment,Children's & Education Services,103,Supplies and Services,504,Equipment,5023,Revenue,03.GROCERIES & PROVISIONS
31-Aug-2017,7003873,0.73,REDBRIDGE PRODUCE & FLOWERS LTD T/A TOTAL PRODUCE,390977,Commissioning & Investment,Children's & Education Services,103,Supplies and Services,504,Equipment,5023,Revenue,03.GROCERIES & PROVISIONS
31-Aug-2017,7003873,22.11,REDBRIDGE PRODUCE & FLOWERS LTD T/A TOTAL PRODUCE,390977,Commissioning & Investment,Children's & Education Services,103,Supplies and Services,504,Equipment,5023,Revenue,03.GROCERIES & PROVISIONS
31-Aug-2017,7003873,66.78,REDBRIDGE PRODUCE & FLOWERS LTD T/A TOTAL PRODUCE,390977,Commissioning & Investment,Children's & Education Services,103,Supplies and Services,504,Equipment,5023,Revenue,03.GROCERIES & PROVISIONS
31-Aug-2017,7003873,11.00,REDBRIDGE PRODUCE & FLOWERS LTD T/A TOTAL PRODUCE,390977,Commissioning & Investment,Children's & Education Services,103,Supplies and Services,504,Equipment,5023,Revenue,03.GROCERIES & PROVISIONS
31-Aug-2017,7003873,15.08,REDBRIDGE PRODUCE & FLOWERS LTD T/A TOTAL PRODUCE,390977,Commissioning & Investment,Children's & Education Services,103,Supplies and Services,504,Equipment,5023,Revenue,03.GROCERIES & PROVISIONS
31-Aug-2017,7003873,9.71,REDBRIDGE PRODUCE & FLOWERS LTD T/A TOTAL PRODUCE,390977,Commissioning & Investment,Children's & Education Services,103,Supplies and Services,504,Equipment,5023,Revenue,03.GROCERIES & PROVISIONS
31-Aug-2017,7003873,99.23,REDBRIDGE PRODUCE & FLOWERS LTD T/A TOTAL PRODUCE,390977,Commissioning & Investment,Children's & Education Services,103,Supplies and Services,504,Equipment,5023,Revenue,03.GROCERIES & PROVISIONS
31-Aug-2017,7003873,4.10,REDBRIDGE PRODUCE & FLOWERS LTD T/A TOTAL PRODUCE,390977,Commissioning & Investment,Children's & Education Services,103,Supplies and Services,504,Equipment,5023,Revenue,03.GROCERIES & PROVISIONS
31-Aug-2017,7003873,95.86,REDBRIDGE PRODUCE & FLOWERS LTD T/A TOTAL PRODUCE,390977,Commissioning & Investment,Children's & Education Services,103,Supplies and Services,504,Equipment,5023,Revenue,03.GROCERIES & PROVISIONS
31-Aug-2017,7003873,25.63,REDBRIDGE PRODUCE & FLOWERS LTD T/A TOTAL PRODUCE,390977,Commissioning & Investment,Children's & Education Services,103,Supplies and Services,504,Equipment,5023,Revenue,03.GROCERIES & PROVISIONS
31-Aug-2017,7003873,1.38,REDBRIDGE PRODUCE & FLOWERS LTD T/A TOTAL PRODUCE,390977,Commissioning & Investment,Children's & Education Services,103,Supplies and Services,504,Equipment,5023,Revenue,03.GROCERIES & PROVISIONS
31-Aug-2017,7003873,0.89,REDBRIDGE PRODUCE & FLOWERS LTD T/A TOTAL PRODUCE,390977,Commissioning & Investment,Children's & Education Services,103,Supplies and Services,504,Equipment,5023,Revenue,03.GROCERIES & PROVISIONS
31-Aug-2017,7003873,9.71,REDBRIDGE PRODUCE & FLOWERS LTD T/A TOTAL PRODUCE,390977,Commissioning & Investment,Children's & Education Services,103,Supplies and Services,504,Equipment,5023,Revenue,03.GROCERIES & PROVISIONS
31-Aug-2017,7003873,-1.53,REDBRIDGE PRODUCE & FLOWERS LTD T/A TOTAL PRODUCE,390977,Commissioning & Investment,Children's & Education Services,103,Supplies and Services,504,Equipment,5023,Revenue,03.GROCERIES & PROVISIONS
31-Aug-2017,7003873,1.59,REDBRIDGE PRODUCE & FLOWERS LTD T/A TOTAL PRODUCE,390977,Commissioning & Investment,Children's & Education Services,103,Supplies and Services,504,Equipment,5023,Revenue,03.GROCERIES & PROVISIONS
31-Aug-2017,7003873,1.02,REDBRIDGE PRODUCE & FLOWERS LTD T/A TOTAL PRODUCE,390977,Commissioning & Investment,Children's & Education Services,103,Supplies and Services,504,Equipment,5023,Revenue,03.GROCERIES & PROVISIONS
31-Aug-2017,7003873,9.71,REDBRIDGE PRODUCE & FLOWERS LTD T/A TOTAL PRODUCE,390977,Commissioning & Investment,Children's & Education Services,103,Supplies and Services,504,Equipment,5023,Revenue,03.GROCERIES & PROVISIONS
31-Aug-2017,7003873,7.32,REDBRIDGE PRODUCE & FLOWERS LTD T/A TOTAL PRODUCE,390977,Commissioning & Investment,Children's & Education Services,103,Supplies and Services,504,Equipment,5023,Revenue,03.GROCERIES & PROVISIONS
31-Aug-2017,7003873,2.34,REDBRIDGE PRODUCE & FLOWERS LTD T/A TOTAL PRODUCE,390977,Commissioning & Investment,Children's & Education Services,103,Supplies and Services,504,Equipment,5023,Revenue,03.GROCERIES & PROVISIONS
31-Aug-2017,7003873,91.91,REDBRIDGE PRODUCE & FLOWERS LTD T/A TOTAL PRODUCE,390977,Commissioning & Investment,Children's & Education Services,103,Supplies and Services,504,Equipment,5023,Revenue,03.GROCERIES & PROVISIONS
31-Aug-2017,7003873,0.39,REDBRIDGE PRODUCE & FLOWERS LTD T/A TOTAL PRODUCE,390977,Commissioning & Investment,Children's & Education Services,103,Supplies and Services,504,Equipment,5023,Revenue,03.GROCERIES & PROVISIONS
31-Aug-2017,7003873,4.40,REDBRIDGE PRODUCE & FLOWERS LTD T/A TOTAL PRODUCE,390977,Commissioning & Investment,Children's & Education Services,103,Supplies and Services,504,Equipment,5023,Revenue,03.GROCERIES & PROVISIONS
31-Aug-2017,7003873,2.29,REDBRIDGE PRODUCE & FLOWERS LTD T/A TOTAL PRODUCE,390977,Commissioning & Investment,Children's & Education Services,103,Supplies and Services,504,Equipment,5023,Revenue,03.GROCERIES & PROVISIONS
31-Aug-2017,7003873,6.60,REDBRIDGE PRODUCE & FLOWERS LTD T/A TOTAL PRODUCE,390977,Commissioning & Investment,Children's & Education Services,103,Supplies and Services,504,Equipment,5023,Revenue,03.GROCERIES & PROVISIONS
31-Aug-2017,7003873,1.64,REDBRIDGE PRODUCE & FLOWERS LTD T/A TOTAL PRODUCE,390977,"Health, Education, Care and Safeguarding",Children's & Education Services,103,Supplies and Services,504,Equipment,5023,Revenue,03.GROCERIES & PROVISIONS
31-Aug-2017,7003873,5.32,REDBRIDGE PRODUCE & FLOWERS LTD T/A TOTAL PRODUCE,390977,"Health, Education, Care and Safeguarding",Children's & Education Services,103,Supplies and Services,504,Equipment,5023,Revenue,03.GROCERIES & PROVISIONS
31-Aug-2017,7003873,2.56,REDBRIDGE PRODUCE & FLOWERS LTD T/A TOTAL PRODUCE,390977,Commissioning & Investment,Children's & Education Services,103,Supplies and Services,504,Equipment,5023,Revenue,03.GROCERIES & PROVISIONS
31-Aug-2017,7003873,0.52,REDBRIDGE PRODUCE & FLOWERS LTD T/A TOTAL PRODUCE,390977,Commissioning & Investment,Children's & Education Services,103,Supplies and Services,504,Equipment,5023,Revenue,03.GROCERIES & PROVISIONS
31-Aug-2017,7003873,1.07,REDBRIDGE PRODUCE & FLOWERS LTD T/A TOTAL PRODUCE,390977,"Health, Education, Care and Safeguarding",Children's & Education Services,103,Supplies and Services,504,Equipment,5023,Revenue,03.GROCERIES & PROVISIONS
31-Aug-2017,7003873,7.70,REDBRIDGE PRODUCE & FLOWERS LTD T/A TOTAL PRODUCE,390977,Commissioning & Investment,Children's & Education Services,103,Supplies and Services,504,Equipment,5023,Revenue,03.GROCERIES & PROVISIONS
31-Aug-2017,7003873,14.45,REDBRIDGE PRODUCE & FLOWERS LTD T/A TOTAL PRODUCE,390977,Commissioning & Investment,Children's & Education Services,103,Supplies and Services,504,Equipment,5023,Revenue,03.GROCERIES & PROVISIONS
31-Aug-2017,7003873,0.39,REDBRIDGE PRODUCE & FLOWERS LTD T/A TOTAL PRODUCE,390977,Commissioning & Investment,Children's & Education Services,103,Supplies and Services,504,Equipment,5023,Revenue,03.GROCERIES & PROVISIONS
31-Aug-2017,7003873,1.46,REDBRIDGE PRODUCE & FLOWERS LTD T/A TOTAL PRODUCE,390977,Commissioning & Investment,Children's & Education Services,103,Supplies and Services,504,Equipment,5023,Revenue,03.GROCERIES & PROVISIONS
31-Aug-2017,7003873,12.24,REDBRIDGE PRODUCE & FLOWERS LTD T/A TOTAL PRODUCE,390977,Commissioning & Investment,Children's & Education Services,103,Supplies and Services,504,Equipment,5023,Revenue,03.GROCERIES & PROVISIONS
31-Aug-2017,7003873,34.50,REDBRIDGE PRODUCE & FLOWERS LTD T/A TOTAL PRODUCE,390977,Commissioning & Investment,Children's & Education Services,103,Supplies and Services,504,Equipment,5023,Revenue,03.GROCERIES & PROVISIONS
31-Aug-2017,7003873,5.98,REDBRIDGE PRODUCE & FLOWERS LTD T/A TOTAL PRODUCE,390977,"Environment, Housing & Leisure",Cultural & Related Services,104,Supplies and Services,504,Equipment,5023,Revenue,03.GROCERIES & PROVISIONS
31-Aug-2017,7003873,1.56,REDBRIDGE PRODUCE & FLOWERS LTD T/A TOTAL PRODUCE,390977,Commissioning & Investment,Children's & Education Services,103,Supplies and Services,504,Equipment,5023,Revenue,03.GROCERIES & PROVISIONS
31-Aug-2017,7003873,18.23,REDBRIDGE PRODUCE & FLOWERS LTD T/A TOTAL PRODUCE,390977,Commissioning & Investment,Children's & Education Services,103,Supplies and Services,504,Equipment,5023,Revenue,03.GROCERIES & PROVISIONS
31-Aug-2017,7003873,1.53,REDBRIDGE PRODUCE & FLOWERS LTD T/A TOTAL PRODUCE,390977,Commissioning & Investment,Children's & Education Services,103,Supplies and Services,504,Equipment,5023,Revenue,03.GROCERIES & PROVISIONS
31-Aug-2017,7003873,4.08,REDBRIDGE PRODUCE & FLOWERS LTD T/A TOTAL PRODUCE,390977,Commissioning & Investment,Children's & Education Services,103,Supplies and Services,504,Equipment,5023,Revenue,03.GROCERIES & PROVISIONS
31-Aug-2017,7003873,1.25,REDBRIDGE PRODUCE & FLOWERS LTD T/A TOTAL PRODUCE,390977,Commissioning & Investment,Children's & Education Services,103,Supplies and Services,504,Equipment,5023,Revenue,03.GROCERIES & PROVISIONS
31-Aug-2017,7003873,0.78,REDBRIDGE PRODUCE & FLOWERS LTD T/A TOTAL PRODUCE,390977,Commissioning & Investment,Children's & Education Services,103,Supplies and Services,504,Equipment,5023,Revenue,03.GROCERIES & PROVISIONS
31-Aug-2017,7003873,1.15,REDBRIDGE PRODUCE & FLOWERS LTD T/A TOTAL PRODUCE,390977,Commissioning & Investment,Children's & Education Services,103,Supplies and Services,504,Equipment,5023,Revenue,03.GROCERIES & PROVISIONS
31-Aug-2017,7003873,1.56,REDBRIDGE PRODUCE & FLOWERS LTD T/A TOTAL PRODUCE,390977,Commissioning & Investment,Children's & Education Services,103,Supplies and Services,504,Equipment,5023,Revenue,03.GROCERIES & PROVISIONS
31-Aug-2017,7003873,1.64,REDBRIDGE PRODUCE & FLOWERS LTD T/A TOTAL PRODUCE,390977,"Health, Education, Care and Safeguarding",Children's & Education Services,103,Supplies and Services,504,Equipment,5023,Revenue,03.GROCERIES & PROVISIONS
31-Aug-2017,7003873,0.78,REDBRIDGE PRODUCE & FLOWERS LTD T/A TOTAL PRODUCE,390977,Commissioning & Investment,Children's & Education Services,103,Supplies and Services,504,Equipment,5023,Revenue,03.GROCERIES & PROVISIONS
31-Aug-2017,7003873,5.50,REDBRIDGE PRODUCE & FLOWERS LTD T/A TOTAL PRODUCE,390977,Commissioning & Investment,Children's & Education Services,103,Supplies and Services,504,Equipment,5023,Revenue,03.GROCERIES & PROVISIONS
31-Aug-2017,7003873,1.29,REDBRIDGE PRODUCE & FLOWERS LTD T/A TOTAL PRODUCE,390977,Commissioning & Investment,Children's & Education Services,103,Supplies and Services,504,Equipment,5023,Revenue,03.GROCERIES & PROVISIONS
31-Aug-2017,7003873,2.15,REDBRIDGE PRODUCE & FLOWERS LTD T/A TOTAL PRODUCE,390977,Commissioning & Investment,Children's & Education Services,103,Supplies and Services,504,Equipment,5023,Revenue,03.GROCERIES & PROVISIONS
31-Aug-2017,7003873,1.17,REDBRIDGE PRODUCE & FLOWERS LTD T/A TOTAL PRODUCE,390977,Commissioning & Investment,Children's & Education Services,103,Supplies and Services,504,Equipment,5023,Revenue,03.GROCERIES & PROVISIONS
31-Aug-2017,7003873,11.00,REDBRIDGE PRODUCE & FLOWERS LTD T/A TOTAL PRODUCE,390977,Commissioning & Investment,Children's & Education Services,103,Supplies and Services,504,Equipment,5023,Revenue,03.GROCERIES & PROVISIONS
31-Aug-2017,7003873,3.10,REDBRIDGE PRODUCE & FLOWERS LTD T/A TOTAL PRODUCE,390977,"Health, Education, Care and Safeguarding",Children's & Education Services,103,Supplies and Services,504,Equipment,5023,Revenue,03.GROCERIES & PROVISIONS
31-Aug-2017,7003873,1.25,REDBRIDGE PRODUCE & FLOWERS LTD T/A TOTAL PRODUCE,390977,Commissioning & Investment,Children's & Education Services,103,Supplies and Services,504,Equipment,5023,Revenue,03.GROCERIES & PROVISIONS
31-Aug-2017,7003873,15.05,REDBRIDGE PRODUCE & FLOWERS LTD T/A TOTAL PRODUCE,390977,Commissioning & Investment,Children's & Education Services,103,Supplies and Services,504,Equipment,5023,Revenue,03.GROCERIES & PROVISIONS
31-Aug-2017,7003873,66.34,REDBRIDGE PRODUCE & FLOWERS LTD T/A TOTAL PRODUCE,390977,Commissioning & Investment,Children's & Education Services,103,Supplies and Services,504,Equipment,5023,Revenue,03.GROCERIES & PROVISIONS
31-Aug-2017,7003873,0.41,REDBRIDGE PRODUCE & FLOWERS LTD T/A TOTAL PRODUCE,390977,"Environment, Housing & Leisure",Cultural & Related Services,104,Supplies and Services,504,Equipment,5023,Revenue,03.GROCERIES & PROVISIONS
31-Aug-2017,7003873,9.32,REDBRIDGE PRODUCE & FLOWERS LTD T/A TOTAL PRODUCE,390977,"Environment, Housing & Leisure",Cultural & Related Services,104,Supplies and Services,504,Equipment,5023,Revenue,03.GROCERIES & PROVISIONS
31-Aug-2017,7003873,1.78,REDBRIDGE PRODUCE & FLOWERS LTD T/A TOTAL PRODUCE,390977,Commissioning & Investment,Children's & Education Services,103,Supplies and Services,504,Equipment,5023,Revenue,03.GROCERIES & PROVISIONS
31-Aug-2017,7003873,2.75,REDBRIDGE PRODUCE & FLOWERS LTD T/A TOTAL PRODUCE,390977,Commissioning & Investment,Children's & Education Services,103,Supplies and Services,504,Equipment,5023,Revenue,03.GROCERIES & PROVISIONS
31-Aug-2017,7003873,10.69,REDBRIDGE PRODUCE & FLOWERS LTD T/A TOTAL PRODUCE,390977,Commissioning & Investment,Children's & Education Services,103,Supplies and Services,504,Equipment,5023,Revenue,03.GROCERIES & PROVISIONS
31-Aug-2017,7003873,23.98,REDBRIDGE PRODUCE & FLOWERS LTD T/A TOTAL PRODUCE,390977,Commissioning & Investment,Children's & Education Services,103,Supplies and Services,504,Equipment,5023,Revenue,03.GROCERIES & PROVISIONS
31-Aug-2017,7003873,4.45,REDBRIDGE PRODUCE & FLOWERS LTD T/A TOTAL PRODUCE,390977,Commissioning & Investment,Children's & Education Services,103,Supplies and Services,504,Equipment,5023,Revenue,03.GROCERIES & PROVISIONS
31-Aug-2017,7003873,8.16,REDBRIDGE PRODUCE & FLOWERS LTD T/A TOTAL PRODUCE,390977,Commissioning & Investment,Children's & Education Services,103,Supplies and Services,504,Equipment,5023,Revenue,03.GROCERIES & PROVISIONS
31-Aug-2017,7003873,4.40,REDBRIDGE PRODUCE & FLOWERS LTD T/A TOTAL PRODUCE,390977,Commissioning & Investment,Children's & Education Services,103,Supplies and Services,504,Equipment,5023,Revenue,03.GROCERIES & PROVISIONS
31-Aug-2017,7003873,3.10,REDBRIDGE PRODUCE & FLOWERS LTD T/A TOTAL PRODUCE,390977,"Health, Education, Care and Safeguarding",Children's & Education Services,103,Supplies and Services,504,Equipment,5023,Revenue,03.GROCERIES & PROVISIONS
31-Aug-2017,7003873,-4.47,REDBRIDGE PRODUCE & FLOWERS LTD T/A TOTAL PRODUCE,390977,"Environment, Housing & Leisure",Adult Social Care,101,Supplies and Services,504,Equipment,5023,Revenue,03.GROCERIES & PROVISIONS
31-Aug-2017,7003873,43.35,REDBRIDGE PRODUCE & FLOWERS LTD T/A TOTAL PRODUCE,390977,"Environment, Housing & Leisure",Adult Social Care,101,Supplies and Services,504,Equipment,5023,Revenue,03.GROCERIES & PROVISIONS
31-Aug-2017,7003873,5.50,REDBRIDGE PRODUCE & FLOWERS LTD T/A TOTAL PRODUCE,390977,Commissioning & Investment,Children's & Education Services,103,Supplies and Services,504,Equipment,5023,Revenue,03.GROCERIES & PROVISIONS
31-Aug-2017,7003873,2.04,REDBRIDGE PRODUCE & FLOWERS LTD T/A TOTAL PRODUCE,390977,Commissioning & Investment,Children's & Education Services,103,Supplies and Services,504,Equipment,5023,Revenue,03.GROCERIES & PROVISIONS
31-Aug-2017,7003873,23.97,REDBRIDGE PRODUCE & FLOWERS LTD T/A TOTAL PRODUCE,390977,Commissioning & Investment,Children's & Education Services,103,Supplies and Services,504,Equipment,5023,Revenue,03.GROCERIES & PROVISIONS
31-Aug-2017,7003873,67.35,REDBRIDGE PRODUCE & FLOWERS LTD T/A TOTAL PRODUCE,390977,Commissioning & Investment,Children's & Education Services,103,Supplies and Services,504,Equipment,5023,Revenue,03.GROCERIES & PROVISIONS
31-Aug-2017,7003873,-1.53,REDBRIDGE PRODUCE & FLOWERS LTD T/A TOTAL PRODUCE,390977,Commissioning & Investment,Children's & Education Services,103,Supplies and Services,504,Equipment,5023,Revenue,03.GROCERIES & PROVISIONS
31-Aug-2017,7003873,0.78,REDBRIDGE PRODUCE & FLOWERS LTD T/A TOTAL PRODUCE,390977,Commissioning & Investment,Children's & Education Services,103,Supplies and Services,504,Equipment,5023,Revenue,03.GROCERIES & PROVISIONS
31-Aug-2017,7003873,4.98,REDBRIDGE PRODUCE & FLOWERS LTD T/A TOTAL PRODUCE,390977,Commissioning & Investment,Children's & Education Services,103,Supplies and Services,504,Equipment,5023,Revenue,03.GROCERIES & PROVISIONS
31-Aug-2017,7003873,1.17,REDBRIDGE PRODUCE & FLOWERS LTD T/A TOTAL PRODUCE,390977,Commissioning & Investment,Children's & Education Services,103,Supplies and Services,504,Equipment,5023,Revenue,03.GROCERIES & PROVISIONS
31-Aug-2017,7003873,-2.97,REDBRIDGE PRODUCE & FLOWERS LTD T/A TOTAL PRODUCE,390977,Commissioning & Investment,Children's & Education Services,103,Supplies and Services,504,Equipment,5023,Revenue,03.GROCERIES & PROVISIONS
31-Aug-2017,7003873,48.89,REDBRIDGE PRODUCE & FLOWERS LTD T/A TOTAL PRODUCE,390977,Commissioning & Investment,Children's & Education Services,103,Supplies and Services,504,Equipment,5023,Revenue,03.GROCERIES & PROVISIONS
31-Aug-2017,7003873,25.28,REDBRIDGE PRODUCE & FLOWERS LTD T/A TOTAL PRODUCE,390977,Commissioning & Investment,Children's & Education Services,103,Supplies and Services,504,Equipment,5023,Revenue,03.GROCERIES & PROVISIONS
31-Aug-2017,7003873,-3.06,REDBRIDGE PRODUCE & FLOWERS LTD T/A TOTAL PRODUCE,390977,Commissioning & Investment,Children's & Education Services,103,Supplies and Services,504,Equipment,5023,Revenue,03.GROCERIES & PROVISIONS
31-Aug-2017,7003873,10.16,REDBRIDGE PRODUCE & FLOWERS LTD T/A TOTAL PRODUCE,390977,"Environment, Housing & Leisure",Cultural & Related Services,104,Supplies and Services,504,Equipment,5023,Revenue,03.GROCERIES & PROVISIONS
31-Aug-2017,7003873,10.08,REDBRIDGE PRODUCE & FLOWERS LTD T/A TOTAL PRODUCE,390977,Commissioning & Investment,Children's & Education Services,103,Supplies and Services,504,Equipment,5023,Revenue,03.GROCERIES & PROVISIONS
31-Aug-2017,7003873,58.86,REDBRIDGE PRODUCE & FLOWERS LTD T/A TOTAL PRODUCE,390977,Commissioning & Investment,Children's & Education Services,103,Supplies and Services,504,Equipment,5023,Revenue,03.GROCERIES & PROVISIONS
31-Aug-2017,7003873,50.48,REDBRIDGE PRODUCE & FLOWERS LTD T/A TOTAL PRODUCE,390977,Commissioning & Investment,Children's & Education Services,103,Supplies and Services,504,Equipment,5023,Revenue,03.GROCERIES & PROVISIONS
31-Aug-2017,7003873,42.05,REDBRIDGE PRODUCE & FLOWERS LTD T/A TOTAL PRODUCE,390977,Commissioning & Investment,Children's & Education Services,103,Supplies and Services,504,Equipment,5023,Revenue,03.GROCERIES & PROVISIONS
31-Aug-2017,7003873,40.43,REDBRIDGE PRODUCE & FLOWERS LTD T/A TOTAL PRODUCE,390977,Commissioning & Investment,Children's & Education Services,103,Supplies and Services,504,Equipment,5023,Revenue,03.GROCERIES & PROVISIONS
31-Aug-2017,7003873,13.20,REDBRIDGE PRODUCE & FLOWERS LTD T/A TOTAL PRODUCE,390977,Commissioning & Investment,Children's & Education Services,103,Supplies and Services,504,Equipment,5023,Revenue,03.GROCERIES & PROVISIONS
31-Aug-2017,7003873,2.19,REDBRIDGE PRODUCE & FLOWERS LTD T/A TOTAL PRODUCE,390977,Commissioning & Investment,Children's & Education Services,103,Supplies and Services,504,Equipment,5023,Revenue,03.GROCERIES & PROVISIONS
31-Aug-2017,7003873,39.51,REDBRIDGE PRODUCE & FLOWERS LTD T/A TOTAL PRODUCE,390977,Commissioning & Investment,Children's & Education Services,103,Supplies and Services,504,Equipment,5023,Revenue,03.GROCERIES & PROVISIONS
31-Aug-2017,7003873,9.98,REDBRIDGE PRODUCE & FLOWERS LTD T/A TOTAL PRODUCE,390977,Commissioning & Investment,Children's & Education Services,103,Supplies and Services,504,Equipment,5023,Revenue,03.GROCERIES & PROVISIONS
31-Aug-2017,7003873,1.46,REDBRIDGE PRODUCE & FLOWERS LTD T/A TOTAL PRODUCE,390977,Commissioning & Investment,Children's & Education Services,103,Supplies and Services,504,Equipment,5023,Revenue,03.GROCERIES & PROVISIONS
31-Aug-2017,7003873,3.64,REDBRIDGE PRODUCE & FLOWERS LTD T/A TOTAL PRODUCE,390977,Commissioning & Investment,Children's & Education Services,103,Supplies and Services,504,Equipment,5023,Revenue,03.GROCERIES & PROVISIONS
31-Aug-2017,7003873,1.56,REDBRIDGE PRODUCE & FLOWERS LTD T/A TOTAL PRODUCE,390977,Commissioning & Investment,Children's & Education Services,103,Supplies and Services,504,Equipment,5023,Revenue,03.GROCERIES & PROVISIONS
31-Aug-2017,7003873,1.78,REDBRIDGE PRODUCE & FLOWERS LTD T/A TOTAL PRODUCE,390977,Commissioning & Investment,Children's & Education Services,103,Supplies and Services,504,Equipment,5023,Revenue,03.GROCERIES & PROVISIONS
31-Aug-2017,7003873,64.85,REDBRIDGE PRODUCE & FLOWERS LTD T/A TOTAL PRODUCE,390977,Commissioning & Investment,Children's & Education Services,103,Supplies and Services,504,Equipment,5023,Revenue,03.GROCERIES & PROVISIONS
31-Aug-2017,7003873,4.40,REDBRIDGE PRODUCE & FLOWERS LTD T/A TOTAL PRODUCE,390977,Commissioning & Investment,Children's & Education Services,103,Supplies and Services,504,Equipment,5023,Revenue,03.GROCERIES & PROVISIONS
31-Aug-2017,7003873,16.06,REDBRIDGE PRODUCE & FLOWERS LTD T/A TOTAL PRODUCE,390977,Commissioning & Investment,Children's & Education Services,103,Supplies and Services,504,Equipment,5023,Revenue,03.GROCERIES & PROVISIONS
31-Aug-2017,7003873,36.77,REDBRIDGE PRODUCE & FLOWERS LTD T/A TOTAL PRODUCE,390977,Commissioning & Investment,Children's & Education Services,103,Supplies and Services,504,Equipment,5023,Revenue,03.GROCERIES & PROVISIONS
31-Aug-2017,7003873,8.16,REDBRIDGE PRODUCE & FLOWERS LTD T/A TOTAL PRODUCE,390977,Commissioning & Investment,Children's & Education Services,103,Supplies and Services,504,Equipment,5023,Revenue,03.GROCERIES & PROVISIONS
31-Aug-2017,7003873,0.59,REDBRIDGE PRODUCE & FLOWERS LTD T/A TOTAL PRODUCE,390977,Commissioning & Investment,Children's & Education Services,103,Supplies and Services,504,Equipment,5023,Revenue,03.GROCERIES & PROVISIONS
31-Aug-2017,7003873,59.52,REDBRIDGE PRODUCE & FLOWERS LTD T/A TOTAL PRODUCE,390977,Commissioning & Investment,Children's & Education Services,103,Supplies and Services,504,Equipment,5023,Revenue,03.GROCERIES & PROVISIONS
31-Aug-2017,7003873,18.76,REDBRIDGE PRODUCE & FLOWERS LTD T/A TOTAL PRODUCE,390977,Commissioning & Investment,Children's & Education Services,103,Supplies and Services,504,Equipment,5023,Revenue,03.GROCERIES & PROVISIONS
31-Aug-2017,7003873,29.31,REDBRIDGE PRODUCE & FLOWERS LTD T/A TOTAL PRODUCE,390977,Commissioning & Investment,Children's & Education Services,103,Supplies and Services,504,Equipment,5023,Revenue,03.GROCERIES & PROVISIONS
31-Aug-2017,7003873,1.56,REDBRIDGE PRODUCE & FLOWERS LTD T/A TOTAL PRODUCE,390977,Commissioning & Investment,Children's & Education Services,103,Supplies and Services,504,Equipment,5023,Revenue,03.GROCERIES & PROVISIONS
31-Aug-2017,7003873,219.22,REDBRIDGE PRODUCE & FLOWERS LTD T/A TOTAL PRODUCE,390977,Commissioning & Investment,Children's & Education Services,103,Supplies and Services,504,Equipment,5023,Revenue,03.GROCERIES & PROVISIONS
31-Aug-2017,7003873,7.64,REDBRIDGE PRODUCE & FLOWERS LTD T/A TOTAL PRODUCE,390977,Commissioning & Investment,Children's & Education Services,103,Supplies and Services,504,Equipment,5023,Revenue,03.GROCERIES & PROVISIONS
31-Aug-2017,7003873,50.46,REDBRIDGE PRODUCE & FLOWERS LTD T/A TOTAL PRODUCE,390977,Commissioning & Investment,Children's & Education Services,103,Supplies and Services,504,Equipment,5023,Revenue,03.GROCERIES & PROVISIONS
31-Aug-2017,7003873,8.75,REDBRIDGE PRODUCE & FLOWERS LTD T/A TOTAL PRODUCE,390977,Commissioning & Investment,Children's & Education Services,103,Supplies and Services,504,Equipment,5023,Revenue,03.GROCERIES & PROVISIONS
31-Aug-2017,7003873,1.22,REDBRIDGE PRODUCE & FLOWERS LTD T/A TOTAL PRODUCE,390977,Commissioning & Investment,Children's & Education Services,103,Supplies and Services,504,Equipment,5023,Revenue,03.GROCERIES & PROVISIONS
31-Aug-2017,7003873,3.21,REDBRIDGE PRODUCE & FLOWERS LTD T/A TOTAL PRODUCE,390977,Commissioning & Investment,Children's & Education Services,103,Supplies and Services,504,Equipment,5023,Revenue,03.GROCERIES & PROVISIONS
31-Aug-2017,7003873,1.53,REDBRIDGE PRODUCE & FLOWERS LTD T/A TOTAL PRODUCE,390977,Commissioning & Investment,Children's & Education Services,103,Supplies and Services,504,Equipment,5023,Revenue,03.GROCERIES & PROVISIONS
31-Aug-2017,7003873,3.75,REDBRIDGE PRODUCE & FLOWERS LTD T/A TOTAL PRODUCE,390977,Commissioning & Investment,Children's & Education Services,103,Supplies and Services,504,Equipment,5023,Revenue,03.GROCERIES & PROVISIONS
31-Aug-2017,7003873,1.15,REDBRIDGE PRODUCE & FLOWERS LTD T/A TOTAL PRODUCE,390977,Commissioning & Investment,Children's & Education Services,103,Supplies and Services,504,Equipment,5023,Revenue,03.GROCERIES & PROVISIONS
31-Aug-2017,7003873,40.34,REDBRIDGE PRODUCE & FLOWERS LTD T/A TOTAL PRODUCE,390977,Commissioning & Investment,Children's & Education Services,103,Supplies and Services,504,Equipment,5023,Revenue,03.GROCERIES & PROVISIONS
31-Aug-2017,7003873,2.15,REDBRIDGE PRODUCE & FLOWERS LTD T/A TOTAL PRODUCE,390977,Commissioning & Investment,Children's & Education Services,103,Supplies and Services,504,Equipment,5023,Revenue,03.GROCERIES & PROVISIONS
31-Aug-2017,7003873,52.90,REDBRIDGE PRODUCE & FLOWERS LTD T/A TOTAL PRODUCE,390977,Commissioning & Investment,Children's & Education Services,103,Supplies and Services,504,Equipment,5023,Revenue,03.GROCERIES & PROVISIONS
31-Aug-2017,7003873,4.40,REDBRIDGE PRODUCE & FLOWERS LTD T/A TOTAL PRODUCE,390977,Commissioning & Investment,Children's & Education Services,103,Supplies and Services,504,Equipment,5023,Revenue,03.GROCERIES & PROVISIONS
31-Aug-2017,7003873,4.40,REDBRIDGE PRODUCE & FLOWERS LTD T/A TOTAL PRODUCE,390977,Commissioning & Investment,Children's & Education Services,103,Supplies and Services,504,Equipment,5023,Revenue,03.GROCERIES & PROVISIONS
31-Aug-2017,7003873,90.38,REDBRIDGE PRODUCE & FLOWERS LTD T/A TOTAL PRODUCE,390977,Commissioning & Investment,Children's & Education Services,103,Supplies and Services,504,Equipment,5023,Revenue,03.GROCERIES & PROVISIONS
31-Aug-2017,7003873,54.53,REDBRIDGE PRODUCE & FLOWERS LTD T/A TOTAL PRODUCE,390977,Commissioning & Investment,Children's & Education Services,103,Supplies and Services,504,Equipment,5023,Revenue,03.GROCERIES & PROVISIONS
31-Aug-2017,7003873,1.02,REDBRIDGE PRODUCE & FLOWERS LTD T/A TOTAL PRODUCE,390977,Commissioning & Investment,Children's & Education Services,103,Supplies and Services,504,Equipment,5023,Revenue,03.GROCERIES & PROVISIONS
31-Aug-2017,7003873,10.20,REDBRIDGE PRODUCE & FLOWERS LTD T/A TOTAL PRODUCE,390977,Commissioning & Investment,Children's & Education Services,103,Supplies and Services,504,Equipment,5023,Revenue,03.GROCERIES & PROVISIONS
31-Aug-2017,7003873,-19.10,REDBRIDGE PRODUCE & FLOWERS LTD T/A TOTAL PRODUCE,390977,Commissioning & Investment,Children's & Education Services,103,Supplies and Services,504,Equipment,5023,Revenue,03.GROCERIES & PROVISIONS
31-Aug-2017,7003873,0.78,REDBRIDGE PRODUCE & FLOWERS LTD T/A TOTAL PRODUCE,390977,Commissioning & Investment,Children's & Education Services,103,Supplies and Services,504,Equipment,5023,Revenue,03.GROCERIES & PROVISIONS
31-Aug-2017,7003873,1.25,REDBRIDGE PRODUCE & FLOWERS LTD T/A TOTAL PRODUCE,390977,Commissioning & Investment,Children's & Education Services,103,Supplies and Services,504,Equipment,5023,Revenue,03.GROCERIES & PROVISIONS
31-Aug-2017,7003873,1.64,REDBRIDGE PRODUCE & FLOWERS LTD T/A TOTAL PRODUCE,390977,"Health, Education, Care and Safeguarding",Children's & Education Services,103,Supplies and Services,504,Equipment,5023,Revenue,03.GROCERIES & PROVISIONS
31-Aug-2017,7003873,1.64,REDBRIDGE PRODUCE & FLOWERS LTD T/A TOTAL PRODUCE,390977,"Health, Education, Care and Safeguarding",Children's & Education Services,103,Supplies and Services,504,Equipment,5023,Revenue,03.GROCERIES & PROVISIONS
31-Aug-2017,7003873,9.16,REDBRIDGE PRODUCE & FLOWERS LTD T/A TOTAL PRODUCE,390977,Commissioning & Investment,Children's & Education Services,103,Supplies and Services,504,Equipment,5023,Revenue,03.GROCERIES & PROVISIONS
31-Aug-2017,7003873,3.06,REDBRIDGE PRODUCE & FLOWERS LTD T/A TOTAL PRODUCE,390977,Commissioning & Investment,Children's & Education Services,103,Supplies and Services,504,Equipment,5023,Revenue,03.GROCERIES & PROVISIONS
31-Aug-2017,7003873,6.96,REDBRIDGE PRODUCE & FLOWERS LTD T/A TOTAL PRODUCE,390977,Commissioning & Investment,Children's & Education Services,103,Supplies and Services,504,Equipment,5023,Revenue,03.GROCERIES & PROVISIONS
31-Aug-2017,7003873,2.04,REDBRIDGE PRODUCE & FLOWERS LTD T/A TOTAL PRODUCE,390977,Commissioning & Investment,Children's & Education Services,103,Supplies and Services,504,Equipment,5023,Revenue,03.GROCERIES & PROVISIONS
31-Aug-2017,7003873,50.51,REDBRIDGE PRODUCE & FLOWERS LTD T/A TOTAL PRODUCE,390977,Commissioning & Investment,Children's & Education Services,103,Supplies and Services,504,Equipment,5023,Revenue,03.GROCERIES & PROVISIONS
31-Aug-2017,7003873,4.40,REDBRIDGE PRODUCE & FLOWERS LTD T/A TOTAL PRODUCE,390977,Commissioning & Investment,Children's & Education Services,103,Supplies and Services,504,Equipment,5023,Revenue,03.GROCERIES & PROVISIONS
31-Aug-2017,7003873,6.60,REDBRIDGE PRODUCE & FLOWERS LTD T/A TOTAL PRODUCE,390977,Commissioning & Investment,Children's & Education Services,103,Supplies and Services,504,Equipment,5023,Revenue,03.GROCERIES & PROVISIONS
31-Aug-2017,7003873,5.77,REDBRIDGE PRODUCE & FLOWERS LTD T/A TOTAL PRODUCE,390977,"Environment, Housing & Leisure",Cultural & Related Services,104,Supplies and Services,504,Equipment,5023,Revenue,03.GROCERIES & PROVISIONS
31-Aug-2017,7003873,4.00,REDBRIDGE PRODUCE & FLOWERS LTD T/A TOTAL PRODUCE,390977,"Environment, Housing & Leisure",Cultural & Related Services,104,Supplies and Services,504,Equipment,5023,Revenue,03.GROCERIES & PROVISIONS
31-Aug-2017,7003873,32.15,REDBRIDGE PRODUCE & FLOWERS LTD T/A TOTAL PRODUCE,390977,Commissioning & Investment,Children's & Education Services,103,Supplies and Services,504,Equipment,5023,Revenue,03.GROCERIES & PROVISIONS
31-Aug-2017,7003873,64.00,REDBRIDGE PRODUCE & FLOWERS LTD T/A TOTAL PRODUCE,390977,Commissioning & Investment,Children's & Education Services,103,Supplies and Services,504,Equipment,5023,Revenue,03.GROCERIES & PROVISIONS
31-Aug-2017,7003873,8.70,REDBRIDGE PRODUCE & FLOWERS LTD T/A TOTAL PRODUCE,390977,"Health, Education, Care and Safeguarding",Children's & Education Services,103,Supplies and Services,504,Equipment,5023,Revenue,03.GROCERIES & PROVISIONS
31-Aug-2017,7003873,0.78,REDBRIDGE PRODUCE & FLOWERS LTD T/A TOTAL PRODUCE,390977,Commissioning & Investment,Children's & Education Services,103,Supplies and Services,504,Equipment,5023,Revenue,03.GROCERIES & PROVISIONS
31-Aug-2017,7003873,2.30,REDBRIDGE PRODUCE & FLOWERS LTD T/A TOTAL PRODUCE,390977,Commissioning & Investment,Children's & Education Services,103,Supplies and Services,504,Equipment,5023,Revenue,03.GROCERIES & PROVISIONS
31-Aug-2017,7003873,1.10,REDBRIDGE PRODUCE & FLOWERS LTD T/A TOTAL PRODUCE,390977,Commissioning & Investment,Children's & Education Services,103,Supplies and Services,504,Equipment,5023,Revenue,03.GROCERIES & PROVISIONS
31-Aug-2017,7003873,3.18,REDBRIDGE PRODUCE & FLOWERS LTD T/A TOTAL PRODUCE,390977,Commissioning & Investment,Children's & Education Services,103,Supplies and Services,504,Equipment,5023,Revenue,03.GROCERIES & PROVISIONS
31-Aug-2017,7003873,2.29,REDBRIDGE PRODUCE & FLOWERS LTD T/A TOTAL PRODUCE,390977,Commissioning & Investment,Children's & Education Services,103,Supplies and Services,504,Equipment,5023,Revenue,03.GROCERIES & PROVISIONS
31-Aug-2017,7003873,0.78,REDBRIDGE PRODUCE & FLOWERS LTD T/A TOTAL PRODUCE,390977,Commissioning & Investment,Children's & Education Services,103,Supplies and Services,504,Equipment,5023,Revenue,03.GROCERIES & PROVISIONS
31-Aug-2017,7003873,46.96,REDBRIDGE PRODUCE & FLOWERS LTD T/A TOTAL PRODUCE,390977,Commissioning & Investment,Children's & Education Services,103,Supplies and Services,504,Equipment,5023,Revenue,03.GROCERIES & PROVISIONS
31-Aug-2017,7003873,3.06,REDBRIDGE PRODUCE & FLOWERS LTD T/A TOTAL PRODUCE,390977,Commissioning & Investment,Children's & Education Services,103,Supplies and Services,504,Equipment,5023,Revenue,03.GROCERIES & PROVISIONS
31-Aug-2017,7003873,4.40,REDBRIDGE PRODUCE & FLOWERS LTD T/A TOTAL PRODUCE,390977,Commissioning & Investment,Children's & Education Services,103,Supplies and Services,504,Equipment,5023,Revenue,03.GROCERIES & PROVISIONS
31-Aug-2017,7003873,13.74,REDBRIDGE PRODUCE & FLOWERS LTD T/A TOTAL PRODUCE,390977,Commissioning & Investment,Children's & Education Services,103,Supplies and Services,504,Equipment,5023,Revenue,03.GROCERIES & PROVISIONS
31-Aug-2017,7003873,46.13,REDBRIDGE PRODUCE & FLOWERS LTD T/A TOTAL PRODUCE,390977,Commissioning & Investment,Children's & Education Services,103,Supplies and Services,504,Equipment,5023,Revenue,03.GROCERIES & PROVISIONS
31-Aug-2017,7003873,16.14,REDBRIDGE PRODUCE & FLOWERS LTD T/A TOTAL PRODUCE,390977,Commissioning & Investment,Children's & Education Services,103,Supplies and Services,504,Equipment,5023,Revenue,03.GROCERIES & PROVISIONS
31-Aug-2017,7003873,10.94,REDBRIDGE PRODUCE & FLOWERS LTD T/A TOTAL PRODUCE,390977,Commissioning & Investment,Children's & Education Services,103,Supplies and Services,504,Equipment,5023,Revenue,03.GROCERIES & PROVISIONS
31-Aug-2017,7003873,1.47,REDBRIDGE PRODUCE & FLOWERS LTD T/A TOTAL PRODUCE,390977,Commissioning & Investment,Children's & Education Services,103,Supplies and Services,504,Equipment,5023,Revenue,03.GROCERIES & PROVISIONS
31-Aug-2017,7003873,95.25,REDBRIDGE PRODUCE & FLOWERS LTD T/A TOTAL PRODUCE,390977,Commissioning & Investment,Children's & Education Services,103,Supplies and Services,504,Equipment,5023,Revenue,03.GROCERIES & PROVISIONS
31-Aug-2017,7003873,5.50,REDBRIDGE PRODUCE & FLOWERS LTD T/A TOTAL PRODUCE,390977,Commissioning & Investment,Children's & Education Services,103,Supplies and Services,504,Equipment,5023,Revenue,03.GROCERIES & PROVISIONS
31-Aug-2017,7003873,10.20,REDBRIDGE PRODUCE & FLOWERS LTD T/A TOTAL PRODUCE,390977,Commissioning & Investment,Children's & Education Services,103,Supplies and Services,504,Equipment,5023,Revenue,03.GROCERIES & PROVISIONS
31-Aug-2017,7003873,-6.24,REDBRIDGE PRODUCE & FLOWERS LTD T/A TOTAL PRODUCE,390977,Commissioning & Investment,Children's & Education Services,103,Supplies and Services,504,Equipment,5023,Revenue,03.GROCERIES & PROVISIONS
31-Aug-2017,7003873,50.58,REDBRIDGE PRODUCE & FLOWERS LTD T/A TOTAL PRODUCE,390977,Commissioning & Investment,Children's & Education Services,103,Supplies and Services,504,Equipment,5023,Revenue,03.GROCERIES & PROVISIONS
31-Aug-2017,7003873,-1.25,REDBRIDGE PRODUCE & FLOWERS LTD T/A TOTAL PRODUCE,390977,Commissioning & Investment,Children's & Education Services,103,Supplies and Services,504,Equipment,5023,Revenue,03.GROCERIES & PROVISIONS
31-Aug-2017,7003873,33.43,REDBRIDGE PRODUCE & FLOWERS LTD T/A TOTAL PRODUCE,390977,Commissioning & Investment,Children's & Education Services,103,Supplies and Services,504,Equipment,5023,Revenue,03.GROCERIES & PROVISIONS
31-Aug-2017,7003873,1.56,REDBRIDGE PRODUCE & FLOWERS LTD T/A TOTAL PRODUCE,390977,Commissioning & Investment,Children's & Education Services,103,Supplies and Services,504,Equipment,5023,Revenue,03.GROCERIES & PROVISIONS
31-Aug-2017,7003873,-19.20,REDBRIDGE PRODUCE & FLOWERS LTD T/A TOTAL PRODUCE,390977,Commissioning & Investment,Children's & Education Services,103,Supplies and Services,504,Equipment,5023,Revenue,03.GROCERIES & PROVISIONS
31-Aug-2017,7003873,2.29,REDBRIDGE PRODUCE & FLOWERS LTD T/A TOTAL PRODUCE,390977,Commissioning & Investment,Children's & Education Services,103,Supplies and Services,504,Equipment,5023,Revenue,03.GROCERIES & PROVISIONS
31-Aug-2017,7003873,3.95,REDBRIDGE PRODUCE & FLOWERS LTD T/A TOTAL PRODUCE,390977,Commissioning & Investment,Children's & Education Services,103,Supplies and Services,504,Equipment,5023,Revenue,03.GROCERIES & PROVISIONS
31-Aug-2017,7003873,6.60,REDBRIDGE PRODUCE & FLOWERS LTD T/A TOTAL PRODUCE,390977,Commissioning & Investment,Children's & Education Services,103,Supplies and Services,504,Equipment,5023,Revenue,03.GROCERIES & PROVISIONS
31-Aug-2017,7003873,6.12,REDBRIDGE PRODUCE & FLOWERS LTD T/A TOTAL PRODUCE,390977,Commissioning & Investment,Children's & Education Services,103,Supplies and Services,504,Equipment,5023,Revenue,03.GROCERIES & PROVISIONS
31-Aug-2017,7003873,4.40,REDBRIDGE PRODUCE & FLOWERS LTD T/A TOTAL PRODUCE,390977,Commissioning & Investment,Children's & Education Services,103,Supplies and Services,504,Equipment,5023,Revenue,03.GROCERIES & PROVISIONS
31-Aug-2017,7003873,17.24,REDBRIDGE PRODUCE & FLOWERS LTD T/A TOTAL PRODUCE,390977,Commissioning & Investment,Children's & Education Services,103,Supplies and Services,504,Equipment,5023,Revenue,03.GROCERIES & PROVISIONS
31-Aug-2017,7003873,16.24,REDBRIDGE PRODUCE & FLOWERS LTD T/A TOTAL PRODUCE,390977,Commissioning & Investment,Children's & Education Services,103,Supplies and Services,504,Equipment,5023,Revenue,03.GROCERIES & PROVISIONS
31-Aug-2017,7003873,8.80,REDBRIDGE PRODUCE & FLOWERS LTD T/A TOTAL PRODUCE,390977,Commissioning & Investment,Children's & Education Services,103,Supplies and Services,504,Equipment,5023,Revenue,03.GROCERIES & PROVISIONS
31-Aug-2017,7003873,3.06,REDBRIDGE PRODUCE & FLOWERS LTD T/A TOTAL PRODUCE,390977,Commissioning & Investment,Children's & Education Services,103,Supplies and Services,504,Equipment,5023,Revenue,03.GROCERIES & PROVISIONS
31-Aug-2017,7003873,0.95,REDBRIDGE PRODUCE & FLOWERS LTD T/A TOTAL PRODUCE,390977,Commissioning & Investment,Children's & Education Services,103,Supplies and Services,504,Equipment,5023,Revenue,03.GROCERIES & PROVISIONS
31-Aug-2017,7003873,2.22,REDBRIDGE PRODUCE & FLOWERS LTD T/A TOTAL PRODUCE,390977,Commissioning & Investment,Children's & Education Services,103,Supplies and Services,504,Equipment,5023,Revenue,03.GROCERIES & PROVISIONS
31-Aug-2017,7003873,-5.22,REDBRIDGE PRODUCE & FLOWERS LTD T/A TOTAL PRODUCE,390977,Commissioning & Investment,Children's & Education Services,103,Supplies and Services,504,Equipment,5023,Revenue,03.GROCERIES & PROVISIONS
31-Aug-2017,7003873,123.82,REDBRIDGE PRODUCE & FLOWERS LTD T/A TOTAL PRODUCE,390977,Commissioning & Investment,Children's & Education Services,103,Supplies and Services,504,Equipment,5023,Revenue,03.GROCERIES & PROVISIONS
31-Aug-2017,7003873,88.94,REDBRIDGE PRODUCE & FLOWERS LTD T/A TOTAL PRODUCE,390977,Commissioning & Investment,Children's & Education Services,103,Supplies and Services,504,Equipment,5023,Revenue,03.GROCERIES & PROVISIONS
31-Aug-2017,7003873,0.49,REDBRIDGE PRODUCE & FLOWERS LTD T/A TOTAL PRODUCE,390977,Commissioning & Investment,Children's & Education Services,103,Supplies and Services,504,Equipment,5023,Revenue,03.GROCERIES & PROVISIONS
31-Aug-2017,7003873,32.00,REDBRIDGE PRODUCE & FLOWERS LTD T/A TOTAL PRODUCE,390977,Commissioning & Investment,Children's & Education Services,103,Supplies and Services,504,Equipment,5023,Revenue,03.GROCERIES & PROVISIONS
31-Aug-2017,7003873,1.56,REDBRIDGE PRODUCE & FLOWERS LTD T/A TOTAL PRODUCE,390977,Commissioning & Investment,Children's & Education Services,103,Supplies and Services,504,Equipment,5023,Revenue,03.GROCERIES & PROVISIONS
31-Aug-2017,7003873,9.82,REDBRIDGE PRODUCE & FLOWERS LTD T/A TOTAL PRODUCE,390977,Commissioning & Investment,Children's & Education Services,103,Supplies and Services,504,Equipment,5023,Revenue,03.GROCERIES & PROVISIONS
31-Aug-2017,7003873,75.40,REDBRIDGE PRODUCE & FLOWERS LTD T/A TOTAL PRODUCE,390977,Commissioning & Investment,Children's & Education Services,103,Supplies and Services,504,Equipment,5023,Revenue,03.GROCERIES & PROVISIONS
31-Aug-2017,7003873,35.77,REDBRIDGE PRODUCE & FLOWERS LTD T/A TOTAL PRODUCE,390977,Commissioning & Investment,Children's & Education Services,103,Supplies and Services,504,Equipment,5023,Revenue,03.GROCERIES & PROVISIONS
31-Aug-2017,7003873,1.55,REDBRIDGE PRODUCE & FLOWERS LTD T/A TOTAL PRODUCE,390977,Commissioning & Investment,Children's & Education Services,103,Supplies and Services,504,Equipment,5023,Revenue,03.GROCERIES & PROVISIONS
31-Aug-2017,7003873,2.04,REDBRIDGE PRODUCE & FLOWERS LTD T/A TOTAL PRODUCE,390977,Commissioning & Investment,Children's & Education Services,103,Supplies and Services,504,Equipment,5023,Revenue,03.GROCERIES & PROVISIONS
31-Aug-2017,7003873,3.30,REDBRIDGE PRODUCE & FLOWERS LTD T/A TOTAL PRODUCE,390977,Commissioning & Investment,Children's & Education Services,103,Supplies and Services,504,Equipment,5023,Revenue,03.GROCERIES & PROVISIONS
31-Aug-2017,7003873,43.74,REDBRIDGE PRODUCE & FLOWERS LTD T/A TOTAL PRODUCE,390977,Commissioning & Investment,Children's & Education Services,103,Supplies and Services,504,Equipment,5023,Revenue,03.GROCERIES & PROVISIONS
31-Aug-2017,7003873,55.45,REDBRIDGE PRODUCE & FLOWERS LTD T/A TOTAL PRODUCE,390977,"Environment, Housing & Leisure",Cultural & Related Services,104,Supplies and Services,504,Equipment,5023,Revenue,03.GROCERIES & PROVISIONS
31-Aug-2017,7003873,4.40,REDBRIDGE PRODUCE & FLOWERS LTD T/A TOTAL PRODUCE,390977,Commissioning & Investment,Children's & Education Services,103,Supplies and Services,504,Equipment,5023,Revenue,03.GROCERIES & PROVISIONS
31-Aug-2017,7003873,63.44,REDBRIDGE PRODUCE & FLOWERS LTD T/A TOTAL PRODUCE,390977,Commissioning & Investment,Children's & Education Services,103,Supplies and Services,504,Equipment,5023,Revenue,03.GROCERIES & PROVISIONS
31-Aug-2017,7003873,0.79,REDBRIDGE PRODUCE & FLOWERS LTD T/A TOTAL PRODUCE,390977,Commissioning & Investment,Children's & Education Services,103,Supplies and Services,504,Equipment,5023,Revenue,03.GROCERIES & PROVISIONS
31-Aug-2017,7003873,-4.08,REDBRIDGE PRODUCE & FLOWERS LTD T/A TOTAL PRODUCE,390977,Commissioning & Investment,Children's & Education Services,103,Supplies and Services,504,Equipment,5023,Revenue,03.GROCERIES & PROVISIONS
31-Aug-2017,7003873,31.59,REDBRIDGE PRODUCE & FLOWERS LTD T/A TOTAL PRODUCE,390977,Commissioning & Investment,Children's & Education Services,103,Supplies and Services,504,Equipment,5023,Revenue,03.GROCERIES & PROVISIONS
31-Aug-2017,7003873,3.06,REDBRIDGE PRODUCE & FLOWERS LTD T/A TOTAL PRODUCE,390977,Commissioning & Investment,Children's & Education Services,103,Supplies and Services,504,Equipment,5023,Revenue,03.GROCERIES & PROVISIONS
31-Aug-2017,7003873,1.56,REDBRIDGE PRODUCE & FLOWERS LTD T/A TOTAL PRODUCE,390977,Commissioning & Investment,Children's & Education Services,103,Supplies and Services,504,Equipment,5023,Revenue,03.GROCERIES & PROVISIONS
31-Aug-2017,7003873,1.56,REDBRIDGE PRODUCE & FLOWERS LTD T/A TOTAL PRODUCE,390977,Commissioning & Investment,Children's & Education Services,103,Supplies and Services,504,Equipment,5023,Revenue,03.GROCERIES & PROVISIONS
31-Aug-2017,7003873,1.78,REDBRIDGE PRODUCE & FLOWERS LTD T/A TOTAL PRODUCE,390977,Commissioning & Investment,Children's & Education Services,103,Supplies and Services,504,Equipment,5023,Revenue,03.GROCERIES & PROVISIONS
31-Aug-2017,7003873,-2.31,REDBRIDGE PRODUCE & FLOWERS LTD T/A TOTAL PRODUCE,390977,Commissioning & Investment,Children's & Education Services,103,Supplies and Services,504,Equipment,5023,Revenue,03.GROCERIES & PROVISIONS
31-Aug-2017,7003873,1.25,REDBRIDGE PRODUCE & FLOWERS LTD T/A TOTAL PRODUCE,390977,Commissioning & Investment,Children's & Education Services,103,Supplies and Services,504,Equipment,5023,Revenue,03.GROCERIES & PROVISIONS
31-Aug-2017,7003873,1.46,REDBRIDGE PRODUCE & FLOWERS LTD T/A TOTAL PRODUCE,390977,Commissioning & Investment,Children's & Education Services,103,Supplies and Services,504,Equipment,5023,Revenue,03.GROCERIES & PROVISIONS
31-Aug-2017,7003873,-1.53,REDBRIDGE PRODUCE & FLOWERS LTD T/A TOTAL PRODUCE,390977,Commissioning & Investment,Children's & Education Services,103,Supplies and Services,504,Equipment,5023,Revenue,03.GROCERIES & PROVISIONS
31-Aug-2017,7003873,63.13,REDBRIDGE PRODUCE & FLOWERS LTD T/A TOTAL PRODUCE,390977,Commissioning & Investment,Children's & Education Services,103,Supplies and Services,504,Equipment,5023,Revenue,03.GROCERIES & PROVISIONS
31-Aug-2017,7003873,40.73,REDBRIDGE PRODUCE & FLOWERS LTD T/A TOTAL PRODUCE,390977,Commissioning & Investment,Children's & Education Services,103,Supplies and Services,504,Equipment,5023,Revenue,03.GROCERIES & PROVISIONS
31-Aug-2017,7003873,1.69,REDBRIDGE PRODUCE & FLOWERS LTD T/A TOTAL PRODUCE,390977,Commissioning & Investment,Children's & Education Services,103,Supplies and Services,504,Equipment,5023,Revenue,03.GROCERIES & PROVISIONS
31-Aug-2017,7003873,1.22,REDBRIDGE PRODUCE & FLOWERS LTD T/A TOTAL PRODUCE,390977,Commissioning & Investment,Children's & Education Services,103,Supplies and Services,504,Equipment,5023,Revenue,03.GROCERIES & PROVISIONS
31-Aug-2017,7003873,1.53,REDBRIDGE PRODUCE & FLOWERS LTD T/A TOTAL PRODUCE,390977,Commissioning & Investment,Children's & Education Services,103,Supplies and Services,504,Equipment,5023,Revenue,03.GROCERIES & PROVISIONS
31-Aug-2017,7003873,0.78,REDBRIDGE PRODUCE & FLOWERS LTD T/A TOTAL PRODUCE,390977,Commissioning & Investment,Children's & Education Services,103,Supplies and Services,504,Equipment,5023,Revenue,03.GROCERIES & PROVISIONS
31-Aug-2017,7003873,47.23,REDBRIDGE PRODUCE & FLOWERS LTD T/A TOTAL PRODUCE,390977,Commissioning & Investment,Children's & Education Services,103,Supplies and Services,504,Equipment,5023,Revenue,03.GROCERIES & PROVISIONS
31-Aug-2017,7003873,47.13,REDBRIDGE PRODUCE & FLOWERS LTD T/A TOTAL PRODUCE,390977,Commissioning & Investment,Children's & Education Services,103,Supplies and Services,504,Equipment,5023,Revenue,03.GROCERIES & PROVISIONS
31-Aug-2017,7003873,1.15,REDBRIDGE PRODUCE & FLOWERS LTD T/A TOTAL PRODUCE,390977,Commissioning & Investment,Children's & Education Services,103,Supplies and Services,504,Equipment,5023,Revenue,03.GROCERIES & PROVISIONS
31-Aug-2017,7003873,57.12,REDBRIDGE PRODUCE & FLOWERS LTD T/A TOTAL PRODUCE,390977,Commissioning & Investment,Children's & Education Services,103,Supplies and Services,504,Equipment,5023,Revenue,03.GROCERIES & PROVISIONS
31-Aug-2017,7003873,44.56,REDBRIDGE PRODUCE & FLOWERS LTD T/A TOTAL PRODUCE,390977,Commissioning & Investment,Children's & Education Services,103,Supplies and Services,504,Equipment,5023,Revenue,03.GROCERIES & PROVISIONS
31-Aug-2017,7003873,3.15,REDBRIDGE PRODUCE & FLOWERS LTD T/A TOTAL PRODUCE,390977,Commissioning & Investment,Children's & Education Services,103,Supplies and Services,504,Equipment,5023,Revenue,03.GROCERIES & PROVISIONS
31-Aug-2017,7003873,60.24,REDBRIDGE PRODUCE & FLOWERS LTD T/A TOTAL PRODUCE,390977,Commissioning & Investment,Children's & Education Services,103,Supplies and Services,504,Equipment,5023,Revenue,03.GROCERIES & PROVISIONS
31-Aug-2017,7003873,33.00,REDBRIDGE PRODUCE & FLOWERS LTD T/A TOTAL PRODUCE,390977,Commissioning & Investment,Children's & Education Services,103,Supplies and Services,504,Equipment,5023,Revenue,03.GROCERIES & PROVISIONS
31-Aug-2017,7003873,5.50,REDBRIDGE PRODUCE & FLOWERS LTD T/A TOTAL PRODUCE,390977,Commissioning & Investment,Children's & Education Services,103,Supplies and Services,504,Equipment,5023,Revenue,03.GROCERIES & PROVISIONS
31-Aug-2017,7003873,16.24,REDBRIDGE PRODUCE & FLOWERS LTD T/A TOTAL PRODUCE,390977,Commissioning & Investment,Children's & Education Services,103,Supplies and Services,504,Equipment,5023,Revenue,03.GROCERIES & PROVISIONS
31-Aug-2017,7003873,2.15,REDBRIDGE PRODUCE & FLOWERS LTD T/A TOTAL PRODUCE,390977,Commissioning & Investment,Children's & Education Services,103,Supplies and Services,504,Equipment,5023,Revenue,03.GROCERIES & PROVISIONS
31-Aug-2017,7003873,1.02,REDBRIDGE PRODUCE & FLOWERS LTD T/A TOTAL PRODUCE,390977,Commissioning & Investment,Children's & Education Services,103,Supplies and Services,504,Equipment,5023,Revenue,03.GROCERIES & PROVISIONS
31-Aug-2017,7003873,25.70,REDBRIDGE PRODUCE & FLOWERS LTD T/A TOTAL PRODUCE,390977,Commissioning & Investment,Children's & Education Services,103,Supplies and Services,504,Equipment,5023,Revenue,03.GROCERIES & PROVISIONS
31-Aug-2017,7003873,4.40,REDBRIDGE PRODUCE & FLOWERS LTD T/A TOTAL PRODUCE,390977,Commissioning & Investment,Children's & Education Services,103,Supplies and Services,504,Equipment,5023,Revenue,03.GROCERIES & PROVISIONS
31-Aug-2017,7003873,3.38,REDBRIDGE PRODUCE & FLOWERS LTD T/A TOTAL PRODUCE,390977,Commissioning & Investment,Children's & Education Services,103,Supplies and Services,504,Equipment,5023,Revenue,03.GROCERIES & PROVISIONS
31-Aug-2017,7003873,1.07,REDBRIDGE PRODUCE & FLOWERS LTD T/A TOTAL PRODUCE,390977,"Health, Education, Care and Safeguarding",Children's & Education Services,103,Supplies and Services,504,Equipment,5023,Revenue,03.GROCERIES & PROVISIONS
31-Aug-2017,7003873,31.75,REDBRIDGE PRODUCE & FLOWERS LTD T/A TOTAL PRODUCE,390977,Commissioning & Investment,Children's & Education Services,103,Supplies and Services,504,Equipment,5023,Revenue,03.GROCERIES & PROVISIONS
31-Aug-2017,7003873,8.40,REDBRIDGE PRODUCE & FLOWERS LTD T/A TOTAL PRODUCE,390977,Commissioning & Investment,Children's & Education Services,103,Supplies and Services,504,Equipment,5023,Revenue,03.GROCERIES & PROVISIONS
31-Aug-2017,7003873,30.73,REDBRIDGE PRODUCE & FLOWERS LTD T/A TOTAL PRODUCE,390977,Commissioning & Investment,Children's & Education Services,103,Supplies and Services,504,Equipment,5023,Revenue,03.GROCERIES & PROVISIONS
31-Aug-2017,7003873,1.08,REDBRIDGE PRODUCE & FLOWERS LTD T/A TOTAL PRODUCE,390977,Commissioning & Investment,Children's & Education Services,103,Supplies and Services,504,Equipment,5023,Revenue,03.GROCERIES & PROVISIONS
31-Aug-2017,7003873,22.00,REDBRIDGE PRODUCE & FLOWERS LTD T/A TOTAL PRODUCE,390977,Commissioning & Investment,Children's & Education Services,103,Supplies and Services,504,Equipment,5023,Revenue,03.GROCERIES & PROVISIONS
31-Aug-2017,7003873,23.78,REDBRIDGE PRODUCE & FLOWERS LTD T/A TOTAL PRODUCE,390977,Commissioning & Investment,Children's & Education Services,103,Supplies and Services,504,Equipment,5023,Revenue,03.GROCERIES & PROVISIONS
31-Aug-2017,7003873,1.92,REDBRIDGE PRODUCE & FLOWERS LTD T/A TOTAL PRODUCE,390977,Commissioning & Investment,Children's & Education Services,103,Supplies and Services,504,Equipment,5023,Revenue,03.GROCERIES & PROVISIONS
31-Aug-2017,7003873,2.88,REDBRIDGE PRODUCE & FLOWERS LTD T/A TOTAL PRODUCE,390977,Commissioning & Investment,Children's & Education Services,103,Supplies and Services,504,Equipment,5023,Revenue,03.GROCERIES & PROVISIONS
31-Aug-2017,7003873,5.50,REDBRIDGE PRODUCE & FLOWERS LTD T/A TOTAL PRODUCE,390977,Commissioning & Investment,Children's & Education Services,103,Supplies and Services,504,Equipment,5023,Revenue,03.GROCERIES & PROVISIONS
31-Aug-2017,7003873,6.60,REDBRIDGE PRODUCE & FLOWERS LTD T/A TOTAL PRODUCE,390977,Commissioning & Investment,Children's & Education Services,103,Supplies and Services,504,Equipment,5023,Revenue,03.GROCERIES & PROVISIONS
31-Aug-2017,7003873,-1.20,REDBRIDGE PRODUCE & FLOWERS LTD T/A TOTAL PRODUCE,390977,Commissioning & Investment,Children's & Education Services,103,Supplies and Services,504,Equipment,5023,Revenue,03.GROCERIES & PROVISIONS
31-Aug-2017,7003873,22.76,REDBRIDGE PRODUCE & FLOWERS LTD T/A TOTAL PRODUCE,390977,Commissioning & Investment,Children's & Education Services,103,Supplies and Services,504,Equipment,5023,Revenue,03.GROCERIES & PROVISIONS
31-Aug-2017,7003873,4.58,REDBRIDGE PRODUCE & FLOWERS LTD T/A TOTAL PRODUCE,390977,Commissioning & Investment,Children's & Education Services,103,Supplies and Services,504,Equipment,5023,Revenue,03.GROCERIES & PROVISIONS
31-Aug-2017,7003873,2.04,REDBRIDGE PRODUCE & FLOWERS LTD T/A TOTAL PRODUCE,390977,Commissioning & Investment,Children's & Education Services,103,Supplies and Services,504,Equipment,5023,Revenue,03.GROCERIES & PROVISIONS
31-Aug-2017,7003873,46.02,REDBRIDGE PRODUCE & FLOWERS LTD T/A TOTAL PRODUCE,390977,Commissioning & Investment,Children's & Education Services,103,Supplies and Services,504,Equipment,5023,Revenue,03.GROCERIES & PROVISIONS
31-Aug-2017,7003873,3.56,REDBRIDGE PRODUCE & FLOWERS LTD T/A TOTAL PRODUCE,390977,Commissioning & Investment,Children's & Education Services,103,Supplies and Services,504,Equipment,5023,Revenue,03.GROCERIES & PROVISIONS
31-Aug-2017,7003873,26.82,REDBRIDGE PRODUCE & FLOWERS LTD T/A TOTAL PRODUCE,390977,Commissioning & Investment,Children's & Education Services,103,Supplies and Services,504,Equipment,5023,Revenue,03.GROCERIES & PROVISIONS
31-Aug-2017,7003873,82.29,REDBRIDGE PRODUCE & FLOWERS LTD T/A TOTAL PRODUCE,390977,Commissioning & Investment,Children's & Education Services,103,Supplies and Services,504,Equipment,5023,Revenue,03.GROCERIES & PROVISIONS
31-Aug-2017,7003873,1.78,REDBRIDGE PRODUCE & FLOWERS LTD T/A TOTAL PRODUCE,390977,Commissioning & Investment,Children's & Education Services,103,Supplies and Services,504,Equipment,5023,Revenue,03.GROCERIES & PROVISIONS
31-Aug-2017,7003873,1.78,REDBRIDGE PRODUCE & FLOWERS LTD T/A TOTAL PRODUCE,390977,Commissioning & Investment,Children's & Education Services,103,Supplies and Services,504,Equipment,5023,Revenue,03.GROCERIES & PROVISIONS
31-Aug-2017,7003873,29.39,REDBRIDGE PRODUCE & FLOWERS LTD T/A TOTAL PRODUCE,390977,Commissioning & Investment,Children's & Education Services,103,Supplies and Services,504,Equipment,5023,Revenue,03.GROCERIES & PROVISIONS
31-Aug-2017,7003873,61.38,REDBRIDGE PRODUCE & FLOWERS LTD T/A TOTAL PRODUCE,390977,Commissioning & Investment,Children's & Education Services,103,Supplies and Services,504,Equipment,5023,Revenue,03.GROCERIES & PROVISIONS
31-Aug-2017,7003873,4.88,REDBRIDGE PRODUCE & FLOWERS LTD T/A TOTAL PRODUCE,390977,Commissioning & Investment,Children's & Education Services,103,Supplies and Services,504,Equipment,5023,Revenue,03.GROCERIES & PROVISIONS
31-Aug-2017,7003873,0.78,REDBRIDGE PRODUCE & FLOWERS LTD T/A TOTAL PRODUCE,390977,Commissioning & Investment,Children's & Education Services,103,Supplies and Services,504,Equipment,5023,Revenue,03.GROCERIES & PROVISIONS
31-Aug-2017,7003873,1.78,REDBRIDGE PRODUCE & FLOWERS LTD T/A TOTAL PRODUCE,390977,Commissioning & Investment,Children's & Education Services,103,Supplies and Services,504,Equipment,5023,Revenue,03.GROCERIES & PROVISIONS
31-Aug-2017,7003873,25.04,REDBRIDGE PRODUCE & FLOWERS LTD T/A TOTAL PRODUCE,390977,"Environment, Housing & Leisure",Adult Social Care,101,Supplies and Services,504,Equipment,5023,Revenue,03.GROCERIES & PROVISIONS
31-Aug-2017,7003873,38.89,REDBRIDGE PRODUCE & FLOWERS LTD T/A TOTAL PRODUCE,390977,Commissioning & Investment,Children's & Education Services,103,Supplies and Services,504,Equipment,5023,Revenue,03.GROCERIES & PROVISIONS
31-Aug-2017,7003873,-16.10,REDBRIDGE PRODUCE & FLOWERS LTD T/A TOTAL PRODUCE,390977,Commissioning & Investment,Children's & Education Services,103,Supplies and Services,504,Equipment,5023,Revenue,03.GROCERIES & PROVISIONS
31-Aug-2017,7003873,0.41,REDBRIDGE PRODUCE & FLOWERS LTD T/A TOTAL PRODUCE,390977,"Environment, Housing & Leisure",Cultural & Related Services,104,Supplies and Services,504,Equipment,5023,Revenue,03.GROCERIES & PROVISIONS
31-Aug-2017,7003873,10.16,REDBRIDGE PRODUCE & FLOWERS LTD T/A TOTAL PRODUCE,390977,"Environment, Housing & Leisure",Cultural & Related Services,104,Supplies and Services,504,Equipment,5023,Revenue,03.GROCERIES & PROVISIONS
31-Aug-2017,7003873,13.65,REDBRIDGE PRODUCE & FLOWERS LTD T/A TOTAL PRODUCE,390977,Commissioning & Investment,Children's & Education Services,103,Supplies and Services,504,Equipment,5023,Revenue,03.GROCERIES & PROVISIONS
31-Aug-2017,7003873,0.78,REDBRIDGE PRODUCE & FLOWERS LTD T/A TOTAL PRODUCE,390977,Commissioning & Investment,Children's & Education Services,103,Supplies and Services,504,Equipment,5023,Revenue,03.GROCERIES & PROVISIONS
31-Aug-2017,7003873,2.20,REDBRIDGE PRODUCE & FLOWERS LTD T/A TOTAL PRODUCE,390977,Commissioning & Investment,Children's & Education Services,103,Supplies and Services,504,Equipment,5023,Revenue,03.GROCERIES & PROVISIONS
31-Aug-2017,7003873,1.46,REDBRIDGE PRODUCE & FLOWERS LTD T/A TOTAL PRODUCE,390977,Commissioning & Investment,Children's & Education Services,103,Supplies and Services,504,Equipment,5023,Revenue,03.GROCERIES & PROVISIONS
31-Aug-2017,7003873,1.90,REDBRIDGE PRODUCE & FLOWERS LTD T/A TOTAL PRODUCE,390977,Commissioning & Investment,Children's & Education Services,103,Supplies and Services,504,Equipment,5023,Revenue,03.GROCERIES & PROVISIONS
31-Aug-2017,7003873,5.07,REDBRIDGE PRODUCE & FLOWERS LTD T/A TOTAL PRODUCE,390977,Commissioning & Investment,Children's & Education Services,103,Supplies and Services,504,Equipment,5023,Revenue,03.GROCERIES & PROVISIONS
31-Aug-2017,7003873,1.17,REDBRIDGE PRODUCE & FLOWERS LTD T/A TOTAL PRODUCE,390977,Commissioning & Investment,Children's & Education Services,103,Supplies and Services,504,Equipment,5023,Revenue,03.GROCERIES & PROVISIONS
31-Aug-2017,7003873,8.80,REDBRIDGE PRODUCE & FLOWERS LTD T/A TOTAL PRODUCE,390977,Commissioning & Investment,Children's & Education Services,103,Supplies and Services,504,Equipment,5023,Revenue,03.GROCERIES & PROVISIONS
31-Aug-2017,7003873,2.58,REDBRIDGE PRODUCE & FLOWERS LTD T/A TOTAL PRODUCE,390977,Commissioning & Investment,Children's & Education Services,103,Supplies and Services,504,Equipment,5023,Revenue,03.GROCERIES & PROVISIONS
31-Aug-2017,7003873,2.68,REDBRIDGE PRODUCE & FLOWERS LTD T/A TOTAL PRODUCE,390977,Commissioning & Investment,Children's & Education Services,103,Supplies and Services,504,Equipment,5023,Revenue,03.GROCERIES & PROVISIONS
31-Aug-2017,7003873,0.77,REDBRIDGE PRODUCE & FLOWERS LTD T/A TOTAL PRODUCE,390977,Commissioning & Investment,Children's & Education Services,103,Supplies and Services,504,Equipment,5023,Revenue,03.GROCERIES & PROVISIONS
31-Aug-2017,7003873,1.15,REDBRIDGE PRODUCE & FLOWERS LTD T/A TOTAL PRODUCE,390977,Commissioning & Investment,Children's & Education Services,103,Supplies and Services,504,Equipment,5023,Revenue,03.GROCERIES & PROVISIONS
31-Aug-2017,7003873,0.42,REDBRIDGE PRODUCE & FLOWERS LTD T/A TOTAL PRODUCE,390977,"Health, Education, Care and Safeguarding",Children's & Education Services,103,Supplies and Services,504,Equipment,5023,Revenue,03.GROCERIES & PROVISIONS
31-Aug-2017,7003873,6.76,REDBRIDGE PRODUCE & FLOWERS LTD T/A TOTAL PRODUCE,390977,"Environment, Housing & Leisure",Adult Social Care,101,Supplies and Services,504,Equipment,5023,Revenue,03.GROCERIES & PROVISIONS
31-Aug-2017,7003873,1.22,REDBRIDGE PRODUCE & FLOWERS LTD T/A TOTAL PRODUCE,390977,Commissioning & Investment,Children's & Education Services,103,Supplies and Services,504,Equipment,5023,Revenue,03.GROCERIES & PROVISIONS
31-Aug-2017,7003873,13.49,REDBRIDGE PRODUCE & FLOWERS LTD T/A TOTAL PRODUCE,390977,Commissioning & Investment,Children's & Education Services,103,Supplies and Services,504,Equipment,5023,Revenue,03.GROCERIES & PROVISIONS
31-Aug-2017,7003873,9.16,REDBRIDGE PRODUCE & FLOWERS LTD T/A TOTAL PRODUCE,390977,Commissioning & Investment,Children's & Education Services,103,Supplies and Services,504,Equipment,5023,Revenue,03.GROCERIES & PROVISIONS
31-Aug-2017,7003873,1.15,REDBRIDGE PRODUCE & FLOWERS LTD T/A TOTAL PRODUCE,390977,Commissioning & Investment,Children's & Education Services,103,Supplies and Services,504,Equipment,5023,Revenue,03.GROCERIES & PROVISIONS
31-Aug-2017,7003873,-3.09,REDBRIDGE PRODUCE & FLOWERS LTD T/A TOTAL PRODUCE,390977,Commissioning & Investment,Children's & Education Services,103,Supplies and Services,504,Equipment,5023,Revenue,03.GROCERIES & PROVISIONS
31-Aug-2017,7003873,27.38,REDBRIDGE PRODUCE & FLOWERS LTD T/A TOTAL PRODUCE,390977,Commissioning & Investment,Children's & Education Services,103,Supplies and Services,504,Equipment,5023,Revenue,03.GROCERIES & PROVISIONS
31-Aug-2017,7003873,12.24,REDBRIDGE PRODUCE & FLOWERS LTD T/A TOTAL PRODUCE,390977,Commissioning & Investment,Children's & Education Services,103,Supplies and Services,504,Equipment,5023,Revenue,03.GROCERIES & PROVISIONS
31-Aug-2017,7003873,1.28,REDBRIDGE PRODUCE & FLOWERS LTD T/A TOTAL PRODUCE,390977,Commissioning & Investment,Children's & Education Services,103,Supplies and Services,504,Equipment,5023,Revenue,03.GROCERIES & PROVISIONS
31-Aug-2017,7003873,2.44,REDBRIDGE PRODUCE & FLOWERS LTD T/A TOTAL PRODUCE,390977,Commissioning & Investment,Children's & Education Services,103,Supplies and Services,504,Equipment,5023,Revenue,03.GROCERIES & PROVISIONS
31-Aug-2017,7003873,13.84,REDBRIDGE PRODUCE & FLOWERS LTD T/A TOTAL PRODUCE,390977,Commissioning & Investment,Children's & Education Services,103,Supplies and Services,504,Equipment,5023,Revenue,03.GROCERIES & PROVISIONS
31-Aug-2017,7003873,59.19,REDBRIDGE PRODUCE & FLOWERS LTD T/A TOTAL PRODUCE,390977,Commissioning & Investment,Children's & Education Services,103,Supplies and Services,504,Equipment,5023,Revenue,03.GROCERIES & PROVISIONS
31-Aug-2017,7003873,1.48,REDBRIDGE PRODUCE & FLOWERS LTD T/A TOTAL PRODUCE,390977,Commissioning & Investment,Children's & Education Services,103,Supplies and Services,504,Equipment,5023,Revenue,03.GROCERIES & PROVISIONS
31-Aug-2017,7003873,3.30,REDBRIDGE PRODUCE & FLOWERS LTD T/A TOTAL PRODUCE,390977,Commissioning & Investment,Children's & Education Services,103,Supplies and Services,504,Equipment,5023,Revenue,03.GROCERIES & PROVISIONS
31-Aug-2017,7003873,1.52,REDBRIDGE PRODUCE & FLOWERS LTD T/A TOTAL PRODUCE,390977,Commissioning & Investment,Children's & Education Services,103,Supplies and Services,504,Equipment,5023,Revenue,03.GROCERIES & PROVISIONS
31-Aug-2017,7003873,20.67,REDBRIDGE PRODUCE & FLOWERS LTD T/A TOTAL PRODUCE,390977,Commissioning & Investment,Children's & Education Services,103,Supplies and Services,504,Equipment,5023,Revenue,03.GROCERIES & PROVISIONS
31-Aug-2017,7003873,3.06,REDBRIDGE PRODUCE & FLOWERS LTD T/A TOTAL PRODUCE,390977,Commissioning & Investment,Children's & Education Services,103,Supplies and Services,504,Equipment,5023,Revenue,03.GROCERIES & PROVISIONS
31-Aug-2017,7003873,5.46,REDBRIDGE PRODUCE & FLOWERS LTD T/A TOTAL PRODUCE,390977,Commissioning & Investment,Children's & Education Services,103,Supplies and Services,504,Equipment,5023,Revenue,03.GROCERIES & PROVISIONS
31-Aug-2017,7003873,1.08,REDBRIDGE PRODUCE & FLOWERS LTD T/A TOTAL PRODUCE,390977,Commissioning & Investment,Children's & Education Services,103,Supplies and Services,504,Equipment,5023,Revenue,03.GROCERIES & PROVISIONS
31-Aug-2017,7003873,5.34,REDBRIDGE PRODUCE & FLOWERS LTD T/A TOTAL PRODUCE,390977,Commissioning & Investment,Children's & Education Services,103,Supplies and Services,504,Equipment,5023,Revenue,03.GROCERIES & PROVISIONS
31-Aug-2017,7003873,40.86,REDBRIDGE PRODUCE & FLOWERS LTD T/A TOTAL PRODUCE,390977,Commissioning & Investment,Children's & Education Services,103,Supplies and Services,504,Equipment,5023,Revenue,03.GROCERIES & PROVISIONS
31-Aug-2017,7003873,6.60,REDBRIDGE PRODUCE & FLOWERS LTD T/A TOTAL PRODUCE,390977,Commissioning & Investment,Children's & Education Services,103,Supplies and Services,504,Equipment,5023,Revenue,03.GROCERIES & PROVISIONS
31-Aug-2017,7003873,12.24,REDBRIDGE PRODUCE & FLOWERS LTD T/A TOTAL PRODUCE,390977,Commissioning & Investment,Children's & Education Services,103,Supplies and Services,504,Equipment,5023,Revenue,03.GROCERIES & PROVISIONS
31-Aug-2017,7003873,81.33,REDBRIDGE PRODUCE & FLOWERS LTD T/A TOTAL PRODUCE,390977,"Environment, Housing & Leisure",Cultural & Related Services,104,Supplies and Services,504,Equipment,5023,Revenue,03.GROCERIES & PROVISIONS
31-Aug-2017,7003873,29.14,REDBRIDGE PRODUCE & FLOWERS LTD T/A TOTAL PRODUCE,390977,Commissioning & Investment,Children's & Education Services,103,Supplies and Services,504,Equipment,5023,Revenue,03.GROCERIES & PROVISIONS
31-Aug-2017,7003873,1.48,REDBRIDGE PRODUCE & FLOWERS LTD T/A TOTAL PRODUCE,390977,Commissioning & Investment,Children's & Education Services,103,Supplies and Services,504,Equipment,5023,Revenue,03.GROCERIES & PROVISIONS
31-Aug-2017,7003873,22.00,REDBRIDGE PRODUCE & FLOWERS LTD T/A TOTAL PRODUCE,390977,Commissioning & Investment,Children's & Education Services,103,Supplies and Services,504,Equipment,5023,Revenue,03.GROCERIES & PROVISIONS
31-Aug-2017,7003873,6.12,REDBRIDGE PRODUCE & FLOWERS LTD T/A TOTAL PRODUCE,390977,Commissioning & Investment,Children's & Education Services,103,Supplies and Services,504,Equipment,5023,Revenue,03.GROCERIES & PROVISIONS
31-Aug-2017,7003873,10.73,REDBRIDGE PRODUCE & FLOWERS LTD T/A TOTAL PRODUCE,390977,Commissioning & Investment,Children's & Education Services,103,Supplies and Services,504,Equipment,5023,Revenue,03.GROCERIES & PROVISIONS
31-Aug-2017,7003873,15.42,REDBRIDGE PRODUCE & FLOWERS LTD T/A TOTAL PRODUCE,390977,"Environment, Housing & Leisure",Adult Social Care,101,Supplies and Services,504,Equipment,5023,Revenue,03.GROCERIES & PROVISIONS
31-Aug-2017,7003873,2.10,REDBRIDGE PRODUCE & FLOWERS LTD T/A TOTAL PRODUCE,390977,Commissioning & Investment,Children's & Education Services,103,Supplies and Services,504,Equipment,5023,Revenue,03.GROCERIES & PROVISIONS
31-Aug-2017,7003873,0.89,REDBRIDGE PRODUCE & FLOWERS LTD T/A TOTAL PRODUCE,390977,Commissioning & Investment,Children's & Education Services,103,Supplies and Services,504,Equipment,5023,Revenue,03.GROCERIES & PROVISIONS
31-Aug-2017,7003873,4.58,REDBRIDGE PRODUCE & FLOWERS LTD T/A TOTAL PRODUCE,390977,Commissioning & Investment,Children's & Education Services,103,Supplies and Services,504,Equipment,5023,Revenue,03.GROCERIES & PROVISIONS
31-Aug-2017,7003873,0.39,REDBRIDGE PRODUCE & FLOWERS LTD T/A TOTAL PRODUCE,390977,Commissioning & Investment,Children's & Education Services,103,Supplies and Services,504,Equipment,5023,Revenue,03.GROCERIES & PROVISIONS
31-Aug-2017,7003873,84.63,REDBRIDGE PRODUCE & FLOWERS LTD T/A TOTAL PRODUCE,390977,Commissioning & Investment,Children's & Education Services,103,Supplies and Services,504,Equipment,5023,Revenue,03.GROCERIES & PROVISIONS
31-Aug-2017,7003873,58.43,REDBRIDGE PRODUCE & FLOWERS LTD T/A TOTAL PRODUCE,390977,Commissioning & Investment,Children's & Education Services,103,Supplies and Services,504,Equipment,5023,Revenue,03.GROCERIES & PROVISIONS
31-Aug-2017,7003873,12.24,REDBRIDGE PRODUCE & FLOWERS LTD T/A TOTAL PRODUCE,390977,Commissioning & Investment,Children's & Education Services,103,Supplies and Services,504,Equipment,5023,Revenue,03.GROCERIES & PROVISIONS
31-Aug-2017,7003873,61.03,REDBRIDGE PRODUCE & FLOWERS LTD T/A TOTAL PRODUCE,390977,Commissioning & Investment,Children's & Education Services,103,Supplies and Services,504,Equipment,5023,Revenue,03.GROCERIES & PROVISIONS
31-Aug-2017,7003873,76.87,REDBRIDGE PRODUCE & FLOWERS LTD T/A TOTAL PRODUCE,390977,"Environment, Housing & Leisure",Adult Social Care,101,Supplies and Services,504,Equipment,5023,Revenue,03.GROCERIES & PROVISIONS
31-Aug-2017,7003873,23.79,REDBRIDGE PRODUCE & FLOWERS LTD T/A TOTAL PRODUCE,390977,"Environment, Housing & Leisure",Cultural & Related Services,104,Supplies and Services,504,Equipment,5023,Revenue,03.GROCERIES & PROVISIONS
31-Aug-2017,7003873,54.42,REDBRIDGE PRODUCE & FLOWERS LTD T/A TOTAL PRODUCE,390977,Commissioning & Investment,Children's & Education Services,103,Supplies and Services,504,Equipment,5023,Revenue,03.GROCERIES & PROVISIONS
31-Aug-2017,7003873,74.44,REDBRIDGE PRODUCE & FLOWERS LTD T/A TOTAL PRODUCE,390977,Commissioning & Investment,Children's & Education Services,103,Supplies and Services,504,Equipment,5023,Revenue,03.GROCERIES & PROVISIONS
31-Aug-2017,7003873,41.25,REDBRIDGE PRODUCE & FLOWERS LTD T/A TOTAL PRODUCE,390977,Commissioning & Investment,Children's & Education Services,103,Supplies and Services,504,Equipment,5023,Revenue,03.GROCERIES & PROVISIONS
31-Aug-2017,7003873,33.80,REDBRIDGE PRODUCE & FLOWERS LTD T/A TOTAL PRODUCE,390977,Commissioning & Investment,Children's & Education Services,103,Supplies and Services,504,Equipment,5023,Revenue,03.GROCERIES & PROVISIONS
31-Aug-2017,7003873,0.78,REDBRIDGE PRODUCE & FLOWERS LTD T/A TOTAL PRODUCE,390977,Commissioning & Investment,Children's & Education Services,103,Supplies and Services,504,Equipment,5023,Revenue,03.GROCERIES & PROVISIONS
31-Aug-2017,7003873,52.65,REDBRIDGE PRODUCE & FLOWERS LTD T/A TOTAL PRODUCE,390977,Commissioning & Investment,Children's & Education Services,103,Supplies and Services,504,Equipment,5023,Revenue,03.GROCERIES & PROVISIONS
31-Aug-2017,7003873,5.50,REDBRIDGE PRODUCE & FLOWERS LTD T/A TOTAL PRODUCE,390977,Commissioning & Investment,Children's & Education Services,103,Supplies and Services,504,Equipment,5023,Revenue,03.GROCERIES & PROVISIONS
31-Aug-2017,7003873,0.73,REDBRIDGE PRODUCE & FLOWERS LTD T/A TOTAL PRODUCE,390977,Commissioning & Investment,Children's & Education Services,103,Supplies and Services,504,Equipment,5023,Revenue,03.GROCERIES & PROVISIONS
31-Aug-2017,7003873,12.10,REDBRIDGE PRODUCE & FLOWERS LTD T/A TOTAL PRODUCE,390977,Commissioning & Investment,Children's & Education Services,103,Supplies and Services,504,Equipment,5023,Revenue,03.GROCERIES & PROVISIONS
31-Aug-2017,7003873,4.40,REDBRIDGE PRODUCE & FLOWERS LTD T/A TOTAL PRODUCE,390977,Commissioning & Investment,Children's & Education Services,103,Supplies and Services,504,Equipment,5023,Revenue,03.GROCERIES & PROVISIONS
31-Aug-2017,7003873,82.50,REDBRIDGE PRODUCE & FLOWERS LTD T/A TOTAL PRODUCE,390977,Commissioning & Investment,Children's & Education Services,103,Supplies and Services,504,Equipment,5023,Revenue,03.GROCERIES & PROVISIONS
31-Aug-2017,7003873,2.29,REDBRIDGE PRODUCE & FLOWERS LTD T/A TOTAL PRODUCE,390977,Commissioning & Investment,Children's & Education Services,103,Supplies and Services,504,Equipment,5023,Revenue,03.GROCERIES & PROVISIONS
31-Aug-2017,7003873,9.76,REDBRIDGE PRODUCE & FLOWERS LTD T/A TOTAL PRODUCE,390977,Commissioning & Investment,Children's & Education Services,103,Supplies and Services,504,Equipment,5023,Revenue,03.GROCERIES & PROVISIONS
31-Aug-2017,7003873,33.76,REDBRIDGE PRODUCE & FLOWERS LTD T/A TOTAL PRODUCE,390977,Commissioning & Investment,Children's & Education Services,103,Supplies and Services,504,Equipment,5023,Revenue,03.GROCERIES & PROVISIONS
31-Aug-2017,7003873,0.89,REDBRIDGE PRODUCE & FLOWERS LTD T/A TOTAL PRODUCE,390977,Commissioning & Investment,Children's & Education Services,103,Supplies and Services,504,Equipment,5023,Revenue,03.GROCERIES & PROVISIONS
31-Aug-2017,7003873,44.59,REDBRIDGE PRODUCE & FLOWERS LTD T/A TOTAL PRODUCE,390977,Commissioning & Investment,Children's & Education Services,103,Supplies and Services,504,Equipment,5023,Revenue,03.GROCERIES & PROVISIONS
31-Aug-2017,7003873,49.69,REDBRIDGE PRODUCE & FLOWERS LTD T/A TOTAL PRODUCE,390977,Commissioning & Investment,Children's & Education Services,103,Supplies and Services,504,Equipment,5023,Revenue,03.GROCERIES & PROVISIONS
31-Aug-2017,7003873,32.92,REDBRIDGE PRODUCE & FLOWERS LTD T/A TOTAL PRODUCE,390977,Commissioning & Investment,Children's & Education Services,103,Supplies and Services,504,Equipment,5023,Revenue,03.GROCERIES & PROVISIONS
31-Aug-2017,7003873,1.07,REDBRIDGE PRODUCE & FLOWERS LTD T/A TOTAL PRODUCE,390977,"Health, Education, Care and Safeguarding",Children's & Education Services,103,Supplies and Services,504,Equipment,5023,Revenue,03.GROCERIES & PROVISIONS
31-Aug-2017,7003873,5.50,REDBRIDGE PRODUCE & FLOWERS LTD T/A TOTAL PRODUCE,390977,Commissioning & Investment,Children's & Education Services,103,Supplies and Services,504,Equipment,5023,Revenue,03.GROCERIES & PROVISIONS
31-Aug-2017,7003873,2.40,REDBRIDGE PRODUCE & FLOWERS LTD T/A TOTAL PRODUCE,390977,Commissioning & Investment,Children's & Education Services,103,Supplies and Services,504,Equipment,5023,Revenue,03.GROCERIES & PROVISIONS
31-Aug-2017,7003873,0.57,REDBRIDGE PRODUCE & FLOWERS LTD T/A TOTAL PRODUCE,390977,Commissioning & Investment,Children's & Education Services,103,Supplies and Services,504,Equipment,5023,Revenue,03.GROCERIES & PROVISIONS
31-Aug-2017,7003873,0.76,REDBRIDGE PRODUCE & FLOWERS LTD T/A TOTAL PRODUCE,390977,Commissioning & Investment,Children's & Education Services,103,Supplies and Services,504,Equipment,5023,Revenue,03.GROCERIES & PROVISIONS
31-Aug-2017,7003873,1.64,REDBRIDGE PRODUCE & FLOWERS LTD T/A TOTAL PRODUCE,390977,"Health, Education, Care and Safeguarding",Children's & Education Services,103,Supplies and Services,504,Equipment,5023,Revenue,03.GROCERIES & PROVISIONS
31-Aug-2017,7003873,3.12,REDBRIDGE PRODUCE & FLOWERS LTD T/A TOTAL PRODUCE,390977,Commissioning & Investment,Children's & Education Services,103,Supplies and Services,504,Equipment,5023,Revenue,03.GROCERIES & PROVISIONS
31-Aug-2017,7003873,11.00,REDBRIDGE PRODUCE & FLOWERS LTD T/A TOTAL PRODUCE,390977,Commissioning & Investment,Children's & Education Services,103,Supplies and Services,504,Equipment,5023,Revenue,03.GROCERIES & PROVISIONS
31-Aug-2017,7003873,3.20,REDBRIDGE PRODUCE & FLOWERS LTD T/A TOTAL PRODUCE,390977,Commissioning & Investment,Children's & Education Services,103,Supplies and Services,504,Equipment,5023,Revenue,03.GROCERIES & PROVISIONS
31-Aug-2017,7003873,-5.55,REDBRIDGE PRODUCE & FLOWERS LTD T/A TOTAL PRODUCE,390977,Commissioning & Investment,Children's & Education Services,103,Supplies and Services,504,Equipment,5023,Revenue,03.GROCERIES & PROVISIONS
31-Aug-2017,7003873,2.44,REDBRIDGE PRODUCE & FLOWERS LTD T/A TOTAL PRODUCE,390977,Commissioning & Investment,Children's & Education Services,103,Supplies and Services,504,Equipment,5023,Revenue,03.GROCERIES & PROVISIONS
31-Aug-2017,7003873,6.12,REDBRIDGE PRODUCE & FLOWERS LTD T/A TOTAL PRODUCE,390977,Commissioning & Investment,Children's & Education Services,103,Supplies and Services,504,Equipment,5023,Revenue,03.GROCERIES & PROVISIONS
31-Aug-2017,7003873,0.78,REDBRIDGE PRODUCE & FLOWERS LTD T/A TOTAL PRODUCE,390977,Commissioning & Investment,Children's & Education Services,103,Supplies and Services,504,Equipment,5023,Revenue,03.GROCERIES & PROVISIONS
31-Aug-2017,7003873,0.51,REDBRIDGE PRODUCE & FLOWERS LTD T/A TOTAL PRODUCE,390977,Commissioning & Investment,Children's & Education Services,103,Supplies and Services,504,Equipment,5023,Revenue,03.GROCERIES & PROVISIONS
31-Aug-2017,7003873,2.20,REDBRIDGE PRODUCE & FLOWERS LTD T/A TOTAL PRODUCE,390977,Commissioning & Investment,Children's & Education Services,103,Supplies and Services,504,Equipment,5023,Revenue,03.GROCERIES & PROVISIONS
31-Aug-2017,7003873,1.56,REDBRIDGE PRODUCE & FLOWERS LTD T/A TOTAL PRODUCE,390977,Commissioning & Investment,Children's & Education Services,103,Supplies and Services,504,Equipment,5023,Revenue,03.GROCERIES & PROVISIONS
31-Aug-2017,7003873,0.40,REDBRIDGE PRODUCE & FLOWERS LTD T/A TOTAL PRODUCE,390977,Commissioning & Investment,Children's & Education Services,103,Supplies and Services,504,Equipment,5023,Revenue,03.GROCERIES & PROVISIONS
31-Aug-2017,7003873,3.56,REDBRIDGE PRODUCE & FLOWERS LTD T/A TOTAL PRODUCE,390977,Commissioning & Investment,Children's & Education Services,103,Supplies and Services,504,Equipment,5023,Revenue,03.GROCERIES & PROVISIONS
31-Aug-2017,7003873,30.00,REDBRIDGE PRODUCE & FLOWERS LTD T/A TOTAL PRODUCE,390977,Commissioning & Investment,Children's & Education Services,103,Supplies and Services,504,Equipment,5023,Revenue,03.GROCERIES & PROVISIONS
31-Aug-2017,7003873,12.10,REDBRIDGE PRODUCE & FLOWERS LTD T/A TOTAL PRODUCE,390977,Commissioning & Investment,Children's & Education Services,103,Supplies and Services,504,Equipment,5023,Revenue,03.GROCERIES & PROVISIONS
31-Aug-2017,7003873,1.56,REDBRIDGE PRODUCE & FLOWERS LTD T/A TOTAL PRODUCE,390977,Commissioning & Investment,Children's & Education Services,103,Supplies and Services,504,Equipment,5023,Revenue,03.GROCERIES & PROVISIONS
31-Aug-2017,7003873,17.60,REDBRIDGE PRODUCE & FLOWERS LTD T/A TOTAL PRODUCE,390977,Commissioning & Investment,Children's & Education Services,103,Supplies and Services,504,Equipment,5023,Revenue,03.GROCERIES & PROVISIONS
31-Aug-2017,7003873,3.56,REDBRIDGE PRODUCE & FLOWERS LTD T/A TOTAL PRODUCE,390977,Commissioning & Investment,Children's & Education Services,103,Supplies and Services,504,Equipment,5023,Revenue,03.GROCERIES & PROVISIONS
31-Aug-2017,7003873,13.43,REDBRIDGE PRODUCE & FLOWERS LTD T/A TOTAL PRODUCE,390977,Commissioning & Investment,Children's & Education Services,103,Supplies and Services,504,Equipment,5023,Revenue,03.GROCERIES & PROVISIONS
31-Aug-2017,7003873,2.20,REDBRIDGE PRODUCE & FLOWERS LTD T/A TOTAL PRODUCE,390977,Commissioning & Investment,Children's & Education Services,103,Supplies and Services,504,Equipment,5023,Revenue,03.GROCERIES & PROVISIONS
31-Aug-2017,7003873,1.29,REDBRIDGE PRODUCE & FLOWERS LTD T/A TOTAL PRODUCE,390977,Commissioning & Investment,Children's & Education Services,103,Supplies and Services,504,Equipment,5023,Revenue,03.GROCERIES & PROVISIONS
31-Aug-2017,7003873,0.78,REDBRIDGE PRODUCE & FLOWERS LTD T/A TOTAL PRODUCE,390977,Commissioning & Investment,Children's & Education Services,103,Supplies and Services,504,Equipment,5023,Revenue,03.GROCERIES & PROVISIONS
31-Aug-2017,7003873,3.18,REDBRIDGE PRODUCE & FLOWERS LTD T/A TOTAL PRODUCE,390977,Commissioning & Investment,Children's & Education Services,103,Supplies and Services,504,Equipment,5023,Revenue,03.GROCERIES & PROVISIONS
31-Aug-2017,7003873,0.73,REDBRIDGE PRODUCE & FLOWERS LTD T/A TOTAL PRODUCE,390977,Commissioning & Investment,Children's & Education Services,103,Supplies and Services,504,Equipment,5023,Revenue,03.GROCERIES & PROVISIONS
31-Aug-2017,7003873,1.78,REDBRIDGE PRODUCE & FLOWERS LTD T/A TOTAL PRODUCE,390977,Commissioning & Investment,Children's & Education Services,103,Supplies and Services,504,Equipment,5023,Revenue,03.GROCERIES & PROVISIONS
31-Aug-2017,7003873,1.25,REDBRIDGE PRODUCE & FLOWERS LTD T/A TOTAL PRODUCE,390977,Commissioning & Investment,Children's & Education Services,103,Supplies and Services,504,Equipment,5023,Revenue,03.GROCERIES & PROVISIONS
31-Aug-2017,7003873,0.89,REDBRIDGE PRODUCE & FLOWERS LTD T/A TOTAL PRODUCE,390977,Commissioning & Investment,Children's & Education Services,103,Supplies and Services,504,Equipment,5023,Revenue,03.GROCERIES & PROVISIONS
31-Aug-2017,7003873,-16.76,REDBRIDGE PRODUCE & FLOWERS LTD T/A TOTAL PRODUCE,390977,Commissioning & Investment,Children's & Education Services,103,Supplies and Services,504,Equipment,5023,Revenue,03.GROCERIES & PROVISIONS
31-Aug-2017,7003873,47.29,REDBRIDGE PRODUCE & FLOWERS LTD T/A TOTAL PRODUCE,390977,Commissioning & Investment,Children's & Education Services,103,Supplies and Services,504,Equipment,5023,Revenue,03.GROCERIES & PROVISIONS
31-Aug-2017,7003873,17.60,REDBRIDGE PRODUCE & FLOWERS LTD T/A TOTAL PRODUCE,390977,Commissioning & Investment,Children's & Education Services,103,Supplies and Services,504,Equipment,5023,Revenue,03.GROCERIES & PROVISIONS
31-Aug-2017,7003873,61.09,REDBRIDGE PRODUCE & FLOWERS LTD T/A TOTAL PRODUCE,390977,Commissioning & Investment,Children's & Education Services,103,Supplies and Services,504,Equipment,5023,Revenue,03.GROCERIES & PROVISIONS
31-Aug-2017,7003873,27.43,REDBRIDGE PRODUCE & FLOWERS LTD T/A TOTAL PRODUCE,390977,Commissioning & Investment,Children's & Education Services,103,Supplies and Services,504,Equipment,5023,Revenue,03.GROCERIES & PROVISIONS
31-Aug-2017,7003873,53.56,REDBRIDGE PRODUCE & FLOWERS LTD T/A TOTAL PRODUCE,390977,Commissioning & Investment,Children's & Education Services,103,Supplies and Services,504,Equipment,5023,Revenue,03.GROCERIES & PROVISIONS
31-Aug-2017,7003873,1.21,REDBRIDGE PRODUCE & FLOWERS LTD T/A TOTAL PRODUCE,390977,"Environment, Housing & Leisure",Cultural & Related Services,104,Supplies and Services,504,Equipment,5023,Revenue,03.GROCERIES & PROVISIONS
31-Aug-2017,7003873,1.00,REDBRIDGE PRODUCE & FLOWERS LTD T/A TOTAL PRODUCE,390977,"Environment, Housing & Leisure",Cultural & Related Services,104,Supplies and Services,504,Equipment,5023,Revenue,03.GROCERIES & PROVISIONS
31-Aug-2017,7003873,3.06,REDBRIDGE PRODUCE & FLOWERS LTD T/A TOTAL PRODUCE,390977,Commissioning & Investment,Children's & Education Services,103,Supplies and Services,504,Equipment,5023,Revenue,03.GROCERIES & PROVISIONS
31-Aug-2017,7003873,2.15,REDBRIDGE PRODUCE & FLOWERS LTD T/A TOTAL PRODUCE,390977,Commissioning & Investment,Children's & Education Services,103,Supplies and Services,504,Equipment,5023,Revenue,03.GROCERIES & PROVISIONS
31-Aug-2017,7003873,0.78,REDBRIDGE PRODUCE & FLOWERS LTD T/A TOTAL PRODUCE,390977,Commissioning & Investment,Children's & Education Services,103,Supplies and Services,504,Equipment,5023,Revenue,03.GROCERIES & PROVISIONS
31-Aug-2017,7003873,2.30,REDBRIDGE PRODUCE & FLOWERS LTD T/A TOTAL PRODUCE,390977,Commissioning & Investment,Children's & Education Services,103,Supplies and Services,504,Equipment,5023,Revenue,03.GROCERIES & PROVISIONS
31-Aug-2017,7003873,1.69,REDBRIDGE PRODUCE & FLOWERS LTD T/A TOTAL PRODUCE,390977,Commissioning & Investment,Children's & Education Services,103,Supplies and Services,504,Equipment,5023,Revenue,03.GROCERIES & PROVISIONS
31-Aug-2017,7003873,1.08,REDBRIDGE PRODUCE & FLOWERS LTD T/A TOTAL PRODUCE,390977,Commissioning & Investment,Children's & Education Services,103,Supplies and Services,504,Equipment,5023,Revenue,03.GROCERIES & PROVISIONS
31-Aug-2017,7003873,52.31,REDBRIDGE PRODUCE & FLOWERS LTD T/A TOTAL PRODUCE,390977,Commissioning & Investment,Children's & Education Services,103,Supplies and Services,504,Equipment,5023,Revenue,03.GROCERIES & PROVISIONS
31-Aug-2017,7003873,12.24,REDBRIDGE PRODUCE & FLOWERS LTD T/A TOTAL PRODUCE,390977,Commissioning & Investment,Children's & Education Services,103,Supplies and Services,504,Equipment,5023,Revenue,03.GROCERIES & PROVISIONS
31-Aug-2017,7003873,47.00,REDBRIDGE PRODUCE & FLOWERS LTD T/A TOTAL PRODUCE,390977,Commissioning & Investment,Children's & Education Services,103,Supplies and Services,504,Equipment,5023,Revenue,03.GROCERIES & PROVISIONS
31-Aug-2017,7003873,0.78,REDBRIDGE PRODUCE & FLOWERS LTD T/A TOTAL PRODUCE,390977,Commissioning & Investment,Children's & Education Services,103,Supplies and Services,504,Equipment,5023,Revenue,03.GROCERIES & PROVISIONS
31-Aug-2017,7003873,119.75,REDBRIDGE PRODUCE & FLOWERS LTD T/A TOTAL PRODUCE,390977,Commissioning & Investment,Children's & Education Services,103,Supplies and Services,504,Equipment,5023,Revenue,03.GROCERIES & PROVISIONS
31-Aug-2017,7003873,2.04,REDBRIDGE PRODUCE & FLOWERS LTD T/A TOTAL PRODUCE,390977,Commissioning & Investment,Children's & Education Services,103,Supplies and Services,504,Equipment,5023,Revenue,03.GROCERIES & PROVISIONS
31-Aug-2017,7003873,12.24,REDBRIDGE PRODUCE & FLOWERS LTD T/A TOTAL PRODUCE,390977,Commissioning & Investment,Children's & Education Services,103,Supplies and Services,504,Equipment,5023,Revenue,03.GROCERIES & PROVISIONS
31-Aug-2017,7003873,3.90,REDBRIDGE PRODUCE & FLOWERS LTD T/A TOTAL PRODUCE,390977,Commissioning & Investment,Children's & Education Services,103,Supplies and Services,504,Equipment,5023,Revenue,03.GROCERIES & PROVISIONS
31-Aug-2017,7003873,58.33,REDBRIDGE PRODUCE & FLOWERS LTD T/A TOTAL PRODUCE,390977,Commissioning & Investment,Children's & Education Services,103,Supplies and Services,504,Equipment,5023,Revenue,03.GROCERIES & PROVISIONS
31-Aug-2017,7003873,2.15,REDBRIDGE PRODUCE & FLOWERS LTD T/A TOTAL PRODUCE,390977,Commissioning & Investment,Children's & Education Services,103,Supplies and Services,504,Equipment,5023,Revenue,03.GROCERIES & PROVISIONS
31-Aug-2017,7003873,5.98,REDBRIDGE PRODUCE & FLOWERS LTD T/A TOTAL PRODUCE,390977,"Environment, Housing & Leisure",Cultural & Related Services,104,Supplies and Services,504,Equipment,5023,Revenue,03.GROCERIES & PROVISIONS
31-Aug-2017,7003873,39.40,REDBRIDGE PRODUCE & FLOWERS LTD T/A TOTAL PRODUCE,390977,Commissioning & Investment,Children's & Education Services,103,Supplies and Services,504,Equipment,5023,Revenue,03.GROCERIES & PROVISIONS
31-Aug-2017,7003873,9.66,REDBRIDGE PRODUCE & FLOWERS LTD T/A TOTAL PRODUCE,390977,Commissioning & Investment,Children's & Education Services,103,Supplies and Services,504,Equipment,5023,Revenue,03.GROCERIES & PROVISIONS
31-Aug-2017,7003873,6.12,REDBRIDGE PRODUCE & FLOWERS LTD T/A TOTAL PRODUCE,390977,Commissioning & Investment,Children's & Education Services,103,Supplies and Services,504,Equipment,5023,Revenue,03.GROCERIES & PROVISIONS
31-Aug-2017,7003873,4.20,REDBRIDGE PRODUCE & FLOWERS LTD T/A TOTAL PRODUCE,390977,Commissioning & Investment,Children's & Education Services,103,Supplies and Services,504,Equipment,5023,Revenue,03.GROCERIES & PROVISIONS
31-Aug-2017,7003873,6.60,REDBRIDGE PRODUCE & FLOWERS LTD T/A TOTAL PRODUCE,390977,Commissioning & Investment,Children's & Education Services,103,Supplies and Services,504,Equipment,5023,Revenue,03.GROCERIES & PROVISIONS
31-Aug-2017,7003873,1.78,REDBRIDGE PRODUCE & FLOWERS LTD T/A TOTAL PRODUCE,390977,Commissioning & Investment,Children's & Education Services,103,Supplies and Services,504,Equipment,5023,Revenue,03.GROCERIES & PROVISIONS
31-Aug-2017,7003873,58.38,REDBRIDGE PRODUCE & FLOWERS LTD T/A TOTAL PRODUCE,390977,Commissioning & Investment,Children's & Education Services,103,Supplies and Services,504,Equipment,5023,Revenue,03.GROCERIES & PROVISIONS
31-Aug-2017,7003873,9.47,REDBRIDGE PRODUCE & FLOWERS LTD T/A TOTAL PRODUCE,390977,Commissioning & Investment,Children's & Education Services,103,Supplies and Services,504,Equipment,5023,Revenue,03.GROCERIES & PROVISIONS
31-Aug-2017,7003873,4.40,REDBRIDGE PRODUCE & FLOWERS LTD T/A TOTAL PRODUCE,390977,Commissioning & Investment,Children's & Education Services,103,Supplies and Services,504,Equipment,5023,Revenue,03.GROCERIES & PROVISIONS
31-Aug-2017,7003873,4.44,REDBRIDGE PRODUCE & FLOWERS LTD T/A TOTAL PRODUCE,390977,"Health, Education, Care and Safeguarding",Children's & Education Services,103,Supplies and Services,504,Equipment,5023,Revenue,03.GROCERIES & PROVISIONS
31-Aug-2017,7003873,42.59,REDBRIDGE PRODUCE & FLOWERS LTD T/A TOTAL PRODUCE,390977,Commissioning & Investment,Children's & Education Services,103,Supplies and Services,504,Equipment,5023,Revenue,03.GROCERIES & PROVISIONS
31-Aug-2017,7003873,10.70,REDBRIDGE PRODUCE & FLOWERS LTD T/A TOTAL PRODUCE,390977,Commissioning & Investment,Children's & Education Services,103,Supplies and Services,504,Equipment,5023,Revenue,03.GROCERIES & PROVISIONS
31-Aug-2017,7003873,115.10,REDBRIDGE PRODUCE & FLOWERS LTD T/A TOTAL PRODUCE,390977,Commissioning & Investment,Children's & Education Services,103,Supplies and Services,504,Equipment,5023,Revenue,03.GROCERIES & PROVISIONS
31-Aug-2017,7003873,91.07,REDBRIDGE PRODUCE & FLOWERS LTD T/A TOTAL PRODUCE,390977,Commissioning & Investment,Children's & Education Services,103,Supplies and Services,504,Equipment,5023,Revenue,03.GROCERIES & PROVISIONS
31-Aug-2017,7003873,44.25,REDBRIDGE PRODUCE & FLOWERS LTD T/A TOTAL PRODUCE,390977,"Health, Education, Care and Safeguarding",Children's & Education Services,103,Supplies and Services,504,Equipment,5023,Revenue,03.GROCERIES & PROVISIONS
31-Aug-2017,7003873,16.95,REDBRIDGE PRODUCE & FLOWERS LTD T/A TOTAL PRODUCE,390977,Commissioning & Investment,Children's & Education Services,103,Supplies and Services,504,Equipment,5023,Revenue,03.GROCERIES & PROVISIONS
31-Aug-2017,7003873,2.40,REDBRIDGE PRODUCE & FLOWERS LTD T/A TOTAL PRODUCE,390977,Commissioning & Investment,Children's & Education Services,103,Supplies and Services,504,Equipment,5023,Revenue,03.GROCERIES & PROVISIONS
31-Aug-2017,7003873,1.29,REDBRIDGE PRODUCE & FLOWERS LTD T/A TOTAL PRODUCE,390977,Commissioning & Investment,Children's & Education Services,103,Supplies and Services,504,Equipment,5023,Revenue,03.GROCERIES & PROVISIONS
31-Aug-2017,7003873,4.40,REDBRIDGE PRODUCE & FLOWERS LTD T/A TOTAL PRODUCE,390977,Commissioning & Investment,Children's & Education Services,103,Supplies and Services,504,Equipment,5023,Revenue,03.GROCERIES & PROVISIONS
31-Aug-2017,7003873,16.30,REDBRIDGE PRODUCE & FLOWERS LTD T/A TOTAL PRODUCE,390977,Commissioning & Investment,Children's & Education Services,103,Supplies and Services,504,Equipment,5023,Revenue,03.GROCERIES & PROVISIONS
31-Aug-2017,7003873,11.09,REDBRIDGE PRODUCE & FLOWERS LTD T/A TOTAL PRODUCE,390977,Commissioning & Investment,Children's & Education Services,103,Supplies and Services,504,Equipment,5023,Revenue,03.GROCERIES & PROVISIONS
31-Aug-2017,7003873,2.67,REDBRIDGE PRODUCE & FLOWERS LTD T/A TOTAL PRODUCE,390977,Commissioning & Investment,Children's & Education Services,103,Supplies and Services,504,Equipment,5023,Revenue,03.GROCERIES & PROVISIONS
31-Aug-2017,7003873,59.95,REDBRIDGE PRODUCE & FLOWERS LTD T/A TOTAL PRODUCE,390977,Commissioning & Investment,Children's & Education Services,103,Supplies and Services,504,Equipment,5023,Revenue,03.GROCERIES & PROVISIONS
31-Aug-2017,7003873,2.22,REDBRIDGE PRODUCE & FLOWERS LTD T/A TOTAL PRODUCE,390977,Commissioning & Investment,Children's & Education Services,103,Supplies and Services,504,Equipment,5023,Revenue,03.GROCERIES & PROVISIONS
31-Aug-2017,7003873,0.59,REDBRIDGE PRODUCE & FLOWERS LTD T/A TOTAL PRODUCE,390977,Commissioning & Investment,Children's & Education Services,103,Supplies and Services,504,Equipment,5023,Revenue,03.GROCERIES & PROVISIONS
31-Aug-2017,7003873,0.76,REDBRIDGE PRODUCE & FLOWERS LTD T/A TOTAL PRODUCE,390977,Commissioning & Investment,Children's & Education Services,103,Supplies and Services,504,Equipment,5023,Revenue,03.GROCERIES & PROVISIONS
31-Aug-2017,7003873,37.94,REDBRIDGE PRODUCE & FLOWERS LTD T/A TOTAL PRODUCE,390977,Commissioning & Investment,Children's & Education Services,103,Supplies and Services,504,Equipment,5023,Revenue,03.GROCERIES & PROVISIONS
31-Aug-2017,7003873,0.82,REDBRIDGE PRODUCE & FLOWERS LTD T/A TOTAL PRODUCE,390977,"Health, Education, Care and Safeguarding",Children's & Education Services,103,Supplies and Services,504,Equipment,5023,Revenue,03.GROCERIES & PROVISIONS
31-Aug-2017,7003873,1.15,REDBRIDGE PRODUCE & FLOWERS LTD T/A TOTAL PRODUCE,390977,"Environment, Housing & Leisure",Cultural & Related Services,104,Supplies and Services,504,Equipment,5023,Revenue,03.GROCERIES & PROVISIONS
31-Aug-2017,7003873,9.98,REDBRIDGE PRODUCE & FLOWERS LTD T/A TOTAL PRODUCE,390977,Commissioning & Investment,Children's & Education Services,103,Supplies and Services,504,Equipment,5023,Revenue,03.GROCERIES & PROVISIONS
31-Aug-2017,7003873,62.19,REDBRIDGE PRODUCE & FLOWERS LTD T/A TOTAL PRODUCE,390977,Commissioning & Investment,Children's & Education Services,103,Supplies and Services,504,Equipment,5023,Revenue,03.GROCERIES & PROVISIONS
31-Aug-2017,7003873,1.78,REDBRIDGE PRODUCE & FLOWERS LTD T/A TOTAL PRODUCE,390977,Commissioning & Investment,Children's & Education Services,103,Supplies and Services,504,Equipment,5023,Revenue,03.GROCERIES & PROVISIONS
31-Aug-2017,7003873,3.06,REDBRIDGE PRODUCE & FLOWERS LTD T/A TOTAL PRODUCE,390977,Commissioning & Investment,Children's & Education Services,103,Supplies and Services,504,Equipment,5023,Revenue,03.GROCERIES & PROVISIONS
31-Aug-2017,7003873,1.18,REDBRIDGE PRODUCE & FLOWERS LTD T/A TOTAL PRODUCE,390977,Commissioning & Investment,Children's & Education Services,103,Supplies and Services,504,Equipment,5023,Revenue,03.GROCERIES & PROVISIONS
31-Aug-2017,7003873,-1.22,REDBRIDGE PRODUCE & FLOWERS LTD T/A TOTAL PRODUCE,390977,Commissioning & Investment,Children's & Education Services,103,Supplies and Services,504,Equipment,5023,Revenue,03.GROCERIES & PROVISIONS
31-Aug-2017,7003873,8.80,REDBRIDGE PRODUCE & FLOWERS LTD T/A TOTAL PRODUCE,390977,Commissioning & Investment,Children's & Education Services,103,Supplies and Services,504,Equipment,5023,Revenue,03.GROCERIES & PROVISIONS
31-Aug-2017,7003873,9.62,REDBRIDGE PRODUCE & FLOWERS LTD T/A TOTAL PRODUCE,390977,Commissioning & Investment,Children's & Education Services,103,Supplies and Services,504,Equipment,5023,Revenue,03.GROCERIES & PROVISIONS
31-Aug-2017,7003873,109.36,REDBRIDGE PRODUCE & FLOWERS LTD T/A TOTAL PRODUCE,390977,Commissioning & Investment,Children's & Education Services,103,Supplies and Services,504,Equipment,5023,Revenue,03.GROCERIES & PROVISIONS
31-Aug-2017,7003873,1.22,REDBRIDGE PRODUCE & FLOWERS LTD T/A TOTAL PRODUCE,390977,Commissioning & Investment,Children's & Education Services,103,Supplies and Services,504,Equipment,5023,Revenue,03.GROCERIES & PROVISIONS
31-Aug-2017,7003873,8.80,REDBRIDGE PRODUCE & FLOWERS LTD T/A TOTAL PRODUCE,390977,Commissioning & Investment,Children's & Education Services,103,Supplies and Services,504,Equipment,5023,Revenue,03.GROCERIES & PROVISIONS
31-Aug-2017,7003873,2.14,REDBRIDGE PRODUCE & FLOWERS LTD T/A TOTAL PRODUCE,390977,Commissioning & Investment,Children's & Education Services,103,Supplies and Services,504,Equipment,5023,Revenue,03.GROCERIES & PROVISIONS
31-Aug-2017,7003873,40.56,REDBRIDGE PRODUCE & FLOWERS LTD T/A TOTAL PRODUCE,390977,Commissioning & Investment,Children's & Education Services,103,Supplies and Services,504,Equipment,5023,Revenue,03.GROCERIES & PROVISIONS
31-Aug-2017,7003873,4.88,REDBRIDGE PRODUCE & FLOWERS LTD T/A TOTAL PRODUCE,390977,Commissioning & Investment,Children's & Education Services,103,Supplies and Services,504,Equipment,5023,Revenue,03.GROCERIES & PROVISIONS
31-Aug-2017,7003873,2.15,REDBRIDGE PRODUCE & FLOWERS LTD T/A TOTAL PRODUCE,390977,Commissioning & Investment,Children's & Education Services,103,Supplies and Services,504,Equipment,5023,Revenue,03.GROCERIES & PROVISIONS
31-Aug-2017,7003873,0.78,REDBRIDGE PRODUCE & FLOWERS LTD T/A TOTAL PRODUCE,390977,Commissioning & Investment,Children's & Education Services,103,Supplies and Services,504,Equipment,5023,Revenue,03.GROCERIES & PROVISIONS
31-Aug-2017,7003873,3.06,REDBRIDGE PRODUCE & FLOWERS LTD T/A TOTAL PRODUCE,390977,Commissioning & Investment,Children's & Education Services,103,Supplies and Services,504,Equipment,5023,Revenue,03.GROCERIES & PROVISIONS
31-Aug-2017,7003873,35.72,REDBRIDGE PRODUCE & FLOWERS LTD T/A TOTAL PRODUCE,390977,Commissioning & Investment,Children's & Education Services,103,Supplies and Services,504,Equipment,5023,Revenue,03.GROCERIES & PROVISIONS
31-Aug-2017,7003873,42.22,REDBRIDGE PRODUCE & FLOWERS LTD T/A TOTAL PRODUCE,390977,Commissioning & Investment,Children's & Education Services,103,Supplies and Services,504,Equipment,5023,Revenue,03.GROCERIES & PROVISIONS
31-Aug-2017,7003873,1.17,REDBRIDGE PRODUCE & FLOWERS LTD T/A TOTAL PRODUCE,390977,Commissioning & Investment,Children's & Education Services,103,Supplies and Services,504,Equipment,5023,Revenue,03.GROCERIES & PROVISIONS
31-Aug-2017,7003873,3.30,REDBRIDGE PRODUCE & FLOWERS LTD T/A TOTAL PRODUCE,390977,Commissioning & Investment,Children's & Education Services,103,Supplies and Services,504,Equipment,5023,Revenue,03.GROCERIES & PROVISIONS
31-Aug-2017,7003873,2.30,REDBRIDGE PRODUCE & FLOWERS LTD T/A TOTAL PRODUCE,390977,Commissioning & Investment,Children's & Education Services,103,Supplies and Services,504,Equipment,5023,Revenue,03.GROCERIES & PROVISIONS
31-Aug-2017,7003873,3.18,REDBRIDGE PRODUCE & FLOWERS LTD T/A TOTAL PRODUCE,390977,Commissioning & Investment,Children's & Education Services,103,Supplies and Services,504,Equipment,5023,Revenue,03.GROCERIES & PROVISIONS
31-Aug-2017,7003873,33.58,REDBRIDGE PRODUCE & FLOWERS LTD T/A TOTAL PRODUCE,390977,Commissioning & Investment,Children's & Education Services,103,Supplies and Services,504,Equipment,5023,Revenue,03.GROCERIES & PROVISIONS
31-Aug-2017,7003873,6.60,REDBRIDGE PRODUCE & FLOWERS LTD T/A TOTAL PRODUCE,390977,Commissioning & Investment,Children's & Education Services,103,Supplies and Services,504,Equipment,5023,Revenue,03.GROCERIES & PROVISIONS
31-Aug-2017,7003873,6.79,REDBRIDGE PRODUCE & FLOWERS LTD T/A TOTAL PRODUCE,390977,"Environment, Housing & Leisure",Cultural & Related Services,104,Supplies and Services,504,Equipment,5023,Revenue,03.GROCERIES & PROVISIONS
31-Aug-2017,7003873,2.10,REDBRIDGE PRODUCE & FLOWERS LTD T/A TOTAL PRODUCE,390977,Commissioning & Investment,Children's & Education Services,103,Supplies and Services,504,Equipment,5023,Revenue,03.GROCERIES & PROVISIONS
31-Aug-2017,7003873,2.04,REDBRIDGE PRODUCE & FLOWERS LTD T/A TOTAL PRODUCE,390977,Commissioning & Investment,Children's & Education Services,103,Supplies and Services,504,Equipment,5023,Revenue,03.GROCERIES & PROVISIONS
31-Aug-2017,7003873,6.60,REDBRIDGE PRODUCE & FLOWERS LTD T/A TOTAL PRODUCE,390977,Commissioning & Investment,Children's & Education Services,103,Supplies and Services,504,Equipment,5023,Revenue,03.GROCERIES & PROVISIONS
31-Aug-2017,7003873,8.88,REDBRIDGE PRODUCE & FLOWERS LTD T/A TOTAL PRODUCE,390977,"Health, Education, Care and Safeguarding",Children's & Education Services,103,Supplies and Services,504,Equipment,5023,Revenue,03.GROCERIES & PROVISIONS
31-Aug-2017,7003873,11.00,REDBRIDGE PRODUCE & FLOWERS LTD T/A TOTAL PRODUCE,390977,Commissioning & Investment,Children's & Education Services,103,Supplies and Services,504,Equipment,5023,Revenue,03.GROCERIES & PROVISIONS
31-Aug-2017,7003873,36.58,REDBRIDGE PRODUCE & FLOWERS LTD T/A TOTAL PRODUCE,390977,Commissioning & Investment,Children's & Education Services,103,Supplies and Services,504,Equipment,5023,Revenue,03.GROCERIES & PROVISIONS
31-Aug-2017,7003873,27.35,REDBRIDGE PRODUCE & FLOWERS LTD T/A TOTAL PRODUCE,390977,Commissioning & Investment,Children's & Education Services,103,Supplies and Services,504,Equipment,5023,Revenue,03.GROCERIES & PROVISIONS
31-Aug-2017,7003873,34.94,REDBRIDGE PRODUCE & FLOWERS LTD T/A TOTAL PRODUCE,390977,Commissioning & Investment,Children's & Education Services,103,Supplies and Services,504,Equipment,5023,Revenue,03.GROCERIES & PROVISIONS
31-Aug-2017,7003873,24.46,REDBRIDGE PRODUCE & FLOWERS LTD T/A TOTAL PRODUCE,390977,Commissioning & Investment,Children's & Education Services,103,Supplies and Services,504,Equipment,5023,Revenue,03.GROCERIES & PROVISIONS
31-Aug-2017,7003873,101.91,REDBRIDGE PRODUCE & FLOWERS LTD T/A TOTAL PRODUCE,390977,Commissioning & Investment,Children's & Education Services,103,Supplies and Services,504,Equipment,5023,Revenue,03.GROCERIES & PROVISIONS
31-Aug-2017,7003873,45.04,REDBRIDGE PRODUCE & FLOWERS LTD T/A TOTAL PRODUCE,390977,Commissioning & Investment,Children's & Education Services,103,Supplies and Services,504,Equipment,5023,Revenue,03.GROCERIES & PROVISIONS
31-Aug-2017,7003873,2.15,REDBRIDGE PRODUCE & FLOWERS LTD T/A TOTAL PRODUCE,390977,Commissioning & Investment,Children's & Education Services,103,Supplies and Services,504,Equipment,5023,Revenue,03.GROCERIES & PROVISIONS
31-Aug-2017,7003873,1.78,REDBRIDGE PRODUCE & FLOWERS LTD T/A TOTAL PRODUCE,390977,Commissioning & Investment,Children's & Education Services,103,Supplies and Services,504,Equipment,5023,Revenue,03.GROCERIES & PROVISIONS
31-Aug-2017,7003873,-9.71,REDBRIDGE PRODUCE & FLOWERS LTD T/A TOTAL PRODUCE,390977,Commissioning & Investment,Children's & Education Services,103,Supplies and Services,504,Equipment,5023,Revenue,03.GROCERIES & PROVISIONS
31-Aug-2017,7003873,50.86,REDBRIDGE PRODUCE & FLOWERS LTD T/A TOTAL PRODUCE,390977,Commissioning & Investment,Children's & Education Services,103,Supplies and Services,504,Equipment,5023,Revenue,03.GROCERIES & PROVISIONS
31-Aug-2017,7003873,29.90,REDBRIDGE PRODUCE & FLOWERS LTD T/A TOTAL PRODUCE,390977,"Environment, Housing & Leisure",Cultural & Related Services,104,Supplies and Services,504,Equipment,5023,Revenue,03.GROCERIES & PROVISIONS
31-Aug-2017,7003873,3.21,REDBRIDGE PRODUCE & FLOWERS LTD T/A TOTAL PRODUCE,390977,"Environment, Housing & Leisure",Cultural & Related Services,104,Supplies and Services,504,Equipment,5023,Revenue,03.GROCERIES & PROVISIONS
31-Aug-2017,7003873,2.20,REDBRIDGE PRODUCE & FLOWERS LTD T/A TOTAL PRODUCE,390977,Commissioning & Investment,Children's & Education Services,103,Supplies and Services,504,Equipment,5023,Revenue,03.GROCERIES & PROVISIONS
31-Aug-2017,7003873,0.77,REDBRIDGE PRODUCE & FLOWERS LTD T/A TOTAL PRODUCE,390977,Commissioning & Investment,Children's & Education Services,103,Supplies and Services,504,Equipment,5023,Revenue,03.GROCERIES & PROVISIONS
31-Aug-2017,7003873,4.50,REDBRIDGE PRODUCE & FLOWERS LTD T/A TOTAL PRODUCE,390977,Commissioning & Investment,Children's & Education Services,103,Supplies and Services,504,Equipment,5023,Revenue,03.GROCERIES & PROVISIONS
31-Aug-2017,7003873,1.25,REDBRIDGE PRODUCE & FLOWERS LTD T/A TOTAL PRODUCE,390977,Commissioning & Investment,Children's & Education Services,103,Supplies and Services,504,Equipment,5023,Revenue,03.GROCERIES & PROVISIONS
31-Aug-2017,7003873,9.71,REDBRIDGE PRODUCE & FLOWERS LTD T/A TOTAL PRODUCE,390977,Commissioning & Investment,Children's & Education Services,103,Supplies and Services,504,Equipment,5023,Revenue,03.GROCERIES & PROVISIONS
31-Aug-2017,7003873,9.68,REDBRIDGE PRODUCE & FLOWERS LTD T/A TOTAL PRODUCE,390977,"Health, Education, Care and Safeguarding",Children's & Education Services,103,Supplies and Services,504,Equipment,5023,Revenue,03.GROCERIES & PROVISIONS
31-Aug-2017,7003873,1.25,REDBRIDGE PRODUCE & FLOWERS LTD T/A TOTAL PRODUCE,390977,Commissioning & Investment,Children's & Education Services,103,Supplies and Services,504,Equipment,5023,Revenue,03.GROCERIES & PROVISIONS
31-Aug-2017,7003873,64.63,REDBRIDGE PRODUCE & FLOWERS LTD T/A TOTAL PRODUCE,390977,Commissioning & Investment,Children's & Education Services,103,Supplies and Services,504,Equipment,5023,Revenue,03.GROCERIES & PROVISIONS
31-Aug-2017,7003873,37.99,REDBRIDGE PRODUCE & FLOWERS LTD T/A TOTAL PRODUCE,390977,Commissioning & Investment,Children's & Education Services,103,Supplies and Services,504,Equipment,5023,Revenue,03.GROCERIES & PROVISIONS
31-Aug-2017,7003873,72.85,REDBRIDGE PRODUCE & FLOWERS LTD T/A TOTAL PRODUCE,390977,Commissioning & Investment,Children's & Education Services,103,Supplies and Services,504,Equipment,5023,Revenue,03.GROCERIES & PROVISIONS
31-Aug-2017,7003873,167.57,REDBRIDGE PRODUCE & FLOWERS LTD T/A TOTAL PRODUCE,390977,Commissioning & Investment,Children's & Education Services,103,Supplies and Services,504,Equipment,5023,Revenue,03.GROCERIES & PROVISIONS
31-Aug-2017,7003873,58.59,REDBRIDGE PRODUCE & FLOWERS LTD T/A TOTAL PRODUCE,390977,Commissioning & Investment,Children's & Education Services,103,Supplies and Services,504,Equipment,5023,Revenue,03.GROCERIES & PROVISIONS
31-Aug-2017,7003873,2.68,REDBRIDGE PRODUCE & FLOWERS LTD T/A TOTAL PRODUCE,390977,Commissioning & Investment,Children's & Education Services,103,Supplies and Services,504,Equipment,5023,Revenue,03.GROCERIES & PROVISIONS
31-Aug-2017,7003873,0.73,REDBRIDGE PRODUCE & FLOWERS LTD T/A TOTAL PRODUCE,390977,Commissioning & Investment,Children's & Education Services,103,Supplies and Services,504,Equipment,5023,Revenue,03.GROCERIES & PROVISIONS
31-Aug-2017,7003873,0.78,REDBRIDGE PRODUCE & FLOWERS LTD T/A TOTAL PRODUCE,390977,Commissioning & Investment,Children's & Education Services,103,Supplies and Services,504,Equipment,5023,Revenue,03.GROCERIES & PROVISIONS
31-Aug-2017,7003873,43.61,REDBRIDGE PRODUCE & FLOWERS LTD T/A TOTAL PRODUCE,390977,Commissioning & Investment,Children's & Education Services,103,Supplies and Services,504,Equipment,5023,Revenue,03.GROCERIES & PROVISIONS
31-Aug-2017,7003873,125.43,REDBRIDGE PRODUCE & FLOWERS LTD T/A TOTAL PRODUCE,390977,Commissioning & Investment,Children's & Education Services,103,Supplies and Services,504,Equipment,5023,Revenue,03.GROCERIES & PROVISIONS
31-Aug-2017,7003873,6.60,REDBRIDGE PRODUCE & FLOWERS LTD T/A TOTAL PRODUCE,390977,Commissioning & Investment,Children's & Education Services,103,Supplies and Services,504,Equipment,5023,Revenue,03.GROCERIES & PROVISIONS
31-Aug-2017,7003873,13.04,REDBRIDGE PRODUCE & FLOWERS LTD T/A TOTAL PRODUCE,390977,Commissioning & Investment,Children's & Education Services,103,Supplies and Services,504,Equipment,5023,Revenue,03.GROCERIES & PROVISIONS
31-Aug-2017,7003873,2.10,REDBRIDGE PRODUCE & FLOWERS LTD T/A TOTAL PRODUCE,390977,Commissioning & Investment,Children's & Education Services,103,Supplies and Services,504,Equipment,5023,Revenue,03.GROCERIES & PROVISIONS
31-Aug-2017,7003873,8.80,REDBRIDGE PRODUCE & FLOWERS LTD T/A TOTAL PRODUCE,390977,Commissioning & Investment,Children's & Education Services,103,Supplies and Services,504,Equipment,5023,Revenue,03.GROCERIES & PROVISIONS
31-Aug-2017,7003873,66.66,REDBRIDGE PRODUCE & FLOWERS LTD T/A TOTAL PRODUCE,390977,Commissioning & Investment,Children's & Education Services,103,Supplies and Services,504,Equipment,5023,Revenue,03.GROCERIES & PROVISIONS
31-Aug-2017,7003873,0.78,REDBRIDGE PRODUCE & FLOWERS LTD T/A TOTAL PRODUCE,390977,Commissioning & Investment,Children's & Education Services,103,Supplies and Services,504,Equipment,5023,Revenue,03.GROCERIES & PROVISIONS
31-Aug-2017,7003873,24.35,REDBRIDGE PRODUCE & FLOWERS LTD T/A TOTAL PRODUCE,390977,Commissioning & Investment,Children's & Education Services,103,Supplies and Services,504,Equipment,5023,Revenue,03.GROCERIES & PROVISIONS
31-Aug-2017,7003873,6.60,REDBRIDGE PRODUCE & FLOWERS LTD T/A TOTAL PRODUCE,390977,Commissioning & Investment,Children's & Education Services,103,Supplies and Services,504,Equipment,5023,Revenue,03.GROCERIES & PROVISIONS
31-Aug-2017,7003873,45.97,REDBRIDGE PRODUCE & FLOWERS LTD T/A TOTAL PRODUCE,390977,"Environment, Housing & Leisure",Adult Social Care,101,Supplies and Services,504,Equipment,5023,Revenue,03.GROCERIES & PROVISIONS
31-Aug-2017,7003873,2.29,REDBRIDGE PRODUCE & FLOWERS LTD T/A TOTAL PRODUCE,390977,Commissioning & Investment,Children's & Education Services,103,Supplies and Services,504,Equipment,5023,Revenue,03.GROCERIES & PROVISIONS
31-Aug-2017,7003873,24.20,REDBRIDGE PRODUCE & FLOWERS LTD T/A TOTAL PRODUCE,390977,Commissioning & Investment,Children's & Education Services,103,Supplies and Services,504,Equipment,5023,Revenue,03.GROCERIES & PROVISIONS
31-Aug-2017,7003873,41.00,REDBRIDGE PRODUCE & FLOWERS LTD T/A TOTAL PRODUCE,390977,Commissioning & Investment,Children's & Education Services,103,Supplies and Services,504,Equipment,5023,Revenue,03.GROCERIES & PROVISIONS
31-Aug-2017,7003873,17.60,REDBRIDGE PRODUCE & FLOWERS LTD T/A TOTAL PRODUCE,390977,Commissioning & Investment,Children's & Education Services,103,Supplies and Services,504,Equipment,5023,Revenue,03.GROCERIES & PROVISIONS
31-Aug-2017,7003873,7.32,REDBRIDGE PRODUCE & FLOWERS LTD T/A TOTAL PRODUCE,390977,Commissioning & Investment,Children's & Education Services,103,Supplies and Services,504,Equipment,5023,Revenue,03.GROCERIES & PROVISIONS
31-Aug-2017,7003873,40.44,REDBRIDGE PRODUCE & FLOWERS LTD T/A TOTAL PRODUCE,390977,Commissioning & Investment,Children's & Education Services,103,Supplies and Services,504,Equipment,5023,Revenue,03.GROCERIES & PROVISIONS
31-Aug-2017,7003873,20.54,REDBRIDGE PRODUCE & FLOWERS LTD T/A TOTAL PRODUCE,390977,Commissioning & Investment,Children's & Education Services,103,Supplies and Services,504,Equipment,5023,Revenue,03.GROCERIES & PROVISIONS
31-Aug-2017,7003873,65.53,REDBRIDGE PRODUCE & FLOWERS LTD T/A TOTAL PRODUCE,390977,Commissioning & Investment,Children's & Education Services,103,Supplies and Services,504,Equipment,5023,Revenue,03.GROCERIES & PROVISIONS
31-Aug-2017,7003873,24.18,REDBRIDGE PRODUCE & FLOWERS LTD T/A TOTAL PRODUCE,390977,Commissioning & Investment,Children's & Education Services,103,Supplies and Services,504,Equipment,5023,Revenue,03.GROCERIES & PROVISIONS
31-Aug-2017,7003873,21.74,REDBRIDGE PRODUCE & FLOWERS LTD T/A TOTAL PRODUCE,390977,Commissioning & Investment,Children's & Education Services,103,Supplies and Services,504,Equipment,5023,Revenue,03.GROCERIES & PROVISIONS
31-Aug-2017,7003873,61.83,REDBRIDGE PRODUCE & FLOWERS LTD T/A TOTAL PRODUCE,390977,Commissioning & Investment,Children's & Education Services,103,Supplies and Services,504,Equipment,5023,Revenue,03.GROCERIES & PROVISIONS
31-Aug-2017,7003873,1.35,REDBRIDGE PRODUCE & FLOWERS LTD T/A TOTAL PRODUCE,390977,"Environment, Housing & Leisure",Cultural & Related Services,104,Supplies and Services,504,Equipment,5023,Revenue,03.GROCERIES & PROVISIONS
31-Aug-2017,7003873,4.45,REDBRIDGE PRODUCE & FLOWERS LTD T/A TOTAL PRODUCE,390977,Commissioning & Investment,Children's & Education Services,103,Supplies and Services,504,Equipment,5023,Revenue,03.GROCERIES & PROVISIONS
31-Aug-2017,7003873,37.83,REDBRIDGE PRODUCE & FLOWERS LTD T/A TOTAL PRODUCE,390977,"Environment, Housing & Leisure",Adult Social Care,101,Supplies and Services,504,Equipment,5023,Revenue,03.GROCERIES & PROVISIONS
31-Aug-2017,7003873,1.08,REDBRIDGE PRODUCE & FLOWERS LTD T/A TOTAL PRODUCE,390977,Commissioning & Investment,Children's & Education Services,103,Supplies and Services,504,Equipment,5023,Revenue,03.GROCERIES & PROVISIONS
31-Aug-2017,7003873,61.69,REDBRIDGE PRODUCE & FLOWERS LTD T/A TOTAL PRODUCE,390977,Commissioning & Investment,Children's & Education Services,103,Supplies and Services,504,Equipment,5023,Revenue,03.GROCERIES & PROVISIONS
31-Aug-2017,7003873,5.50,REDBRIDGE PRODUCE & FLOWERS LTD T/A TOTAL PRODUCE,390977,Commissioning & Investment,Children's & Education Services,103,Supplies and Services,504,Equipment,5023,Revenue,03.GROCERIES & PROVISIONS
31-Aug-2017,7003873,1.15,REDBRIDGE PRODUCE & FLOWERS LTD T/A TOTAL PRODUCE,390977,Commissioning & Investment,Children's & Education Services,103,Supplies and Services,504,Equipment,5023,Revenue,03.GROCERIES & PROVISIONS
31-Aug-2017,7003873,68.44,REDBRIDGE PRODUCE & FLOWERS LTD T/A TOTAL PRODUCE,390977,Commissioning & Investment,Children's & Education Services,103,Supplies and Services,504,Equipment,5023,Revenue,03.GROCERIES & PROVISIONS
31-Aug-2017,7003873,-5.22,REDBRIDGE PRODUCE & FLOWERS LTD T/A TOTAL PRODUCE,390977,Commissioning & Investment,Children's & Education Services,103,Supplies and Services,504,Equipment,5023,Revenue,03.GROCERIES & PROVISIONS
31-Aug-2017,7003873,1.29,REDBRIDGE PRODUCE & FLOWERS LTD T/A TOTAL PRODUCE,390977,Commissioning & Investment,Children's & Education Services,103,Supplies and Services,504,Equipment,5023,Revenue,03.GROCERIES & PROVISIONS
31-Aug-2017,7003873,18.32,REDBRIDGE PRODUCE & FLOWERS LTD T/A TOTAL PRODUCE,390977,Commissioning & Investment,Children's & Education Services,103,Supplies and Services,504,Equipment,5023,Revenue,03.GROCERIES & PROVISIONS
31-Aug-2017,7003873,0.76,REDBRIDGE PRODUCE & FLOWERS LTD T/A TOTAL PRODUCE,390977,Commissioning & Investment,Children's & Education Services,103,Supplies and Services,504,Equipment,5023,Revenue,03.GROCERIES & PROVISIONS
31-Aug-2017,7003873,2.34,REDBRIDGE PRODUCE & FLOWERS LTD T/A TOTAL PRODUCE,390977,Commissioning & Investment,Children's & Education Services,103,Supplies and Services,504,Equipment,5023,Revenue,03.GROCERIES & PROVISIONS
31-Aug-2017,7003873,4.40,REDBRIDGE PRODUCE & FLOWERS LTD T/A TOTAL PRODUCE,390977,Commissioning & Investment,Children's & Education Services,103,Supplies and Services,504,Equipment,5023,Revenue,03.GROCERIES & PROVISIONS
31-Aug-2017,7003873,8.80,REDBRIDGE PRODUCE & FLOWERS LTD T/A TOTAL PRODUCE,390977,Commissioning & Investment,Children's & Education Services,103,Supplies and Services,504,Equipment,5023,Revenue,03.GROCERIES & PROVISIONS
31-Aug-2017,7003873,61.36,REDBRIDGE PRODUCE & FLOWERS LTD T/A TOTAL PRODUCE,390977,Commissioning & Investment,Children's & Education Services,103,Supplies and Services,504,Equipment,5023,Revenue,03.GROCERIES & PROVISIONS
31-Aug-2017,7003873,0.79,REDBRIDGE PRODUCE & FLOWERS LTD T/A TOTAL PRODUCE,390977,Commissioning & Investment,Children's & Education Services,103,Supplies and Services,504,Equipment,5023,Revenue,03.GROCERIES & PROVISIONS
31-Aug-2017,7003873,-1.53,REDBRIDGE PRODUCE & FLOWERS LTD T/A TOTAL PRODUCE,390977,Commissioning & Investment,Children's & Education Services,103,Supplies and Services,504,Equipment,5023,Revenue,03.GROCERIES & PROVISIONS
31-Aug-2017,7003873,9.71,REDBRIDGE PRODUCE & FLOWERS LTD T/A TOTAL PRODUCE,390977,Commissioning & Investment,Children's & Education Services,103,Supplies and Services,504,Equipment,5023,Revenue,03.GROCERIES & PROVISIONS
31-Aug-2017,7003873,8.16,REDBRIDGE PRODUCE & FLOWERS LTD T/A TOTAL PRODUCE,390977,Commissioning & Investment,Children's & Education Services,103,Supplies and Services,504,Equipment,5023,Revenue,03.GROCERIES & PROVISIONS
31-Aug-2017,7003873,4.84,REDBRIDGE PRODUCE & FLOWERS LTD T/A TOTAL PRODUCE,390977,"Health, Education, Care and Safeguarding",Children's & Education Services,103,Supplies and Services,504,Equipment,5023,Revenue,03.GROCERIES & PROVISIONS
31-Aug-2017,7003873,8.80,REDBRIDGE PRODUCE & FLOWERS LTD T/A TOTAL PRODUCE,390977,Commissioning & Investment,Children's & Education Services,103,Supplies and Services,504,Equipment,5023,Revenue,03.GROCERIES & PROVISIONS
31-Aug-2017,7003873,4.40,REDBRIDGE PRODUCE & FLOWERS LTD T/A TOTAL PRODUCE,390977,Commissioning & Investment,Children's & Education Services,103,Supplies and Services,504,Equipment,5023,Revenue,03.GROCERIES & PROVISIONS
31-Aug-2017,7003873,97.87,REDBRIDGE PRODUCE & FLOWERS LTD T/A TOTAL PRODUCE,390977,Commissioning & Investment,Children's & Education Services,103,Supplies and Services,504,Equipment,5023,Revenue,03.GROCERIES & PROVISIONS
31-Aug-2017,7003873,9.16,REDBRIDGE PRODUCE & FLOWERS LTD T/A TOTAL PRODUCE,390977,Commissioning & Investment,Children's & Education Services,103,Supplies and Services,504,Equipment,5023,Revenue,03.GROCERIES & PROVISIONS
31-Aug-2017,7003873,3.06,REDBRIDGE PRODUCE & FLOWERS LTD T/A TOTAL PRODUCE,390977,Commissioning & Investment,Children's & Education Services,103,Supplies and Services,504,Equipment,5023,Revenue,03.GROCERIES & PROVISIONS
31-Aug-2017,7003873,14.62,REDBRIDGE PRODUCE & FLOWERS LTD T/A TOTAL PRODUCE,390977,Commissioning & Investment,Children's & Education Services,103,Supplies and Services,504,Equipment,5023,Revenue,03.GROCERIES & PROVISIONS
31-Aug-2017,7003873,59.74,REDBRIDGE PRODUCE & FLOWERS LTD T/A TOTAL PRODUCE,390977,Commissioning & Investment,Children's & Education Services,103,Supplies and Services,504,Equipment,5023,Revenue,03.GROCERIES & PROVISIONS
31-Aug-2017,7003873,-9.71,REDBRIDGE PRODUCE & FLOWERS LTD T/A TOTAL PRODUCE,390977,Commissioning & Investment,Children's & Education Services,103,Supplies and Services,504,Equipment,5023,Revenue,03.GROCERIES & PROVISIONS
31-Aug-2017,7003873,1.59,REDBRIDGE PRODUCE & FLOWERS LTD T/A TOTAL PRODUCE,390977,Commissioning & Investment,Children's & Education Services,103,Supplies and Services,504,Equipment,5023,Revenue,03.GROCERIES & PROVISIONS
31-Aug-2017,7003873,1.92,REDBRIDGE PRODUCE & FLOWERS LTD T/A TOTAL PRODUCE,390977,Commissioning & Investment,Children's & Education Services,103,Supplies and Services,504,Equipment,5023,Revenue,03.GROCERIES & PROVISIONS
31-Aug-2017,7003873,106.31,REDBRIDGE PRODUCE & FLOWERS LTD T/A TOTAL PRODUCE,390977,Commissioning & Investment,Children's & Education Services,103,Supplies and Services,504,Equipment,5023,Revenue,03.GROCERIES & PROVISIONS
31-Aug-2017,7003873,4.40,REDBRIDGE PRODUCE & FLOWERS LTD T/A TOTAL PRODUCE,390977,Commissioning & Investment,Children's & Education Services,103,Supplies and Services,504,Equipment,5023,Revenue,03.GROCERIES & PROVISIONS
31-Aug-2017,7003873,0.39,REDBRIDGE PRODUCE & FLOWERS LTD T/A TOTAL PRODUCE,390977,Commissioning & Investment,Children's & Education Services,103,Supplies and Services,504,Equipment,5023,Revenue,03.GROCERIES & PROVISIONS
31-Aug-2017,7003873,1.64,REDBRIDGE PRODUCE & FLOWERS LTD T/A TOTAL PRODUCE,390977,"Health, Education, Care and Safeguarding",Children's & Education Services,103,Supplies and Services,504,Equipment,5023,Revenue,03.GROCERIES & PROVISIONS
31-Aug-2017,7003873,30.31,REDBRIDGE PRODUCE & FLOWERS LTD T/A TOTAL PRODUCE,390977,Commissioning & Investment,Children's & Education Services,103,Supplies and Services,504,Equipment,5023,Revenue,03.GROCERIES & PROVISIONS
31-Aug-2017,7003873,71.59,REDBRIDGE PRODUCE & FLOWERS LTD T/A TOTAL PRODUCE,390977,Commissioning & Investment,Children's & Education Services,103,Supplies and Services,504,Equipment,5023,Revenue,03.GROCERIES & PROVISIONS
31-Aug-2017,7003873,20.65,REDBRIDGE PRODUCE & FLOWERS LTD T/A TOTAL PRODUCE,390977,Commissioning & Investment,Children's & Education Services,103,Supplies and Services,504,Equipment,5023,Revenue,03.GROCERIES & PROVISIONS
31-Aug-2017,7003873,206.61,REDBRIDGE PRODUCE & FLOWERS LTD T/A TOTAL PRODUCE,390977,Commissioning & Investment,Children's & Education Services,103,Supplies and Services,504,Equipment,5023,Revenue,03.GROCERIES & PROVISIONS
31-Aug-2017,7003873,55.23,REDBRIDGE PRODUCE & FLOWERS LTD T/A TOTAL PRODUCE,390977,Commissioning & Investment,Children's & Education Services,103,Supplies and Services,504,Equipment,5023,Revenue,03.GROCERIES & PROVISIONS
31-Aug-2017,7003873,1.46,REDBRIDGE PRODUCE & FLOWERS LTD T/A TOTAL PRODUCE,390977,Commissioning & Investment,Children's & Education Services,103,Supplies and Services,504,Equipment,5023,Revenue,03.GROCERIES & PROVISIONS
31-Aug-2017,7003873,4.40,REDBRIDGE PRODUCE & FLOWERS LTD T/A TOTAL PRODUCE,390977,Commissioning & Investment,Children's & Education Services,103,Supplies and Services,504,Equipment,5023,Revenue,03.GROCERIES & PROVISIONS
31-Aug-2017,7003873,3.56,REDBRIDGE PRODUCE & FLOWERS LTD T/A TOTAL PRODUCE,390977,Commissioning & Investment,Children's & Education Services,103,Supplies and Services,504,Equipment,5023,Revenue,03.GROCERIES & PROVISIONS
31-Aug-2017,7003873,0.73,REDBRIDGE PRODUCE & FLOWERS LTD T/A TOTAL PRODUCE,390977,Commissioning & Investment,Children's & Education Services,103,Supplies and Services,504,Equipment,5023,Revenue,03.GROCERIES & PROVISIONS
31-Aug-2017,7003873,0.89,REDBRIDGE PRODUCE & FLOWERS LTD T/A TOTAL PRODUCE,390977,Commissioning & Investment,Children's & Education Services,103,Supplies and Services,504,Equipment,5023,Revenue,03.GROCERIES & PROVISIONS
31-Aug-2017,7003873,51.81,REDBRIDGE PRODUCE & FLOWERS LTD T/A TOTAL PRODUCE,390977,Commissioning & Investment,Children's & Education Services,103,Supplies and Services,504,Equipment,5023,Revenue,03.GROCERIES & PROVISIONS
31-Aug-2017,7003873,3.06,REDBRIDGE PRODUCE & FLOWERS LTD T/A TOTAL PRODUCE,390977,Commissioning & Investment,Children's & Education Services,103,Supplies and Services,504,Equipment,5023,Revenue,03.GROCERIES & PROVISIONS
31-Aug-2017,7003873,11.00,REDBRIDGE PRODUCE & FLOWERS LTD T/A TOTAL PRODUCE,390977,Commissioning & Investment,Children's & Education Services,103,Supplies and Services,504,Equipment,5023,Revenue,03.GROCERIES & PROVISIONS
31-Aug-2017,7003873,76.60,REDBRIDGE PRODUCE & FLOWERS LTD T/A TOTAL PRODUCE,390977,Commissioning & Investment,Children's & Education Services,103,Supplies and Services,504,Equipment,5023,Revenue,03.GROCERIES & PROVISIONS
31-Aug-2017,7003873,2.30,REDBRIDGE PRODUCE & FLOWERS LTD T/A TOTAL PRODUCE,390977,Commissioning & Investment,Children's & Education Services,103,Supplies and Services,504,Equipment,5023,Revenue,03.GROCERIES & PROVISIONS
31-Aug-2017,7003873,73.11,REDBRIDGE PRODUCE & FLOWERS LTD T/A TOTAL PRODUCE,390977,Commissioning & Investment,Children's & Education Services,103,Supplies and Services,504,Equipment,5023,Revenue,03.GROCERIES & PROVISIONS
31-Aug-2017,7003873,38.63,REDBRIDGE PRODUCE & FLOWERS LTD T/A TOTAL PRODUCE,390977,Commissioning & Investment,Children's & Education Services,103,Supplies and Services,504,Equipment,5023,Revenue,03.GROCERIES & PROVISIONS
31-Aug-2017,7003873,75.43,REDBRIDGE PRODUCE & FLOWERS LTD T/A TOTAL PRODUCE,390977,Commissioning & Investment,Children's & Education Services,103,Supplies and Services,504,Equipment,5023,Revenue,03.GROCERIES & PROVISIONS
31-Aug-2017,7003873,1.21,REDBRIDGE PRODUCE & FLOWERS LTD T/A TOTAL PRODUCE,390977,"Environment, Housing & Leisure",Cultural & Related Services,104,Supplies and Services,504,Equipment,5023,Revenue,03.GROCERIES & PROVISIONS
31-Aug-2017,7003873,6.60,REDBRIDGE PRODUCE & FLOWERS LTD T/A TOTAL PRODUCE,390977,Commissioning & Investment,Children's & Education Services,103,Supplies and Services,504,Equipment,5023,Revenue,03.GROCERIES & PROVISIONS
31-Aug-2017,7003873,2.44,REDBRIDGE PRODUCE & FLOWERS LTD T/A TOTAL PRODUCE,390977,Commissioning & Investment,Children's & Education Services,103,Supplies and Services,504,Equipment,5023,Revenue,03.GROCERIES & PROVISIONS
31-Aug-2017,7003873,1.50,REDBRIDGE PRODUCE & FLOWERS LTD T/A TOTAL PRODUCE,390977,"Health, Education, Care and Safeguarding",Children's & Education Services,103,Supplies and Services,504,Equipment,5023,Revenue,03.GROCERIES & PROVISIONS
31-Aug-2017,7003873,9.64,REDBRIDGE PRODUCE & FLOWERS LTD T/A TOTAL PRODUCE,390977,"Environment, Housing & Leisure",Adult Social Care,101,Supplies and Services,504,Equipment,5023,Revenue,03.GROCERIES & PROVISIONS
31-Aug-2017,7003873,36.95,REDBRIDGE PRODUCE & FLOWERS LTD T/A TOTAL PRODUCE,390977,Commissioning & Investment,Children's & Education Services,103,Supplies and Services,504,Equipment,5023,Revenue,03.GROCERIES & PROVISIONS
31-Aug-2017,7003873,0.89,REDBRIDGE PRODUCE & FLOWERS LTD T/A TOTAL PRODUCE,390977,Commissioning & Investment,Children's & Education Services,103,Supplies and Services,504,Equipment,5023,Revenue,03.GROCERIES & PROVISIONS
31-Aug-2017,7003873,4.58,REDBRIDGE PRODUCE & FLOWERS LTD T/A TOTAL PRODUCE,390977,Commissioning & Investment,Children's & Education Services,103,Supplies and Services,504,Equipment,5023,Revenue,03.GROCERIES & PROVISIONS
31-Aug-2017,7003873,2.30,REDBRIDGE PRODUCE & FLOWERS LTD T/A TOTAL PRODUCE,390977,Commissioning & Investment,Children's & Education Services,103,Supplies and Services,504,Equipment,5023,Revenue,03.GROCERIES & PROVISIONS
31-Aug-2017,7003873,10.14,REDBRIDGE PRODUCE & FLOWERS LTD T/A TOTAL PRODUCE,390977,Commissioning & Investment,Children's & Education Services,103,Supplies and Services,504,Equipment,5023,Revenue,03.GROCERIES & PROVISIONS
31-Aug-2017,7003873,11.00,REDBRIDGE PRODUCE & FLOWERS LTD T/A TOTAL PRODUCE,390977,Commissioning & Investment,Children's & Education Services,103,Supplies and Services,504,Equipment,5023,Revenue,03.GROCERIES & PROVISIONS
31-Aug-2017,7003873,2.04,REDBRIDGE PRODUCE & FLOWERS LTD T/A TOTAL PRODUCE,390977,Commissioning & Investment,Children's & Education Services,103,Supplies and Services,504,Equipment,5023,Revenue,03.GROCERIES & PROVISIONS
31-Aug-2017,7003873,5.50,REDBRIDGE PRODUCE & FLOWERS LTD T/A TOTAL PRODUCE,390977,Commissioning & Investment,Children's & Education Services,103,Supplies and Services,504,Equipment,5023,Revenue,03.GROCERIES & PROVISIONS
31-Aug-2017,7003873,0.59,REDBRIDGE PRODUCE & FLOWERS LTD T/A TOTAL PRODUCE,390977,Commissioning & Investment,Children's & Education Services,103,Supplies and Services,504,Equipment,5023,Revenue,03.GROCERIES & PROVISIONS
31-Aug-2017,7003873,64.54,REDBRIDGE PRODUCE & FLOWERS LTD T/A TOTAL PRODUCE,390977,Commissioning & Investment,Children's & Education Services,103,Supplies and Services,504,Equipment,5023,Revenue,03.GROCERIES & PROVISIONS
31-Aug-2017,7003873,6.60,REDBRIDGE PRODUCE & FLOWERS LTD T/A TOTAL PRODUCE,390977,Commissioning & Investment,Children's & Education Services,103,Supplies and Services,504,Equipment,5023,Revenue,03.GROCERIES & PROVISIONS
31-Aug-2017,7003873,0.77,REDBRIDGE PRODUCE & FLOWERS LTD T/A TOTAL PRODUCE,390977,Commissioning & Investment,Children's & Education Services,103,Supplies and Services,504,Equipment,5023,Revenue,03.GROCERIES & PROVISIONS
31-Aug-2017,7003873,358.82,REDBRIDGE PRODUCE & FLOWERS LTD T/A TOTAL PRODUCE,390977,Commissioning & Investment,Children's & Education Services,103,Supplies and Services,504,Equipment,5023,Revenue,03.GROCERIES & PROVISIONS
31-Aug-2017,7003873,97.01,REDBRIDGE PRODUCE & FLOWERS LTD T/A TOTAL PRODUCE,390977,Commissioning & Investment,Children's & Education Services,103,Supplies and Services,504,Equipment,5023,Revenue,03.GROCERIES & PROVISIONS
31-Aug-2017,7003873,2.20,REDBRIDGE PRODUCE & FLOWERS LTD T/A TOTAL PRODUCE,390977,Commissioning & Investment,Children's & Education Services,103,Supplies and Services,504,Equipment,5023,Revenue,03.GROCERIES & PROVISIONS
31-Aug-2017,7003873,59.91,REDBRIDGE PRODUCE & FLOWERS LTD T/A TOTAL PRODUCE,390977,Commissioning & Investment,Children's & Education Services,103,Supplies and Services,504,Equipment,5023,Revenue,03.GROCERIES & PROVISIONS
31-Aug-2017,7003873,0.79,REDBRIDGE PRODUCE & FLOWERS LTD T/A TOTAL PRODUCE,390977,Commissioning & Investment,Children's & Education Services,103,Supplies and Services,504,Equipment,5023,Revenue,03.GROCERIES & PROVISIONS
31-Aug-2017,7003873,1.46,REDBRIDGE PRODUCE & FLOWERS LTD T/A TOTAL PRODUCE,390977,Commissioning & Investment,Children's & Education Services,103,Supplies and Services,504,Equipment,5023,Revenue,03.GROCERIES & PROVISIONS
31-Aug-2017,7003873,115.70,REDBRIDGE PRODUCE & FLOWERS LTD T/A TOTAL PRODUCE,390977,Commissioning & Investment,Children's & Education Services,103,Supplies and Services,504,Equipment,5023,Revenue,03.GROCERIES & PROVISIONS
31-Aug-2017,7003873,18.36,REDBRIDGE PRODUCE & FLOWERS LTD T/A TOTAL PRODUCE,390977,Commissioning & Investment,Children's & Education Services,103,Supplies and Services,504,Equipment,5023,Revenue,03.GROCERIES & PROVISIONS
31-Aug-2017,7003873,0.52,REDBRIDGE PRODUCE & FLOWERS LTD T/A TOTAL PRODUCE,390977,Commissioning & Investment,Children's & Education Services,103,Supplies and Services,504,Equipment,5023,Revenue,03.GROCERIES & PROVISIONS
31-Aug-2017,7003873,61.87,REDBRIDGE PRODUCE & FLOWERS LTD T/A TOTAL PRODUCE,390977,"Health, Education, Care and Safeguarding",Children's & Education Services,103,Supplies and Services,504,Equipment,5023,Revenue,03.GROCERIES & PROVISIONS
31-Aug-2017,7003873,53.58,REDBRIDGE PRODUCE & FLOWERS LTD T/A TOTAL PRODUCE,390977,Commissioning & Investment,Children's & Education Services,103,Supplies and Services,504,Equipment,5023,Revenue,03.GROCERIES & PROVISIONS
31-Aug-2017,7003873,1.53,REDBRIDGE PRODUCE & FLOWERS LTD T/A TOTAL PRODUCE,390977,Commissioning & Investment,Children's & Education Services,103,Supplies and Services,504,Equipment,5023,Revenue,03.GROCERIES & PROVISIONS
31-Aug-2017,7003873,0.42,REDBRIDGE PRODUCE & FLOWERS LTD T/A TOTAL PRODUCE,390977,"Health, Education, Care and Safeguarding",Children's & Education Services,103,Supplies and Services,504,Equipment,5023,Revenue,03.GROCERIES & PROVISIONS
31-Aug-2017,7003873,0.78,REDBRIDGE PRODUCE & FLOWERS LTD T/A TOTAL PRODUCE,390977,Commissioning & Investment,Children's & Education Services,103,Supplies and Services,504,Equipment,5023,Revenue,03.GROCERIES & PROVISIONS
31-Aug-2017,7003873,2.20,REDBRIDGE PRODUCE & FLOWERS LTD T/A TOTAL PRODUCE,390977,Commissioning & Investment,Children's & Education Services,103,Supplies and Services,504,Equipment,5023,Revenue,03.GROCERIES & PROVISIONS
31-Aug-2017,7003873,11.53,REDBRIDGE PRODUCE & FLOWERS LTD T/A TOTAL PRODUCE,390977,Commissioning & Investment,Children's & Education Services,103,Supplies and Services,504,Equipment,5023,Revenue,03.GROCERIES & PROVISIONS
31-Aug-2017,7003873,0.76,REDBRIDGE PRODUCE & FLOWERS LTD T/A TOTAL PRODUCE,390977,Commissioning & Investment,Children's & Education Services,103,Supplies and Services,504,Equipment,5023,Revenue,03.GROCERIES & PROVISIONS
31-Aug-2017,7003873,27.50,REDBRIDGE PRODUCE & FLOWERS LTD T/A TOTAL PRODUCE,390977,Commissioning & Investment,Children's & Education Services,103,Supplies and Services,504,Equipment,5023,Revenue,03.GROCERIES & PROVISIONS
31-Aug-2017,7003873,3.30,REDBRIDGE PRODUCE & FLOWERS LTD T/A TOTAL PRODUCE,390977,Commissioning & Investment,Children's & Education Services,103,Supplies and Services,504,Equipment,5023,Revenue,03.GROCERIES & PROVISIONS
31-Aug-2017,7003873,6.12,REDBRIDGE PRODUCE & FLOWERS LTD T/A TOTAL PRODUCE,390977,Commissioning & Investment,Children's & Education Services,103,Supplies and Services,504,Equipment,5023,Revenue,03.GROCERIES & PROVISIONS
31-Aug-2017,7003873,6.60,REDBRIDGE PRODUCE & FLOWERS LTD T/A TOTAL PRODUCE,390977,Commissioning & Investment,Children's & Education Services,103,Supplies and Services,504,Equipment,5023,Revenue,03.GROCERIES & PROVISIONS
31-Aug-2017,7003873,5.50,REDBRIDGE PRODUCE & FLOWERS LTD T/A TOTAL PRODUCE,390977,Commissioning & Investment,Children's & Education Services,103,Supplies and Services,504,Equipment,5023,Revenue,03.GROCERIES & PROVISIONS
31-Aug-2017,7003873,2.46,REDBRIDGE PRODUCE & FLOWERS LTD T/A TOTAL PRODUCE,390977,"Health, Education, Care and Safeguarding",Children's & Education Services,103,Supplies and Services,504,Equipment,5023,Revenue,03.GROCERIES & PROVISIONS
31-Aug-2017,7003873,4.40,REDBRIDGE PRODUCE & FLOWERS LTD T/A TOTAL PRODUCE,390977,Commissioning & Investment,Children's & Education Services,103,Supplies and Services,504,Equipment,5023,Revenue,03.GROCERIES & PROVISIONS
31-Aug-2017,7003873,4.40,REDBRIDGE PRODUCE & FLOWERS LTD T/A TOTAL PRODUCE,390977,Commissioning & Investment,Children's & Education Services,103,Supplies and Services,504,Equipment,5023,Revenue,03.GROCERIES & PROVISIONS
31-Aug-2017,7003873,69.23,REDBRIDGE PRODUCE & FLOWERS LTD T/A TOTAL PRODUCE,390977,Commissioning & Investment,Children's & Education Services,103,Supplies and Services,504,Equipment,5023,Revenue,03.GROCERIES & PROVISIONS
31-Aug-2017,7003873,2.44,REDBRIDGE PRODUCE & FLOWERS LTD T/A TOTAL PRODUCE,390977,Commissioning & Investment,Children's & Education Services,103,Supplies and Services,504,Equipment,5023,Revenue,03.GROCERIES & PROVISIONS
31-Aug-2017,7003873,11.00,REDBRIDGE PRODUCE & FLOWERS LTD T/A TOTAL PRODUCE,390977,Commissioning & Investment,Children's & Education Services,103,Supplies and Services,504,Equipment,5023,Revenue,03.GROCERIES & PROVISIONS
31-Aug-2017,7003873,1.07,REDBRIDGE PRODUCE & FLOWERS LTD T/A TOTAL PRODUCE,390977,Commissioning & Investment,Children's & Education Services,103,Supplies and Services,504,Equipment,5023,Revenue,03.GROCERIES & PROVISIONS
31-Aug-2017,7003873,2.44,REDBRIDGE PRODUCE & FLOWERS LTD T/A TOTAL PRODUCE,390977,Commissioning & Investment,Children's & Education Services,103,Supplies and Services,504,Equipment,5023,Revenue,03.GROCERIES & PROVISIONS
31-Aug-2017,7003873,5.98,REDBRIDGE PRODUCE & FLOWERS LTD T/A TOTAL PRODUCE,390977,"Environment, Housing & Leisure",Cultural & Related Services,104,Supplies and Services,504,Equipment,5023,Revenue,03.GROCERIES & PROVISIONS
31-Aug-2017,7003873,31.02,REDBRIDGE PRODUCE & FLOWERS LTD T/A TOTAL PRODUCE,390977,Commissioning & Investment,Children's & Education Services,103,Supplies and Services,504,Equipment,5023,Revenue,03.GROCERIES & PROVISIONS
31-Aug-2017,7003873,11.00,REDBRIDGE PRODUCE & FLOWERS LTD T/A TOTAL PRODUCE,390977,Commissioning & Investment,Children's & Education Services,103,Supplies and Services,504,Equipment,5023,Revenue,03.GROCERIES & PROVISIONS
31-Aug-2017,7003873,69.69,REDBRIDGE PRODUCE & FLOWERS LTD T/A TOTAL PRODUCE,390977,Commissioning & Investment,Children's & Education Services,103,Supplies and Services,504,Equipment,5023,Revenue,03.GROCERIES & PROVISIONS
31-Aug-2017,7003873,0.78,REDBRIDGE PRODUCE & FLOWERS LTD T/A TOTAL PRODUCE,390977,Commissioning & Investment,Children's & Education Services,103,Supplies and Services,504,Equipment,5023,Revenue,03.GROCERIES & PROVISIONS
31-Aug-2017,7003873,0.76,REDBRIDGE PRODUCE & FLOWERS LTD T/A TOTAL PRODUCE,390977,Commissioning & Investment,Children's & Education Services,103,Supplies and Services,504,Equipment,5023,Revenue,03.GROCERIES & PROVISIONS
31-Aug-2017,7003873,1.25,REDBRIDGE PRODUCE & FLOWERS LTD T/A TOTAL PRODUCE,390977,Commissioning & Investment,Children's & Education Services,103,Supplies and Services,504,Equipment,5023,Revenue,03.GROCERIES & PROVISIONS
31-Aug-2017,7003873,2.29,REDBRIDGE PRODUCE & FLOWERS LTD T/A TOTAL PRODUCE,390977,Commissioning & Investment,Children's & Education Services,103,Supplies and Services,504,Equipment,5023,Revenue,03.GROCERIES & PROVISIONS
31-Aug-2017,7003873,9.71,REDBRIDGE PRODUCE & FLOWERS LTD T/A TOTAL PRODUCE,390977,Commissioning & Investment,Children's & Education Services,103,Supplies and Services,504,Equipment,5023,Revenue,03.GROCERIES & PROVISIONS
31-Aug-2017,7003873,1.25,REDBRIDGE PRODUCE & FLOWERS LTD T/A TOTAL PRODUCE,390977,Commissioning & Investment,Children's & Education Services,103,Supplies and Services,504,Equipment,5023,Revenue,03.GROCERIES & PROVISIONS
31-Aug-2017,7003873,5.50,REDBRIDGE PRODUCE & FLOWERS LTD T/A TOTAL PRODUCE,390977,Commissioning & Investment,Children's & Education Services,103,Supplies and Services,504,Equipment,5023,Revenue,03.GROCERIES & PROVISIONS
31-Aug-2017,7003873,4.40,REDBRIDGE PRODUCE & FLOWERS LTD T/A TOTAL PRODUCE,390977,Commissioning & Investment,Children's & Education Services,103,Supplies and Services,504,Equipment,5023,Revenue,03.GROCERIES & PROVISIONS
31-Aug-2017,7003873,19.81,REDBRIDGE PRODUCE & FLOWERS LTD T/A TOTAL PRODUCE,390977,Commissioning & Investment,Children's & Education Services,103,Supplies and Services,504,Equipment,5023,Revenue,03.GROCERIES & PROVISIONS
31-Aug-2017,7003873,1.52,REDBRIDGE PRODUCE & FLOWERS LTD T/A TOTAL PRODUCE,390977,Commissioning & Investment,Children's & Education Services,103,Supplies and Services,504,Equipment,5023,Revenue,03.GROCERIES & PROVISIONS
31-Aug-2017,7003873,3.06,REDBRIDGE PRODUCE & FLOWERS LTD T/A TOTAL PRODUCE,390977,Commissioning & Investment,Children's & Education Services,103,Supplies and Services,504,Equipment,5023,Revenue,03.GROCERIES & PROVISIONS
31-Aug-2017,7003873,24.92,REDBRIDGE PRODUCE & FLOWERS LTD T/A TOTAL PRODUCE,390977,Commissioning & Investment,Children's & Education Services,103,Supplies and Services,504,Equipment,5023,Revenue,03.GROCERIES & PROVISIONS
31-Aug-2017,7003873,55.66,REDBRIDGE PRODUCE & FLOWERS LTD T/A TOTAL PRODUCE,390977,Commissioning & Investment,Children's & Education Services,103,Supplies and Services,504,Equipment,5023,Revenue,03.GROCERIES & PROVISIONS
31-Aug-2017,7003873,3.30,REDBRIDGE PRODUCE & FLOWERS LTD T/A TOTAL PRODUCE,390977,Commissioning & Investment,Children's & Education Services,103,Supplies and Services,504,Equipment,5023,Revenue,03.GROCERIES & PROVISIONS
31-Aug-2017,7003873,1.47,REDBRIDGE PRODUCE & FLOWERS LTD T/A TOTAL PRODUCE,390977,Commissioning & Investment,Children's & Education Services,103,Supplies and Services,504,Equipment,5023,Revenue,03.GROCERIES & PROVISIONS
31-Aug-2017,7003873,21.74,REDBRIDGE PRODUCE & FLOWERS LTD T/A TOTAL PRODUCE,390977,Commissioning & Investment,Children's & Education Services,103,Supplies and Services,504,Equipment,5023,Revenue,03.GROCERIES & PROVISIONS
31-Aug-2017,7003873,331.98,REDBRIDGE PRODUCE & FLOWERS LTD T/A TOTAL PRODUCE,390977,Commissioning & Investment,Children's & Education Services,103,Supplies and Services,504,Equipment,5023,Revenue,03.GROCERIES & PROVISIONS
31-Aug-2017,7003873,1.23,REDBRIDGE PRODUCE & FLOWERS LTD T/A TOTAL PRODUCE,390977,Commissioning & Investment,Children's & Education Services,103,Supplies and Services,504,Equipment,5023,Revenue,03.GROCERIES & PROVISIONS
31-Aug-2017,7003873,7.92,REDBRIDGE PRODUCE & FLOWERS LTD T/A TOTAL PRODUCE,390977,Commissioning & Investment,Children's & Education Services,103,Supplies and Services,504,Equipment,5023,Revenue,03.GROCERIES & PROVISIONS
31-Aug-2017,7003873,1.52,REDBRIDGE PRODUCE & FLOWERS LTD T/A TOTAL PRODUCE,390977,Commissioning & Investment,Children's & Education Services,103,Supplies and Services,504,Equipment,5023,Revenue,03.GROCERIES & PROVISIONS
31-Aug-2017,7003873,14.30,REDBRIDGE PRODUCE & FLOWERS LTD T/A TOTAL PRODUCE,390977,Commissioning & Investment,Children's & Education Services,103,Supplies and Services,504,Equipment,5023,Revenue,03.GROCERIES & PROVISIONS
31-Aug-2017,7003873,50.95,REDBRIDGE PRODUCE & FLOWERS LTD T/A TOTAL PRODUCE,390977,Commissioning & Investment,Children's & Education Services,103,Supplies and Services,504,Equipment,5023,Revenue,03.GROCERIES & PROVISIONS
31-Aug-2017,7003873,3.30,REDBRIDGE PRODUCE & FLOWERS LTD T/A TOTAL PRODUCE,390977,Commissioning & Investment,Children's & Education Services,103,Supplies and Services,504,Equipment,5023,Revenue,03.GROCERIES & PROVISIONS
31-Aug-2017,7003873,3.06,REDBRIDGE PRODUCE & FLOWERS LTD T/A TOTAL PRODUCE,390977,Commissioning & Investment,Children's & Education Services,103,Supplies and Services,504,Equipment,5023,Revenue,03.GROCERIES & PROVISIONS
31-Aug-2017,7003873,30.57,REDBRIDGE PRODUCE & FLOWERS LTD T/A TOTAL PRODUCE,390977,Commissioning & Investment,Children's & Education Services,103,Supplies and Services,504,Equipment,5023,Revenue,03.GROCERIES & PROVISIONS
31-Aug-2017,7003873,1.07,REDBRIDGE PRODUCE & FLOWERS LTD T/A TOTAL PRODUCE,390977,Commissioning & Investment,Children's & Education Services,103,Supplies and Services,504,Equipment,5023,Revenue,03.GROCERIES & PROVISIONS
31-Aug-2017,7003873,1.15,REDBRIDGE PRODUCE & FLOWERS LTD T/A TOTAL PRODUCE,390977,Commissioning & Investment,Children's & Education Services,103,Supplies and Services,504,Equipment,5023,Revenue,03.GROCERIES & PROVISIONS
31-Aug-2017,7003873,2.14,REDBRIDGE PRODUCE & FLOWERS LTD T/A TOTAL PRODUCE,390977,Commissioning & Investment,Children's & Education Services,103,Supplies and Services,504,Equipment,5023,Revenue,03.GROCERIES & PROVISIONS
31-Aug-2017,7003873,0.78,REDBRIDGE PRODUCE & FLOWERS LTD T/A TOTAL PRODUCE,390977,Commissioning & Investment,Children's & Education Services,103,Supplies and Services,504,Equipment,5023,Revenue,03.GROCERIES & PROVISIONS
31-Aug-2017,7003873,1.69,REDBRIDGE PRODUCE & FLOWERS LTD T/A TOTAL PRODUCE,390977,Commissioning & Investment,Children's & Education Services,103,Supplies and Services,504,Equipment,5023,Revenue,03.GROCERIES & PROVISIONS
31-Aug-2017,7003873,7.32,REDBRIDGE PRODUCE & FLOWERS LTD T/A TOTAL PRODUCE,390977,Commissioning & Investment,Children's & Education Services,103,Supplies and Services,504,Equipment,5023,Revenue,03.GROCERIES & PROVISIONS
31-Aug-2017,7003873,6.60,REDBRIDGE PRODUCE & FLOWERS LTD T/A TOTAL PRODUCE,390977,Commissioning & Investment,Children's & Education Services,103,Supplies and Services,504,Equipment,5023,Revenue,03.GROCERIES & PROVISIONS
31-Aug-2017,7003873,6.05,REDBRIDGE PRODUCE & FLOWERS LTD T/A TOTAL PRODUCE,390977,"Health, Education, Care and Safeguarding",Children's & Education Services,103,Supplies and Services,504,Equipment,5023,Revenue,03.GROCERIES & PROVISIONS
31-Aug-2017,7003873,1.23,REDBRIDGE PRODUCE & FLOWERS LTD T/A TOTAL PRODUCE,390977,Commissioning & Investment,Children's & Education Services,103,Supplies and Services,504,Equipment,5023,Revenue,03.GROCERIES & PROVISIONS
31-Aug-2017,7003873,1.78,REDBRIDGE PRODUCE & FLOWERS LTD T/A TOTAL PRODUCE,390977,Commissioning & Investment,Children's & Education Services,103,Supplies and Services,504,Equipment,5023,Revenue,03.GROCERIES & PROVISIONS
31-Aug-2017,7003873,4.30,REDBRIDGE PRODUCE & FLOWERS LTD T/A TOTAL PRODUCE,390977,Commissioning & Investment,Children's & Education Services,103,Supplies and Services,504,Equipment,5023,Revenue,03.GROCERIES & PROVISIONS
31-Aug-2017,7003873,0.76,REDBRIDGE PRODUCE & FLOWERS LTD T/A TOTAL PRODUCE,390977,Commissioning & Investment,Children's & Education Services,103,Supplies and Services,504,Equipment,5023,Revenue,03.GROCERIES & PROVISIONS
31-Aug-2017,7003873,0.19,REDBRIDGE PRODUCE & FLOWERS LTD T/A TOTAL PRODUCE,390977,Commissioning & Investment,Children's & Education Services,103,Supplies and Services,504,Equipment,5023,Revenue,03.GROCERIES & PROVISIONS
31-Aug-2017,7003873,11.08,REDBRIDGE PRODUCE & FLOWERS LTD T/A TOTAL PRODUCE,390977,Commissioning & Investment,Children's & Education Services,103,Supplies and Services,504,Equipment,5023,Revenue,03.GROCERIES & PROVISIONS
31-Aug-2017,7003873,4.08,REDBRIDGE PRODUCE & FLOWERS LTD T/A TOTAL PRODUCE,390977,Commissioning & Investment,Children's & Education Services,103,Supplies and Services,504,Equipment,5023,Revenue,03.GROCERIES & PROVISIONS
31-Aug-2017,7003873,36.43,REDBRIDGE PRODUCE & FLOWERS LTD T/A TOTAL PRODUCE,390977,Commissioning & Investment,Children's & Education Services,103,Supplies and Services,504,Equipment,5023,Revenue,03.GROCERIES & PROVISIONS
31-Aug-2017,7003873,3.06,REDBRIDGE PRODUCE & FLOWERS LTD T/A TOTAL PRODUCE,390977,Commissioning & Investment,Children's & Education Services,103,Supplies and Services,504,Equipment,5023,Revenue,03.GROCERIES & PROVISIONS
31-Aug-2017,7003873,-12.24,REDBRIDGE PRODUCE & FLOWERS LTD T/A TOTAL PRODUCE,390977,Commissioning & Investment,Children's & Education Services,103,Supplies and Services,504,Equipment,5023,Revenue,03.GROCERIES & PROVISIONS
31-Aug-2017,7003873,1.25,REDBRIDGE PRODUCE & FLOWERS LTD T/A TOTAL PRODUCE,390977,Commissioning & Investment,Children's & Education Services,103,Supplies and Services,504,Equipment,5023,Revenue,03.GROCERIES & PROVISIONS
31-Aug-2017,7003873,-6.12,REDBRIDGE PRODUCE & FLOWERS LTD T/A TOTAL PRODUCE,390977,Commissioning & Investment,Children's & Education Services,103,Supplies and Services,504,Equipment,5023,Revenue,03.GROCERIES & PROVISIONS
31-Aug-2017,7003873,3.10,REDBRIDGE PRODUCE & FLOWERS LTD T/A TOTAL PRODUCE,390977,"Health, Education, Care and Safeguarding",Children's & Education Services,103,Supplies and Services,504,Equipment,5023,Revenue,03.GROCERIES & PROVISIONS
31-Aug-2017,7003873,8.16,REDBRIDGE PRODUCE & FLOWERS LTD T/A TOTAL PRODUCE,390977,Commissioning & Investment,Children's & Education Services,103,Supplies and Services,504,Equipment,5023,Revenue,03.GROCERIES & PROVISIONS
31-Aug-2017,7003873,3.56,REDBRIDGE PRODUCE & FLOWERS LTD T/A TOTAL PRODUCE,390977,Commissioning & Investment,Children's & Education Services,103,Supplies and Services,504,Equipment,5023,Revenue,03.GROCERIES & PROVISIONS
31-Aug-2017,7003873,24.57,REDBRIDGE PRODUCE & FLOWERS LTD T/A TOTAL PRODUCE,390977,Commissioning & Investment,Children's & Education Services,103,Supplies and Services,504,Equipment,5023,Revenue,03.GROCERIES & PROVISIONS
31-Aug-2017,7003873,4.40,REDBRIDGE PRODUCE & FLOWERS LTD T/A TOTAL PRODUCE,390977,Commissioning & Investment,Children's & Education Services,103,Supplies and Services,504,Equipment,5023,Revenue,03.GROCERIES & PROVISIONS
31-Aug-2017,7003873,13.74,REDBRIDGE PRODUCE & FLOWERS LTD T/A TOTAL PRODUCE,390977,Commissioning & Investment,Children's & Education Services,103,Supplies and Services,504,Equipment,5023,Revenue,03.GROCERIES & PROVISIONS
31-Aug-2017,7003873,2.04,REDBRIDGE PRODUCE & FLOWERS LTD T/A TOTAL PRODUCE,390977,Commissioning & Investment,Children's & Education Services,103,Supplies and Services,504,Equipment,5023,Revenue,03.GROCERIES & PROVISIONS
31-Aug-2017,7003873,2.29,REDBRIDGE PRODUCE & FLOWERS LTD T/A TOTAL PRODUCE,390977,Commissioning & Investment,Children's & Education Services,103,Supplies and Services,504,Equipment,5023,Revenue,03.GROCERIES & PROVISIONS
31-Aug-2017,7003873,1.52,REDBRIDGE PRODUCE & FLOWERS LTD T/A TOTAL PRODUCE,390977,Commissioning & Investment,Children's & Education Services,103,Supplies and Services,504,Equipment,5023,Revenue,03.GROCERIES & PROVISIONS
31-Aug-2017,7003873,68.07,REDBRIDGE PRODUCE & FLOWERS LTD T/A TOTAL PRODUCE,390977,Commissioning & Investment,Children's & Education Services,103,Supplies and Services,504,Equipment,5023,Revenue,03.GROCERIES & PROVISIONS
31-Aug-2017,7003873,-8.99,REDBRIDGE PRODUCE & FLOWERS LTD T/A TOTAL PRODUCE,390977,"Environment, Housing & Leisure",Adult Social Care,101,Supplies and Services,504,Equipment,5023,Revenue,03.GROCERIES & PROVISIONS
31-Aug-2017,7003873,7.70,REDBRIDGE PRODUCE & FLOWERS LTD T/A TOTAL PRODUCE,390977,Commissioning & Investment,Children's & Education Services,103,Supplies and Services,504,Equipment,5023,Revenue,03.GROCERIES & PROVISIONS
31-Aug-2017,7003873,16.61,REDBRIDGE PRODUCE & FLOWERS LTD T/A TOTAL PRODUCE,390977,Commissioning & Investment,Children's & Education Services,103,Supplies and Services,504,Equipment,5023,Revenue,03.GROCERIES & PROVISIONS
31-Aug-2017,7003873,46.13,REDBRIDGE PRODUCE & FLOWERS LTD T/A TOTAL PRODUCE,390977,Commissioning & Investment,Children's & Education Services,103,Supplies and Services,504,Equipment,5023,Revenue,03.GROCERIES & PROVISIONS
31-Aug-2017,7003873,3.66,REDBRIDGE PRODUCE & FLOWERS LTD T/A TOTAL PRODUCE,390977,Commissioning & Investment,Children's & Education Services,103,Supplies and Services,504,Equipment,5023,Revenue,03.GROCERIES & PROVISIONS
31-Aug-2017,7003873,9.71,REDBRIDGE PRODUCE & FLOWERS LTD T/A TOTAL PRODUCE,390977,Commissioning & Investment,Children's & Education Services,103,Supplies and Services,504,Equipment,5023,Revenue,03.GROCERIES & PROVISIONS
31-Aug-2017,7003873,4.88,REDBRIDGE PRODUCE & FLOWERS LTD T/A TOTAL PRODUCE,390977,Commissioning & Investment,Children's & Education Services,103,Supplies and Services,504,Equipment,5023,Revenue,03.GROCERIES & PROVISIONS
31-Aug-2017,7003873,0.39,REDBRIDGE PRODUCE & FLOWERS LTD T/A TOTAL PRODUCE,390977,Commissioning & Investment,Children's & Education Services,103,Supplies and Services,504,Equipment,5023,Revenue,03.GROCERIES & PROVISIONS
31-Aug-2017,7003873,2.04,REDBRIDGE PRODUCE & FLOWERS LTD T/A TOTAL PRODUCE,390977,Commissioning & Investment,Children's & Education Services,103,Supplies and Services,504,Equipment,5023,Revenue,03.GROCERIES & PROVISIONS
31-Aug-2017,7003873,34.44,REDBRIDGE PRODUCE & FLOWERS LTD T/A TOTAL PRODUCE,390977,Commissioning & Investment,Children's & Education Services,103,Supplies and Services,504,Equipment,5023,Revenue,03.GROCERIES & PROVISIONS
31-Aug-2017,7003873,61.10,REDBRIDGE PRODUCE & FLOWERS LTD T/A TOTAL PRODUCE,390977,Commissioning & Investment,Children's & Education Services,103,Supplies and Services,504,Equipment,5023,Revenue,03.GROCERIES & PROVISIONS
31-Aug-2017,7003873,1.28,REDBRIDGE PRODUCE & FLOWERS LTD T/A TOTAL PRODUCE,390977,Commissioning & Investment,Children's & Education Services,103,Supplies and Services,504,Equipment,5023,Revenue,03.GROCERIES & PROVISIONS
31-Aug-2017,7003873,0.76,REDBRIDGE PRODUCE & FLOWERS LTD T/A TOTAL PRODUCE,390977,Commissioning & Investment,Children's & Education Services,103,Supplies and Services,504,Equipment,5023,Revenue,03.GROCERIES & PROVISIONS
31-Aug-2017,7003873,1.53,REDBRIDGE PRODUCE & FLOWERS LTD T/A TOTAL PRODUCE,390977,Commissioning & Investment,Children's & Education Services,103,Supplies and Services,504,Equipment,5023,Revenue,03.GROCERIES & PROVISIONS
31-Aug-2017,7003873,8.80,REDBRIDGE PRODUCE & FLOWERS LTD T/A TOTAL PRODUCE,390977,Commissioning & Investment,Children's & Education Services,103,Supplies and Services,504,Equipment,5023,Revenue,03.GROCERIES & PROVISIONS
31-Aug-2017,7003873,0.95,REDBRIDGE PRODUCE & FLOWERS LTD T/A TOTAL PRODUCE,390977,Commissioning & Investment,Children's & Education Services,103,Supplies and Services,504,Equipment,5023,Revenue,03.GROCERIES & PROVISIONS
31-Aug-2017,7003873,6.60,REDBRIDGE PRODUCE & FLOWERS LTD T/A TOTAL PRODUCE,390977,Commissioning & Investment,Children's & Education Services,103,Supplies and Services,504,Equipment,5023,Revenue,03.GROCERIES & PROVISIONS
31-Aug-2017,7003873,19.32,REDBRIDGE PRODUCE & FLOWERS LTD T/A TOTAL PRODUCE,390977,Commissioning & Investment,Children's & Education Services,103,Supplies and Services,504,Equipment,5023,Revenue,03.GROCERIES & PROVISIONS
31-Aug-2017,7003873,3.21,REDBRIDGE PRODUCE & FLOWERS LTD T/A TOTAL PRODUCE,390977,"Environment, Housing & Leisure",Cultural & Related Services,104,Supplies and Services,504,Equipment,5023,Revenue,03.GROCERIES & PROVISIONS
31-Aug-2017,7003873,24.09,REDBRIDGE PRODUCE & FLOWERS LTD T/A TOTAL PRODUCE,390977,Commissioning & Investment,Children's & Education Services,103,Supplies and Services,504,Equipment,5023,Revenue,03.GROCERIES & PROVISIONS
31-Aug-2017,7003873,1.53,REDBRIDGE PRODUCE & FLOWERS LTD T/A TOTAL PRODUCE,390977,Commissioning & Investment,Children's & Education Services,103,Supplies and Services,504,Equipment,5023,Revenue,03.GROCERIES & PROVISIONS
31-Aug-2017,7003873,1.78,REDBRIDGE PRODUCE & FLOWERS LTD T/A TOTAL PRODUCE,390977,Commissioning & Investment,Children's & Education Services,103,Supplies and Services,504,Equipment,5023,Revenue,03.GROCERIES & PROVISIONS
31-Aug-2017,7003873,0.78,REDBRIDGE PRODUCE & FLOWERS LTD T/A TOTAL PRODUCE,390977,Commissioning & Investment,Children's & Education Services,103,Supplies and Services,504,Equipment,5023,Revenue,03.GROCERIES & PROVISIONS
31-Aug-2017,7003873,12.20,REDBRIDGE PRODUCE & FLOWERS LTD T/A TOTAL PRODUCE,390977,Commissioning & Investment,Children's & Education Services,103,Supplies and Services,504,Equipment,5023,Revenue,03.GROCERIES & PROVISIONS
31-Aug-2017,7003873,18.32,REDBRIDGE PRODUCE & FLOWERS LTD T/A TOTAL PRODUCE,390977,Commissioning & Investment,Children's & Education Services,103,Supplies and Services,504,Equipment,5023,Revenue,03.GROCERIES & PROVISIONS
31-Aug-2017,7003873,5.50,REDBRIDGE PRODUCE & FLOWERS LTD T/A TOTAL PRODUCE,390977,Commissioning & Investment,Children's & Education Services,103,Supplies and Services,504,Equipment,5023,Revenue,03.GROCERIES & PROVISIONS
31-Aug-2017,7003873,0.95,REDBRIDGE PRODUCE & FLOWERS LTD T/A TOTAL PRODUCE,390977,Commissioning & Investment,Children's & Education Services,103,Supplies and Services,504,Equipment,5023,Revenue,03.GROCERIES & PROVISIONS
31-Aug-2017,7003873,2.67,REDBRIDGE PRODUCE & FLOWERS LTD T/A TOTAL PRODUCE,390977,Commissioning & Investment,Children's & Education Services,103,Supplies and Services,504,Equipment,5023,Revenue,03.GROCERIES & PROVISIONS
31-Aug-2017,7003873,2.16,REDBRIDGE PRODUCE & FLOWERS LTD T/A TOTAL PRODUCE,390977,Commissioning & Investment,Children's & Education Services,103,Supplies and Services,504,Equipment,5023,Revenue,03.GROCERIES & PROVISIONS
31-Aug-2017,7003873,46.67,REDBRIDGE PRODUCE & FLOWERS LTD T/A TOTAL PRODUCE,390977,Commissioning & Investment,Children's & Education Services,103,Supplies and Services,504,Equipment,5023,Revenue,03.GROCERIES & PROVISIONS
31-Aug-2017,7003873,1.47,REDBRIDGE PRODUCE & FLOWERS LTD T/A TOTAL PRODUCE,390977,Commissioning & Investment,Children's & Education Services,103,Supplies and Services,504,Equipment,5023,Revenue,03.GROCERIES & PROVISIONS
31-Aug-2017,7003873,7.26,REDBRIDGE PRODUCE & FLOWERS LTD T/A TOTAL PRODUCE,390977,"Health, Education, Care and Safeguarding",Children's & Education Services,103,Supplies and Services,504,Equipment,5023,Revenue,03.GROCERIES & PROVISIONS
31-Aug-2017,7003873,5.50,REDBRIDGE PRODUCE & FLOWERS LTD T/A TOTAL PRODUCE,390977,Commissioning & Investment,Children's & Education Services,103,Supplies and Services,504,Equipment,5023,Revenue,03.GROCERIES & PROVISIONS
31-Aug-2017,7003873,3.56,REDBRIDGE PRODUCE & FLOWERS LTD T/A TOTAL PRODUCE,390977,Commissioning & Investment,Children's & Education Services,103,Supplies and Services,504,Equipment,5023,Revenue,03.GROCERIES & PROVISIONS
31-Aug-2017,7003873,1.08,REDBRIDGE PRODUCE & FLOWERS LTD T/A TOTAL PRODUCE,390977,Commissioning & Investment,Children's & Education Services,103,Supplies and Services,504,Equipment,5023,Revenue,03.GROCERIES & PROVISIONS
31-Aug-2017,7003873,11.00,REDBRIDGE PRODUCE & FLOWERS LTD T/A TOTAL PRODUCE,390977,Commissioning & Investment,Children's & Education Services,103,Supplies and Services,504,Equipment,5023,Revenue,03.GROCERIES & PROVISIONS
31-Aug-2017,7003873,18.70,REDBRIDGE PRODUCE & FLOWERS LTD T/A TOTAL PRODUCE,390977,Commissioning & Investment,Children's & Education Services,103,Supplies and Services,504,Equipment,5023,Revenue,03.GROCERIES & PROVISIONS
31-Aug-2017,7003873,37.92,REDBRIDGE PRODUCE & FLOWERS LTD T/A TOTAL PRODUCE,390977,"Environment, Housing & Leisure",Cultural & Related Services,104,Supplies and Services,504,Equipment,5023,Revenue,03.GROCERIES & PROVISIONS
31-Aug-2017,7003873,4.40,REDBRIDGE PRODUCE & FLOWERS LTD T/A TOTAL PRODUCE,390977,Commissioning & Investment,Children's & Education Services,103,Supplies and Services,504,Equipment,5023,Revenue,03.GROCERIES & PROVISIONS
31-Aug-2017,7003873,37.97,REDBRIDGE PRODUCE & FLOWERS LTD T/A TOTAL PRODUCE,390977,Commissioning & Investment,Children's & Education Services,103,Supplies and Services,504,Equipment,5023,Revenue,03.GROCERIES & PROVISIONS
31-Aug-2017,7003873,2.04,REDBRIDGE PRODUCE & FLOWERS LTD T/A TOTAL PRODUCE,390977,Commissioning & Investment,Children's & Education Services,103,Supplies and Services,504,Equipment,5023,Revenue,03.GROCERIES & PROVISIONS
31-Aug-2017,7003873,74.39,REDBRIDGE PRODUCE & FLOWERS LTD T/A TOTAL PRODUCE,390977,Commissioning & Investment,Children's & Education Services,103,Supplies and Services,504,Equipment,5023,Revenue,03.GROCERIES & PROVISIONS
31-Aug-2017,7003873,62.01,REDBRIDGE PRODUCE & FLOWERS LTD T/A TOTAL PRODUCE,390977,Commissioning & Investment,Children's & Education Services,103,Supplies and Services,504,Equipment,5023,Revenue,03.GROCERIES & PROVISIONS
31-Aug-2017,7003873,11.00,REDBRIDGE PRODUCE & FLOWERS LTD T/A TOTAL PRODUCE,390977,Commissioning & Investment,Children's & Education Services,103,Supplies and Services,504,Equipment,5023,Revenue,03.GROCERIES & PROVISIONS
31-Aug-2017,7003873,195.81,REDBRIDGE PRODUCE & FLOWERS LTD T/A TOTAL PRODUCE,390977,Commissioning & Investment,Children's & Education Services,103,Supplies and Services,504,Equipment,5023,Revenue,03.GROCERIES & PROVISIONS
31-Aug-2017,7003873,5.50,REDBRIDGE PRODUCE & FLOWERS LTD T/A TOTAL PRODUCE,390977,Commissioning & Investment,Children's & Education Services,103,Supplies and Services,504,Equipment,5023,Revenue,03.GROCERIES & PROVISIONS
31-Aug-2017,7003873,63.30,REDBRIDGE PRODUCE & FLOWERS LTD T/A TOTAL PRODUCE,390977,Commissioning & Investment,Children's & Education Services,103,Supplies and Services,504,Equipment,5023,Revenue,03.GROCERIES & PROVISIONS
31-Aug-2017,7003873,4.44,REDBRIDGE PRODUCE & FLOWERS LTD T/A TOTAL PRODUCE,390977,"Health, Education, Care and Safeguarding",Children's & Education Services,103,Supplies and Services,504,Equipment,5023,Revenue,03.GROCERIES & PROVISIONS
31-Aug-2017,7003873,0.82,REDBRIDGE PRODUCE & FLOWERS LTD T/A TOTAL PRODUCE,390977,"Environment, Housing & Leisure",Cultural & Related Services,104,Supplies and Services,504,Equipment,5023,Revenue,03.GROCERIES & PROVISIONS
31-Aug-2017,7003873,11.00,REDBRIDGE PRODUCE & FLOWERS LTD T/A TOTAL PRODUCE,390977,Commissioning & Investment,Children's & Education Services,103,Supplies and Services,504,Equipment,5023,Revenue,03.GROCERIES & PROVISIONS
31-Aug-2017,7003873,3.56,REDBRIDGE PRODUCE & FLOWERS LTD T/A TOTAL PRODUCE,390977,Commissioning & Investment,Children's & Education Services,103,Supplies and Services,504,Equipment,5023,Revenue,03.GROCERIES & PROVISIONS
31-Aug-2017,7003873,1.02,REDBRIDGE PRODUCE & FLOWERS LTD T/A TOTAL PRODUCE,390977,Commissioning & Investment,Children's & Education Services,103,Supplies and Services,504,Equipment,5023,Revenue,03.GROCERIES & PROVISIONS
31-Aug-2017,7003873,2.30,REDBRIDGE PRODUCE & FLOWERS LTD T/A TOTAL PRODUCE,390977,Commissioning & Investment,Children's & Education Services,103,Supplies and Services,504,Equipment,5023,Revenue,03.GROCERIES & PROVISIONS
31-Aug-2017,7003873,21.42,REDBRIDGE PRODUCE & FLOWERS LTD T/A TOTAL PRODUCE,390977,Commissioning & Investment,Children's & Education Services,103,Supplies and Services,504,Equipment,5023,Revenue,03.GROCERIES & PROVISIONS
31-Aug-2017,7003873,38.18,REDBRIDGE PRODUCE & FLOWERS LTD T/A TOTAL PRODUCE,390977,Commissioning & Investment,Children's & Education Services,103,Supplies and Services,504,Equipment,5023,Revenue,03.GROCERIES & PROVISIONS
31-Aug-2017,7003873,9.98,REDBRIDGE PRODUCE & FLOWERS LTD T/A TOTAL PRODUCE,390977,Commissioning & Investment,Children's & Education Services,103,Supplies and Services,504,Equipment,5023,Revenue,03.GROCERIES & PROVISIONS
31-Aug-2017,7003873,0.78,REDBRIDGE PRODUCE & FLOWERS LTD T/A TOTAL PRODUCE,390977,Commissioning & Investment,Children's & Education Services,103,Supplies and Services,504,Equipment,5023,Revenue,03.GROCERIES & PROVISIONS
31-Aug-2017,7003873,2.04,REDBRIDGE PRODUCE & FLOWERS LTD T/A TOTAL PRODUCE,390977,Commissioning & Investment,Children's & Education Services,103,Supplies and Services,504,Equipment,5023,Revenue,03.GROCERIES & PROVISIONS
31-Aug-2017,7003873,1.53,REDBRIDGE PRODUCE & FLOWERS LTD T/A TOTAL PRODUCE,390977,Commissioning & Investment,Children's & Education Services,103,Supplies and Services,504,Equipment,5023,Revenue,03.GROCERIES & PROVISIONS
